Body Name,Trans.date,Department Code,Department,Expense Area Code,Expense Area,Expense Type Code,Expense Type,Amount Paid (�),Supplier name,Extended Description,TransNo,Period
Rother District Council,10/01/2022,091HOUSING,Housing and Community Services,20205,Housing Loans Account,D2514,Accommodation Costs,"1,100.00",REDACTED PERSONAL DATA,Accommodation Costs - Homelessness services Rent in Advance for Homeless,2037945,202210
Rother District Council,10/01/2022,091HOUSING,Housing and Community Services,20205,Housing Loans Account,D2514,Accommodation Costs,"1,100.00",REDACTED PERSONAL DATA,Accommodation Costs - Homelessness services Deposit for Landlords,2037945,202210
Rother District Council,08/03/2022,081ACQUISIT,"Acquisitions, Transformation and Regeneration",20153,"Elva Business Centre, Bexhill",B2201,Electricity,"3,726.90",Ecotricity Ltd,Electricity - Electricity Charges,2039684,202212
Rother District Council,09/03/2022,081ACQUISIT,"Acquisitions, Transformation and Regeneration",20308,Amherst Road,B2202,Gas,"1,396.97",Laser Energy Buying Group (Kent County Council Commercial Services),Gas - Gas Charges,2039455,202212
Rother District Council,09/03/2022,081ACQUISIT,"Acquisitions, Transformation and Regeneration",20154,Committee Property Account,B2202,Gas,13.64,Laser Energy Buying Group (Kent County Council Commercial Services),Gas - Gas Charges,2039455,202212
Rother District Council,09/03/2022,031RESOURCES,Chief Executive & Corporate Core,20176,Administrative Offices - Print Room,B2202,Gas,456.87,Laser Energy Buying Group (Kent County Council Commercial Services),Gas - Gas Charges,2039455,202212
Rother District Council,09/03/2022,031RESOURCES,Chief Executive & Corporate Core,20173,Administrative Offices - Town Hall,B2202,Gas,"3,549.58",Laser Energy Buying Group (Kent County Council Commercial Services),Gas - Gas Charges,2039455,202212
Rother District Council,09/05/2022,091HOUSING,Housing and Community Services,20261,"TA Purchases (prev - 41 Jameson Mews, Bexhill on Sea)",B1100,Repairs to Premises,196.99,Lloyds Bank,Repairs to Premises - Repairs Refurbishment of premises,2040038,202212
Rother District Council,09/05/2022,091HOUSING,Housing and Community Services,20261,"TA Purchases (prev - 41 Jameson Mews, Bexhill on Sea)",B1100,Repairs to Premises,63.72,Lloyds Bank,Repairs to Premises - Repairs Refurbishment of premises,2040038,202212
Rother District Council,09/05/2022,091HOUSING,Housing and Community Services,20204,Housing Administration Account,C2335,Public transport,70.7,Lloyds Bank,Public Transport - Train tickets,2040039,202212
Rother District Council,09/05/2022,091HOUSING,Housing and Community Services,20145,Maintenance Services,D1201,Equipment & Materials,156,Lloyds Bank,Equipment & Materials - Purchase of Tools,2040045,202212
Rother District Council,09/05/2022,091HOUSING,Housing and Community Services,20114,Bexhill Parks & Open Spaces,D1201,Equipment & Materials,79.1,Lloyds Bank,Equipment & Materials - Parks - Horticultural Sundries,2040054,202212
Rother District Council,09/05/2022,091HOUSING,Housing and Community Services,20304,Housing First,D2513,Hired and Contracted services,21.88,Lloyds Bank,Hired and contracted services - Service fee paid,2040039,202212
Rother District Council,09/05/2022,091HOUSING,Housing and Community Services,20261,"TA Purchases (prev - 41 Jameson Mews, Bexhill on Sea)",D2513,Hired and Contracted services,3.65,Lloyds Bank,Hired and contracted services - Service fee paid,2040039,202212
Rother District Council,09/05/2022,091HOUSING,Housing and Community Services,20202,Rother Tenant Finder (prev Rother Letting Service),D2513,Hired and Contracted services,369,Lloyds Bank,Hired and contracted services - Service fee paid,2040039,202212
Rother District Council,09/05/2022,091HOUSING,Housing and Community Services,20261,"TA Purchases (prev - 41 Jameson Mews, Bexhill on Sea)",D2513,Hired and Contracted services,4.3,Lloyds Bank,Hired and contracted services - Service fee paid,2040039,202212
Rother District Council,09/05/2022,091HOUSING,Housing and Community Services,20206,UK Resettlement (Syrians),D2513,Hired and Contracted services,7.75,Lloyds Bank,Hired and contracted services - Syrian Misc,2040044,202212
Rother District Council,09/05/2022,091HOUSING,Housing and Community Services,20306,Afghan Relocation Assistance Policy,D2513,Hired and Contracted services,403,Lloyds Bank,Hired and contracted services - Afghan Misc,2040047,202212
Rother District Council,09/05/2022,091HOUSING,Housing and Community Services,20206,UK Resettlement (Syrians),D2513,Hired and Contracted services,276.3,Lloyds Bank,Hired and contracted services - Syrian Misc,2040047,202212
Rother District Council,09/05/2022,091HOUSING,Housing and Community Services,20206,UK Resettlement (Syrians),D2513,Hired and Contracted services,259.9,Lloyds Bank,Hired and contracted services - Syrian Misc,2040051,202212
Rother District Council,09/05/2022,091HOUSING,Housing and Community Services,20206,UK Resettlement (Syrians),D2513,Hired and Contracted services,351,Lloyds Bank,Hired and contracted services - Syrian Resettlement Programme-Travel,2040051,202212
Rother District Council,09/05/2022,101RESOURCES,Resources,20239,Computer Services,D2513,Hired and Contracted services,20.62,Lloyds Bank,Hired and contracted services - Delivery and/or Packaging of Equipm,2040041,202212
Rother District Council,09/05/2022,101RESOURCES,Resources,20239,Computer Services,D2513,Hired and Contracted services,"1,312.79",Lloyds Bank,Hired and contracted services - Service fee paid,2040041,202212
Rother District Council,09/05/2022,091HOUSING,Housing and Community Services,20200,Housing Needs - HB (Housing Benefit),D2514,Accommodation Costs,497.93,Lloyds Bank,Accommodation Costs - Homelessness services Temporary accommodation-Police placements,2040039,202212
Rother District Council,09/05/2022,091HOUSING,Housing and Community Services,20200,Housing Needs - HB (Housing Benefit),D2514,Accommodation Costs,776.89,Lloyds Bank,Accommodation Costs - Homelessness services Temp Accom-plus VAT,2040040,202212
Rother District Council,09/05/2022,091HOUSING,Housing and Community Services,20200,Housing Needs - HB (Housing Benefit),D2514,Accommodation Costs,699.5,Lloyds Bank,Accommodation Costs - Homelessness services Temp Accom-plus VAT,2040046,202212
Rother District Council,09/05/2022,101RESOURCES,Resources,20239,Computer Services,D2633,Computer Equipment,35.97,Lloyds Bank,Computer Equipment - Computer peripherals,2040041,202212
Rother District Council,09/05/2022,101RESOURCES,Resources,20239,Computer Services,D2635,Computer Licences,20.76,Lloyds Bank,Computer Licences - Computer Licence Renewal,2040041,202212
Rother District Council,09/05/2022,101RESOURCES,Resources,20239,Computer Services,D2635,Computer Licences,9.99,Lloyds Bank,Computer Licences - Domain Name Renewal,2040054,202212
Rother District Council,09/05/2022,101RESOURCES,Resources,20239,Computer Services,D2635,Computer Licences,163.89,Lloyds Bank,Computer Licences - Domain Name Renewal,2040054,202212
Rother District Council,13/05/2022,091HOUSING,Housing and Community Services,20114,Bexhill Parks & Open Spaces,B1100,Repairs to Premises,"1,150.00",Sportsmark Group ltd,Repairs to Premises - Parks- Sports Equipment,2037464,202210
Rother District Council,22/05/2022,101RESOURCES,Resources,20239,Computer Services,D2635,Computer Licences,300,ElseWare Limited,Computer Licences - BACS Software,2037885,202210
Rother District Council,23/05/2022,091HOUSING,Housing and Community Services,20114,Bexhill Parks & Open Spaces,B1100,Repairs to Premises,"1,156.00",Ruskins Trees & Landscapes Ltd,Repairs to Premises - Parks - Tree Works,2033110,202211
Rother District Council,09/06/2022,091HOUSING,Housing and Community Services,20204,Housing Administration Account,A2203,Training,11.37,Lloyds Bank,Training,2040060,202212
Rother District Council,09/06/2022,101RESOURCES,Resources,20222,Accountancy,C2335,Public transport,127.26,Lloyds Bank,Public Transport - Train tickets,2040058,202212
Rother District Council,09/06/2022,091HOUSING,Housing and Community Services,20145,Maintenance Services,D1201,Equipment & Materials,139,Lloyds Bank,Equipment & Materials - Purchase of Tools,2040065,202212
Rother District Council,09/06/2022,091HOUSING,Housing and Community Services,20204,Housing Administration Account,D2420,General office supplies (Stationery purchased from ext suppliers),25.15,Lloyds Bank,General office supplies - Stationery,2040064,202212
Rother District Council,09/06/2022,091HOUSING,Housing and Community Services,20304,Housing First,D2513,Hired and Contracted services,4.69,Lloyds Bank,Hired and contracted services - Service fee paid,2040059,202212
Rother District Council,09/06/2022,091HOUSING,Housing and Community Services,20304,Housing First,D2513,Hired and Contracted services,3.2,Lloyds Bank,Car Parking - On Street Car Parking,2040059,202212
Rother District Council,09/06/2022,091HOUSING,Housing and Community Services,20261,"TA Purchases (prev - 41 Jameson Mews, Bexhill on Sea)",D2513,Hired and Contracted services,4.15,Lloyds Bank,Hired and contracted services - Service fee paid,2040059,202212
Rother District Council,09/06/2022,091HOUSING,Housing and Community Services,20206,UK Resettlement (Syrians),D2513,Hired and Contracted services,"1,533.81",Lloyds Bank,Hired and contracted services - Syrian Misc,2040064,202212
Rother District Council,09/06/2022,091HOUSING,Housing and Community Services,20206,UK Resettlement (Syrians),D2513,Hired and Contracted services,292.5,Lloyds Bank,Hired and contracted services - Syrian Resettlement Programme-Travel,2040064,202212
Rother District Council,09/06/2022,091HOUSING,Housing and Community Services,20206,UK Resettlement (Syrians),D2513,Hired and Contracted services,-49.21,Lloyds Bank,Hired and contracted services - Syrian Misc,2040064,202212
Rother District Council,09/06/2022,091HOUSING,Housing and Community Services,20200,Housing Needs - HB (Housing Benefit),D2514,Accommodation Costs,276.41,Lloyds Bank,Accommodation Costs - Homelessness services Temp Accom-plus VAT,2040061,202212
Rother District Council,09/06/2022,101RESOURCES,Resources,20239,Computer Services,D2632,Additional Computer Equipment,249.17,Lloyds Bank,Additional Computer Equipment - New PC/Computer,2040068,202212
Rother District Council,09/06/2022,101RESOURCES,Resources,20239,Computer Services,D2632,Additional Computer Equipment,93.15,Lloyds Bank,,2040068,202212
Rother District Council,09/06/2022,101RESOURCES,Resources,20239,Computer Services,D2633,Computer Equipment,138.24,Lloyds Bank,Computer Equipment - Computer peripherals,2040068,202212
Rother District Council,09/06/2022,031RESOURCES,Chief Executive & Corporate Core,20156,Representing Local Interest,D2734,Members Training and Seminars,215,Lloyds Bank,Members Training and Seminars,2040058,202212
Rother District Council,09/06/2022,101RESOURCES,Resources,20222,Accountancy,D2738,Conferences,182.25,Lloyds Bank,Conferences - Officers Conference fees,2040058,202212
Rother District Council,09/06/2022,999NOREPORT,Housing and Community Services,70751,Capital - Temporary Accommodation,N1009,Furniture & Fittings,275.99,Lloyds Bank,Furniture and Fittings for TA purchases,2040067,202212
Rother District Council,30/06/2022,101RESOURCES,Resources,20209,Corporate management,D2513,Hired and Contracted services,801.19,allpay.net Ltd,Hired and contracted services - Allpay Card/Rep/Let Chrg - Vatable,2038293,202210
Rother District Council,30/06/2022,101RESOURCES,Resources,20209,Corporate management,D2513,Hired and Contracted services,16.89,allpay.net Ltd,Hired and contracted services - Allpay Card/Rep/Let Chrg - Vatable,2038294,202210
Rother District Council,30/06/2022,101RESOURCES,Resources,20209,Corporate management,D2513,Hired and Contracted services,15.45,allpay.net Ltd,Hired and contracted services - Allpay Card/Rep/Let Chrg - Vatable,2038295,202210
Rother District Council,30/06/2022,101RESOURCES,Resources,20209,Corporate management,D2513,Hired and Contracted services,12.06,allpay.net Ltd,Hired and contracted services - Allpay Card/Rep/Let Chrg - Vatable,2038296,202210
Rother District Council,30/06/2022,091HOUSING,Housing and Community Services,20202,Rother Tenant Finder (prev Rother Letting Service),D2513,Hired and Contracted services,762,Help2Rent Ltd,Hired and contracted services - Service fee paid,2037751,202210
Rother District Council,06/07/2022,091HOUSING,Housing and Community Services,20108,Bexhill Promenade & Foreshore,B2201,Electricity,3.1,Ecotricity Ltd,Electricity - Electricity Charges,2039685,202212
Rother District Council,06/07/2022,091HOUSING,Housing and Community Services,20137,Car Parks,B2201,Electricity,19.62,Ecotricity Ltd,Electricity - Electricity Charges,2039685,202212
Rother District Council,06/07/2022,091HOUSING,Housing and Community Services,20138,Residual Highway Services,B2201,Electricity,3.1,Ecotricity Ltd,Electricity - Electricity Charges,2039685,202212
Rother District Council,06/07/2022,091HOUSING,Housing and Community Services,20137,Car Parks,B2201,Electricity,57.28,Ecotricity Ltd,Electricity - Electricity Charges,2039686,202212
Rother District Council,06/07/2022,091HOUSING,Housing and Community Services,20138,Residual Highway Services,B2201,Electricity,47.66,Ecotricity Ltd,Electricity - Electricity Charges,2039686,202212
Rother District Council,06/07/2022,041ENVIRON,Environmental Services,20129,Community Safety - CCTV costs only,B2201,Electricity,429.42,Ecotricity Ltd,Electricity - Electricity Charges,2039686,202212
Rother District Council,07/07/2022,091HOUSING,Housing and Community Services,20108,Bexhill Promenade & Foreshore,B2201,Electricity,10.97,Ecotricity Ltd,Electricity - Electricity Charges,2039688,202212
Rother District Council,07/07/2022,091HOUSING,Housing and Community Services,20108,Bexhill Promenade & Foreshore,B2201,Electricity,5.06,Ecotricity Ltd,Electricity - Electricity Charges,2039689,202212
Rother District Council,07/07/2022,091HOUSING,Housing and Community Services,20114,Bexhill Parks & Open Spaces,B2201,Electricity,33.97,Ecotricity Ltd,Electricity - Electricity Charges,2039687,202212
Rother District Council,07/07/2022,091HOUSING,Housing and Community Services,20137,Car Parks,B2201,Electricity,69.43,Ecotricity Ltd,Electricity - Electricity Charges,2039688,202212
Rother District Council,07/07/2022,091HOUSING,Housing and Community Services,20138,Residual Highway Services,B2201,Electricity,10.96,Ecotricity Ltd,Electricity - Electricity Charges,2039688,202212
Rother District Council,07/07/2022,091HOUSING,Housing and Community Services,20137,Car Parks,B2201,Electricity,31.98,Ecotricity Ltd,Electricity - Electricity Charges,2039689,202212
Rother District Council,07/07/2022,091HOUSING,Housing and Community Services,20138,Residual Highway Services,B2201,Electricity,5.05,Ecotricity Ltd,Electricity - Electricity Charges,2039689,202212
Rother District Council,07/07/2022,091HOUSING,Housing and Community Services,20137,Car Parks,B2201,Electricity,8.09,Ecotricity Ltd,Electricity - Electricity Charges,2039690,202212
Rother District Council,07/07/2022,091HOUSING,Housing and Community Services,20138,Residual Highway Services,B2201,Electricity,6.74,Ecotricity Ltd,Electricity - Electricity Charges,2039690,202212
Rother District Council,07/07/2022,041ENVIRON,Environmental Services,20129,Community Safety - CCTV costs only,B2201,Electricity,60.67,Ecotricity Ltd,Electricity - Electricity Charges,2039690,202212
Rother District Council,07/07/2022,091HOUSING,Housing and Community Services,20206,UK Resettlement (Syrians),D2513,Hired and Contracted services,"9,000.00",Battle and Langton C E Primary School,Hired and contracted services - Syrian-Education-Exempt VAT,2039291,202212
Rother District Council,08/07/2022,091HOUSING,Housing and Community Services,20137,Car Parks,D2513,Hired and Contracted services,25,Haven Security Ltd,Hired and contracted services - CCTV System Maintenance,2038526,202211
Rother District Council,11/07/2022,091HOUSING,Housing and Community Services,20202,Rother Tenant Finder (prev Rother Letting Service),A2203,Training,390,Lloyds Bank,Training,2040078,202212
Rother District Council,11/07/2022,091HOUSING,Housing and Community Services,20114,Bexhill Parks & Open Spaces,B1100,Repairs to Premises,68.74,Lloyds Bank,Repairs to Premises - Purchase of Materials - Build Maint,2040084,202212
Rother District Council,11/07/2022,091HOUSING,Housing and Community Services,20204,Housing Administration Account,D1201,Equipment & Materials,16.68,Lloyds Bank,Equipment & materials - Miscellaneous,2040079,202212
Rother District Council,11/07/2022,091HOUSING,Housing and Community Services,20208,Sanctuary Safe Accommodation,D1201,Equipment & Materials,41.54,Lloyds Bank,Equipment & materials - Miscellaneous,2040083,202212
Rother District Council,11/07/2022,081ACQUISIT,"Acquisitions, Transformation and Regeneration",20101,Cultural Development,D1201,Equipment & Materials,129,Lloyds Bank,Equipment & Materials - Electrical Equipment,2040086,202212
Rother District Council,11/07/2022,091HOUSING,Housing and Community Services,20202,Rother Tenant Finder (prev Rother Letting Service),D2513,Hired and Contracted services,15.4,Lloyds Bank,Hired and contracted services - Service fee paid,2040078,202212
Rother District Council,11/07/2022,091HOUSING,Housing and Community Services,20202,Rother Tenant Finder (prev Rother Letting Service),D2513,Hired and Contracted services,8.1,Lloyds Bank,Car Parking - On Street Car Parking,2040078,202212
Rother District Council,11/07/2022,091HOUSING,Housing and Community Services,20261,"TA Purchases (prev - 41 Jameson Mews, Bexhill on Sea)",D2513,Hired and Contracted services,3.3,Lloyds Bank,Hired and contracted services - Service fee paid,2040078,202212
Rother District Council,11/07/2022,091HOUSING,Housing and Community Services,20206,UK Resettlement (Syrians),D2513,Hired and Contracted services,674.57,Lloyds Bank,Hired and contracted services - Syrian Misc,2040080,202212
Rother District Council,11/07/2022,091HOUSING,Housing and Community Services,20306,Afghan Relocation Assistance Policy,D2513,Hired and Contracted services,102.5,Lloyds Bank,Hired and contracted services - Afghan Misc,2040080,202212
Rother District Council,11/07/2022,091HOUSING,Housing and Community Services,20206,UK Resettlement (Syrians),D2513,Hired and Contracted services,10,Lloyds Bank,Hired and contracted services - Syrian Misc,2040083,202212
Rother District Council,11/07/2022,091HOUSING,Housing and Community Services,20261,"TA Purchases (prev - 41 Jameson Mews, Bexhill on Sea)",D2513,Hired and Contracted services,35.38,Lloyds Bank,Hired and contracted services - Service fee paid,2040083,202212
Rother District Council,11/07/2022,101RESOURCES,Resources,20201,Household Support Fund (HFS) from 202108,D2513,Hired and Contracted services,"1,410.00",Lloyds Bank,Hired and contracted services - Service fee paid,2040083,202212
Rother District Council,11/07/2022,091HOUSING,Housing and Community Services,20206,UK Resettlement (Syrians),D2513,Hired and Contracted services,577.36,Lloyds Bank,Hired and contracted services - Syrian Misc,2040085,202212
Rother District Council,11/07/2022,091HOUSING,Housing and Community Services,20206,UK Resettlement (Syrians),D2513,Hired and Contracted services,975,Lloyds Bank,Hired and contracted services - Syrian-Bus Pass,2040085,202212
Rother District Council,11/07/2022,091HOUSING,Housing and Community Services,20206,UK Resettlement (Syrians),D2513,Hired and Contracted services,319.94,Lloyds Bank,Hired and contracted services - Syrian Resettlement Programme-Furniture,2040085,202212
Rother District Council,11/07/2022,091HOUSING,Housing and Community Services,20306,Afghan Relocation Assistance Policy,D2513,Hired and Contracted services,269.99,Lloyds Bank,Hired and contracted services - Afghan Resettlement Programme-Furniture,2040085,202212
Rother District Council,11/07/2022,999NOREPORT,Housing and Community Services,70751,Capital - Temporary Accommodation,D2513,Hired and Contracted services,160,Lloyds Bank,Hired and contracted services - Service fee paid,2040077,202212
Rother District Council,11/07/2022,101RESOURCES,Resources,20239,Computer Services,D2513,Hired and Contracted services,118.34,Lloyds Bank,,2040082,202212
Rother District Council,11/07/2022,101RESOURCES,Resources,20209,Corporate management,D2513,Hired and Contracted services,54.63,Lloyds Bank,Bank Charges,2040230,202212
Rother District Council,11/07/2022,091HOUSING,Housing and Community Services,20200,Housing Needs - HB (Housing Benefit),D2514,Accommodation Costs,279.19,Lloyds Bank,Accommodation Costs - Homelessness services Temp Accom-plus VAT,2040079,202212
Rother District Council,11/07/2022,091HOUSING,Housing and Community Services,20337,Homes for Ukraine Accommodation,D2514,Accommodation Costs,"2,468.10",Lloyds Bank,Accommodation Costs - Homelessness services Temp Accom-plus VAT,2040079,202212
Rother District Council,11/07/2022,091HOUSING,Housing and Community Services,20337,Homes for Ukraine Accommodation,D2514,Accommodation Costs,"1,746.80",Lloyds Bank,Accommodation Costs - Homelessness services Temp Accom-plus VAT,2040081,202212
Rother District Council,11/07/2022,091HOUSING,Housing and Community Services,20337,Homes for Ukraine Accommodation,D2514,Accommodation Costs,"1,254.00",Lloyds Bank,Accommodation Costs - Homelessness services Temp Accom - No VAT,2040083,202212
Rother District Council,11/07/2022,101RESOURCES,Resources,20239,Computer Services,D2635,Computer Licences,9.99,Lloyds Bank,Computer Licences - Domain Name Renewal,2040087,202212
Rother District Council,11/07/2022,101RESOURCES,Resources,20239,Computer Services,D2635,Computer Licences,79.92,Lloyds Bank,Computer Licences - Domain Name Renewal,2040087,202212
Rother District Council,11/07/2022,101RESOURCES,Resources,20239,Computer Services,D2635,Computer Licences,9.99,Lloyds Bank,Computer Licences - Domain Name Renewal,2040087,202212
Rother District Council,11/07/2022,999NOREPORT,Housing and Community Services,70751,Capital - Temporary Accommodation,N1009,Furniture & Fittings,"1,922.12",Lloyds Bank,Furniture and Fittings for TA purchases,2040077,202212
Rother District Council,11/07/2022,999NOREPORT,Housing and Community Services,70751,Capital - Temporary Accommodation,N1009,Furniture & Fittings,-95,Lloyds Bank,Furniture and Fittings for TA purchases,2040077,202212
Rother District Council,12/07/2022,101RESOURCES,Resources,20242,Communications-Phones,D2621,Telephones,81,TalkTalk Communications Ltd T/A TalkTalk Business,Telephones - Leased Line Rental,2040239,202212
Rother District Council,28/07/2022,999NOREPORT,"Acquisitions, Transformation and Regeneration",70725,Capital - Blackfriars,N1004,Architects & Consultant Fees,"8,385.69",Baily Garner LLP,Architects & Consultant Fees Capital-Architect and Conslt Fees,2034626,202210
Rother District Council,29/07/2022,091HOUSING,Housing and Community Services,20137,Car Parks,D2513,Hired and Contracted services,320,Haven Security Ltd,Hired and contracted services - CCTV System Maintenance,2038527,202211
Rother District Council,01/08/2022,101RESOURCES,Resources,20209,Corporate management,D2513,Hired and Contracted services,46.54,Lloyds Bank,Bank Charges,2040264,202212
Rother District Council,01/08/2022,101RESOURCES,Resources,20209,Corporate management,D2513,Hired and Contracted services,808.25,Lloyds Bank,Bank Charges,2040264,202212
Rother District Council,01/08/2022,091HOUSING,Housing and Community Services,20108,Bexhill Promenade & Foreshore,D2621,Telephones,8.05,Commtel Ltd T/A Teleguard,Equipment & Materials - Access cards and systems,2039954,202212
Rother District Council,04/08/2022,091HOUSING,Housing and Community Services,20108,Bexhill Promenade & Foreshore,B2201,Electricity,5.22,Ecotricity Ltd,Electricity - Electricity Charges,2039692,202212
Rother District Council,04/08/2022,091HOUSING,Housing and Community Services,20138,Residual Highway Services,B2201,Electricity,6.96,Ecotricity Ltd,Electricity - Electricity Charges,2039691,202212
Rother District Council,04/08/2022,091HOUSING,Housing and Community Services,20137,Car Parks,B2201,Electricity,8.37,Ecotricity Ltd,Electricity - Electricity Charges,2039691,202212
Rother District Council,04/08/2022,091HOUSING,Housing and Community Services,20137,Car Parks,B2201,Electricity,33.05,Ecotricity Ltd,Electricity - Electricity Charges,2039692,202212
Rother District Council,04/08/2022,091HOUSING,Housing and Community Services,20138,Residual Highway Services,B2201,Electricity,5.22,Ecotricity Ltd,Electricity - Electricity Charges,2039692,202212
Rother District Council,04/08/2022,091HOUSING,Housing and Community Services,20138,Residual Highway Services,B2201,Electricity,49.25,Ecotricity Ltd,Electricity - Electricity Charges,2039693,202212
Rother District Council,04/08/2022,091HOUSING,Housing and Community Services,20137,Car Parks,B2201,Electricity,59.2,Ecotricity Ltd,Electricity - Electricity Charges,2039693,202212
Rother District Council,04/08/2022,041ENVIRON,Environmental Services,20129,Community Safety - CCTV costs only,B2201,Electricity,62.68,Ecotricity Ltd,Electricity - Electricity Charges,2039691,202212
Rother District Council,04/08/2022,041ENVIRON,Environmental Services,20129,Community Safety - CCTV costs only,B2201,Electricity,443.72,Ecotricity Ltd,Electricity - Electricity Charges,2039693,202212
Rother District Council,08/08/2022,091HOUSING,Housing and Community Services,20108,Bexhill Promenade & Foreshore,B2201,Electricity,11.33,Ecotricity Ltd,Electricity - Electricity Charges,2039695,202212
Rother District Council,08/08/2022,091HOUSING,Housing and Community Services,20114,Bexhill Parks & Open Spaces,B2201,Electricity,35.1,Ecotricity Ltd,Electricity - Electricity Charges,2039696,202212
Rother District Council,08/08/2022,091HOUSING,Housing and Community Services,20137,Car Parks,B2201,Electricity,71.74,Ecotricity Ltd,Electricity - Electricity Charges,2039695,202212
Rother District Council,08/08/2022,091HOUSING,Housing and Community Services,20138,Residual Highway Services,B2201,Electricity,11.33,Ecotricity Ltd,Electricity - Electricity Charges,2039695,202212
Rother District Council,09/08/2022,091HOUSING,Housing and Community Services,20204,Housing Administration Account,A2203,Training,155,Lloyds Bank,Training,2040251,202212
Rother District Council,09/08/2022,091HOUSING,Housing and Community Services,20114,Bexhill Parks & Open Spaces,B1100,Repairs to Premises,55.74,Lloyds Bank,Repairs to Premises - Purchase of Materials - Build Maint,2040254,202212
Rother District Council,09/08/2022,091HOUSING,Housing and Community Services,20145,Maintenance Services,C1101,Vehicle Repairs & Servicing,371.81,Lloyds Bank,Vehicle Repairs & Servicing,2040254,202212
Rother District Council,09/08/2022,101RESOURCES,Resources,20222,Accountancy,C2335,Public transport,5.6,Lloyds Bank,,2040246,202212
Rother District Council,09/08/2022,101RESOURCES,Resources,20222,Accountancy,C2335,Public transport,5.6,Lloyds Bank,,2040279,202212
Rother District Council,09/08/2022,041ENVIRON,Environmental Services,32133,EH Food Hyg / Idc / Water Purity R + W Partnership,D1201,Equipment & Materials,18.51,Lloyds Bank,Equipment & materials - Miscellaneous,2040256,202212
Rother District Council,09/08/2022,091HOUSING,Housing and Community Services,20206,UK Resettlement (Syrians),D2513,Hired and Contracted services,330.1,Lloyds Bank,Hired and contracted services - Syrian Misc,2040248,202212
Rother District Council,09/08/2022,091HOUSING,Housing and Community Services,20206,UK Resettlement (Syrians),D2513,Hired and Contracted services,546,Lloyds Bank,Hired and contracted services - Syrian-Bus Pass,2040248,202212
Rother District Council,09/08/2022,091HOUSING,Housing and Community Services,20204,Housing Administration Account,D2513,Hired and Contracted services,30.19,Lloyds Bank,Hired and contracted services - Service fee paid,2040249,202212
Rother District Council,09/08/2022,091HOUSING,Housing and Community Services,20202,Rother Tenant Finder (prev Rother Letting Service),D2513,Hired and Contracted services,7.8,Lloyds Bank,Car Parking - On Street Car Parking,2040250,202212
Rother District Council,09/08/2022,101RESOURCES,Resources,20201,Household Support Fund (HFS) from 202108,D2513,Hired and Contracted services,"1,000.00",Lloyds Bank,Hired and contracted services - Service fee paid,2040253,202212
Rother District Council,09/08/2022,091HOUSING,Housing and Community Services,20261,"TA Purchases (prev - 41 Jameson Mews, Bexhill on Sea)",D2513,Hired and Contracted services,26.04,Lloyds Bank,Hired and contracted services - Service fee paid,2040253,202212
Rother District Council,09/08/2022,091HOUSING,Housing and Community Services,20337,Homes for Ukraine Accommodation,D2514,Accommodation Costs,"2,295.65",Lloyds Bank,Accommodation Costs - Homelessness services Temp Accom - No VAT,2040250,202212
Rother District Council,09/08/2022,091HOUSING,Housing and Community Services,20200,Housing Needs - HB (Housing Benefit),D2514,Accommodation Costs,56.66,Lloyds Bank,Accommodation Costs - Homelessness services Temp Accom-plus VAT,2040252,202212
Rother District Council,09/08/2022,091HOUSING,Housing and Community Services,20337,Homes for Ukraine Accommodation,D2514,Accommodation Costs,"2,336.50",Lloyds Bank,Accommodation Costs - Homelessness services Temp Accom - No VAT,2040253,202212
Rother District Council,09/08/2022,091HOUSING,Housing and Community Services,20204,Housing Administration Account,D2622,Mobile Phones,109.95,Lloyds Bank,Mobile Phones - Purchase of mobile phones,2040255,202212
Rother District Council,09/08/2022,101RESOURCES,Resources,20239,Computer Services,D2633,Computer Equipment,212.86,Lloyds Bank,,2040247,202212
Rother District Council,09/08/2022,091HOUSING,Housing and Community Services,20236,Customer Services and Development,D2633,Computer Equipment,9.98,Lloyds Bank,Computer Equipment - New - Computer Hardware,2040255,202212
Rother District Council,09/08/2022,091HOUSING,Housing and Community Services,20236,Customer Services and Development,D2633,Computer Equipment,9.98,Lloyds Bank,Computer Equipment - Sound System,2040255,202212
Rother District Council,09/08/2022,091HOUSING,Housing and Community Services,20236,Customer Services and Development,D2633,Computer Equipment,125.26,Lloyds Bank,,2040255,202212
Rother District Council,09/08/2022,101RESOURCES,Resources,20222,Accountancy,D2738,Conferences,6.5,Lloyds Bank,,2040246,202212
Rother District Council,09/08/2022,101RESOURCES,Resources,20222,Accountancy,D2738,Conferences,6.5,Lloyds Bank,,2040279,202212
Rother District Council,09/08/2022,999NOREPORT,Housing and Community Services,70751,Capital - Temporary Accommodation,N1009,Furniture & Fittings,"2,493.07",Lloyds Bank,Furniture and Fittings for TA purchases,2040249,202212
Rother District Council,11/08/2022,101RESOURCES,Resources,20209,Corporate management,D2513,Hired and Contracted services,75.39,Lloyds Bank,Bank Charges,2040234,202212
Rother District Council,12/08/2022,071STRAT,Strategy and Planning,20258,BC Dangerous Structures H+R Partnership,D2513,Hired and Contracted services,3,H M Land Registry,Hired and contracted services - Env H-Land Registry,2038337,202210
Rother District Council,12/08/2022,071STRAT,Strategy and Planning,20246,Planning Applications,D2513,Hired and Contracted services,15,H M Land Registry,Hired and contracted services - Land Registry-Planning,2038337,202210
Rother District Council,12/08/2022,081ACQUISIT,"Acquisitions, Transformation and Regeneration",20144,Property Management,D2513,Hired and Contracted services,6,H M Land Registry,Hired and contracted services - Land Registry-Property Management,2038337,202210
Rother District Council,12/08/2022,041ENVIRON,Environmental Services,32144,EH Environmental Services Admin R + W Partnership,D2513,Hired and Contracted services,6,H M Land Registry,Hired and contracted services - Env H-Land Registry,2038337,202210
Rother District Council,12/08/2022,041ENVIRON,Environmental Services,20129,Community Safety - CCTV costs only,D2513,Hired and Contracted services,9,H M Land Registry,Hired and contracted services - Env H-Land Registry,2038337,202210
Rother District Council,12/08/2022,041ENVIRON,Environmental Services,32134,EH Pollution R + W Partnership,D2513,Hired and Contracted services,6,H M Land Registry,Hired and contracted services - Env H-Land Registry,2038337,202210
Rother District Council,12/08/2022,101RESOURCES,Resources,20216,Cost Of Collection,D2513,Hired and Contracted services,6,H M Land Registry,Hired and contracted services - Council Tax-Land Registry Enquiries,2038337,202210
Rother District Council,15/08/2022,041ENVIRON,Environmental Services,32134,EH Pollution R + W Partnership,D1201,Equipment & Materials,189.93,Viking Direct Ltd,Equipment & Materials - EnvH- Pollution Equipment,2039626,202212
Rother District Council,19/08/2022,041ENVIRON,Environmental Services,32144,EH Environmental Services Admin R + W Partnership,D2513,Hired and Contracted services,3,H M Land Registry,Hired and contracted services - Env H-Land Registry,2038338,202210
Rother District Council,23/08/2022,091HOUSING,Housing and Community Services,20107,Camber Beach & Foreshore,B2201,Electricity,104.2,Laser Energy Buying Group (Kent County Council Commercial Services),Electricity - Electricity Charges,2038609,202211
Rother District Council,23/08/2022,091HOUSING,Housing and Community Services,20108,Bexhill Promenade & Foreshore,B2201,Electricity,13.83,Laser Energy Buying Group (Kent County Council Commercial Services),Electricity - Electricity Charges,2038609,202211
Rother District Council,23/08/2022,091HOUSING,Housing and Community Services,20108,Bexhill Promenade & Foreshore,B2201,Electricity,13.83,Laser Energy Buying Group (Kent County Council Commercial Services),Electricity - Electricity Charges,2038609,202211
Rother District Council,23/08/2022,091HOUSING,Housing and Community Services,20108,Bexhill Promenade & Foreshore,B2201,Electricity,12.52,Laser Energy Buying Group (Kent County Council Commercial Services),Electricity - Electricity Charges,2038609,202211
Rother District Council,23/08/2022,091HOUSING,Housing and Community Services,20108,Bexhill Promenade & Foreshore,B2201,Electricity,12.52,Laser Energy Buying Group (Kent County Council Commercial Services),Electricity - Electricity Charges,2038609,202211
Rother District Council,23/08/2022,091HOUSING,Housing and Community Services,20108,Bexhill Promenade & Foreshore,B2201,Electricity,28.21,Laser Energy Buying Group (Kent County Council Commercial Services),Electricity - Electricity Charges,2038609,202211
Rother District Council,23/08/2022,091HOUSING,Housing and Community Services,20108,Bexhill Promenade & Foreshore,B2201,Electricity,29.26,Laser Energy Buying Group (Kent County Council Commercial Services),Electricity - Electricity Charges,2038609,202211
Rother District Council,23/08/2022,091HOUSING,Housing and Community Services,20108,Bexhill Promenade & Foreshore,B2201,Electricity,28.15,Laser Energy Buying Group (Kent County Council Commercial Services),Electricity - Electricity Charges,2038609,202211
Rother District Council,23/08/2022,091HOUSING,Housing and Community Services,20108,Bexhill Promenade & Foreshore,B2201,Electricity,31.12,Laser Energy Buying Group (Kent County Council Commercial Services),Electricity - Electricity Charges,2038609,202211
Rother District Council,23/08/2022,091HOUSING,Housing and Community Services,20108,Bexhill Promenade & Foreshore,B2201,Electricity,12.74,Laser Energy Buying Group (Kent County Council Commercial Services),Electricity - Electricity Charges,2038609,202211
Rother District Council,23/08/2022,091HOUSING,Housing and Community Services,20108,Bexhill Promenade & Foreshore,B2201,Electricity,12.75,Laser Energy Buying Group (Kent County Council Commercial Services),Electricity - Electricity Charges,2038609,202211
Rother District Council,23/08/2022,091HOUSING,Housing and Community Services,20108,Bexhill Promenade & Foreshore,B2201,Electricity,18.11,Laser Energy Buying Group (Kent County Council Commercial Services),Electricity - Electricity Charges,2038609,202211
Rother District Council,23/08/2022,091HOUSING,Housing and Community Services,20108,Bexhill Promenade & Foreshore,B2201,Electricity,18.11,Laser Energy Buying Group (Kent County Council Commercial Services),Electricity - Electricity Charges,2038609,202211
Rother District Council,23/08/2022,091HOUSING,Housing and Community Services,20108,Bexhill Promenade & Foreshore,B2201,Electricity,42.44,Laser Energy Buying Group (Kent County Council Commercial Services),Electricity - Electricity Charges,2038609,202211
Rother District Council,23/08/2022,091HOUSING,Housing and Community Services,20108,Bexhill Promenade & Foreshore,B2201,Electricity,48.73,Laser Energy Buying Group (Kent County Council Commercial Services),Electricity - Electricity Charges,2038609,202211
Rother District Council,23/08/2022,091HOUSING,Housing and Community Services,20108,Bexhill Promenade & Foreshore,B2201,Electricity,28.93,Laser Energy Buying Group (Kent County Council Commercial Services),Electricity - Electricity Charges,2038609,202211
Rother District Council,23/08/2022,091HOUSING,Housing and Community Services,20108,Bexhill Promenade & Foreshore,B2201,Electricity,27.77,Laser Energy Buying Group (Kent County Council Commercial Services),Electricity - Electricity Charges,2038609,202211
Rother District Council,23/08/2022,091HOUSING,Housing and Community Services,20108,Bexhill Promenade & Foreshore,B2201,Electricity,26.87,Laser Energy Buying Group (Kent County Council Commercial Services),Electricity - Electricity Charges,2038609,202211
Rother District Council,23/08/2022,091HOUSING,Housing and Community Services,20114,Bexhill Parks & Open Spaces,B2201,Electricity,45.58,Laser Energy Buying Group (Kent County Council Commercial Services),Electricity - Electricity Charges,2038609,202211
Rother District Council,23/08/2022,091HOUSING,Housing and Community Services,20114,Bexhill Parks & Open Spaces,B2201,Electricity,119.04,Laser Energy Buying Group (Kent County Council Commercial Services),Electricity - Electricity Charges,2038609,202211
Rother District Council,23/08/2022,091HOUSING,Housing and Community Services,20123,Cemeteries,B2201,Electricity,38.21,Laser Energy Buying Group (Kent County Council Commercial Services),Electricity - Electricity Charges,2038609,202211
Rother District Council,23/08/2022,091HOUSING,Housing and Community Services,20115,Rye Area Parks & Gardens,B2201,Electricity,28.38,Laser Energy Buying Group (Kent County Council Commercial Services),Electricity - Electricity Charges,2038609,202211
Rother District Council,23/08/2022,091HOUSING,Housing and Community Services,20114,Bexhill Parks & Open Spaces,B2201,Electricity,24.82,Laser Energy Buying Group (Kent County Council Commercial Services),Electricity - Electricity Charges,2038609,202211
Rother District Council,23/08/2022,091HOUSING,Housing and Community Services,20115,Rye Area Parks & Gardens,B2201,Electricity,26.01,Laser Energy Buying Group (Kent County Council Commercial Services),Electricity - Electricity Charges,2038609,202211
Rother District Council,23/08/2022,091HOUSING,Housing and Community Services,20114,Bexhill Parks & Open Spaces,B2201,Electricity,36.32,Laser Energy Buying Group (Kent County Council Commercial Services),Electricity - Electricity Charges,2038609,202211
Rother District Council,23/08/2022,091HOUSING,Housing and Community Services,20125,Coast Protection,B2201,Electricity,516.82,Laser Energy Buying Group (Kent County Council Commercial Services),Electricity - Electricity Charges,2038609,202211
Rother District Council,23/08/2022,091HOUSING,Housing and Community Services,20128,Public Conveniences,B2201,Electricity,89.49,Laser Energy Buying Group (Kent County Council Commercial Services),Electricity - Electricity Charges,2038609,202211
Rother District Council,23/08/2022,091HOUSING,Housing and Community Services,20128,Public Conveniences,B2201,Electricity,140.62,Laser Energy Buying Group (Kent County Council Commercial Services),Electricity - Electricity Charges,2038609,202211
Rother District Council,23/08/2022,081ACQUISIT,"Acquisitions, Transformation and Regeneration",20150,Peasmarsh Workshops,B2201,Electricity,28.86,Laser Energy Buying Group (Kent County Council Commercial Services),Electricity - Electricity Charges,2038609,202211
Rother District Council,23/08/2022,091HOUSING,Housing and Community Services,20128,Public Conveniences,B2201,Electricity,33.09,Laser Energy Buying Group (Kent County Council Commercial Services),Electricity - Electricity Charges,2038609,202211
Rother District Council,23/08/2022,091HOUSING,Housing and Community Services,20128,Public Conveniences,B2201,Electricity,31.48,Laser Energy Buying Group (Kent County Council Commercial Services),Electricity - Electricity Charges,2038609,202211
Rother District Council,23/08/2022,091HOUSING,Housing and Community Services,20137,Car Parks,B2201,Electricity,32.54,Laser Energy Buying Group (Kent County Council Commercial Services),Electricity - Electricity Charges,2038609,202211
Rother District Council,23/08/2022,091HOUSING,Housing and Community Services,20128,Public Conveniences,B2201,Electricity,58.47,Laser Energy Buying Group (Kent County Council Commercial Services),Electricity - Electricity Charges,2038609,202211
Rother District Council,23/08/2022,091HOUSING,Housing and Community Services,20128,Public Conveniences,B2201,Electricity,167.88,Laser Energy Buying Group (Kent County Council Commercial Services),Electricity - Electricity Charges,2038609,202211
Rother District Council,23/08/2022,091HOUSING,Housing and Community Services,20137,Car Parks,B2201,Electricity,47.09,Laser Energy Buying Group (Kent County Council Commercial Services),Electricity - Electricity Charges,2038609,202211
Rother District Council,23/08/2022,081ACQUISIT,"Acquisitions, Transformation and Regeneration",20104,Ancient Monuments & Gazebo,B2201,Electricity,26.87,Laser Energy Buying Group (Kent County Council Commercial Services),Electricity - Electricity Charges,2038609,202211
Rother District Council,23/08/2022,091HOUSING,Housing and Community Services,20128,Public Conveniences,B2201,Electricity,59.52,Laser Energy Buying Group (Kent County Council Commercial Services),Electricity - Electricity Charges,2038609,202211
Rother District Council,23/08/2022,091HOUSING,Housing and Community Services,20128,Public Conveniences,B2201,Electricity,28.95,Laser Energy Buying Group (Kent County Council Commercial Services),Electricity - Electricity Charges,2038609,202211
Rother District Council,23/08/2022,091HOUSING,Housing and Community Services,20128,Public Conveniences,B2201,Electricity,41.8,Laser Energy Buying Group (Kent County Council Commercial Services),Electricity - Electricity Charges,2038609,202211
Rother District Council,23/08/2022,091HOUSING,Housing and Community Services,20128,Public Conveniences,B2201,Electricity,32.62,Laser Energy Buying Group (Kent County Council Commercial Services),Electricity - Electricity Charges,2038609,202211
Rother District Council,23/08/2022,091HOUSING,Housing and Community Services,20128,Public Conveniences,B2201,Electricity,61.84,Laser Energy Buying Group (Kent County Council Commercial Services),Electricity - Electricity Charges,2038609,202211
Rother District Council,23/08/2022,091HOUSING,Housing and Community Services,20128,Public Conveniences,B2201,Electricity,41.99,Laser Energy Buying Group (Kent County Council Commercial Services),Electricity - Electricity Charges,2038609,202211
Rother District Council,23/08/2022,091HOUSING,Housing and Community Services,20128,Public Conveniences,B2201,Electricity,34.62,Laser Energy Buying Group (Kent County Council Commercial Services),Electricity - Electricity Charges,2038609,202211
Rother District Council,23/08/2022,091HOUSING,Housing and Community Services,20128,Public Conveniences,B2201,Electricity,29.33,Laser Energy Buying Group (Kent County Council Commercial Services),Electricity - Electricity Charges,2038609,202211
Rother District Council,23/08/2022,091HOUSING,Housing and Community Services,20128,Public Conveniences,B2201,Electricity,91.23,Laser Energy Buying Group (Kent County Council Commercial Services),Electricity - Electricity Charges,2038609,202211
Rother District Council,23/08/2022,091HOUSING,Housing and Community Services,20128,Public Conveniences,B2201,Electricity,36.7,Laser Energy Buying Group (Kent County Council Commercial Services),Electricity - Electricity Charges,2038609,202211
Rother District Council,23/08/2022,091HOUSING,Housing and Community Services,20128,Public Conveniences,B2201,Electricity,138,Laser Energy Buying Group (Kent County Council Commercial Services),Electricity - Electricity Charges,2038609,202211
Rother District Council,23/08/2022,091HOUSING,Housing and Community Services,20128,Public Conveniences,B2201,Electricity,48.23,Laser Energy Buying Group (Kent County Council Commercial Services),Electricity - Electricity Charges,2038609,202211
Rother District Council,23/08/2022,091HOUSING,Housing and Community Services,20128,Public Conveniences,B2201,Electricity,139.73,Laser Energy Buying Group (Kent County Council Commercial Services),Electricity - Electricity Charges,2038609,202211
Rother District Council,23/08/2022,091HOUSING,Housing and Community Services,20137,Car Parks,B2201,Electricity,33.3,Laser Energy Buying Group (Kent County Council Commercial Services),Electricity - Electricity Charges,2038609,202211
Rother District Council,23/08/2022,091HOUSING,Housing and Community Services,20128,Public Conveniences,B2201,Electricity,41.99,Laser Energy Buying Group (Kent County Council Commercial Services),Electricity - Electricity Charges,2038609,202211
Rother District Council,23/08/2022,091HOUSING,Housing and Community Services,20128,Public Conveniences,B2201,Electricity,35,Laser Energy Buying Group (Kent County Council Commercial Services),Electricity - Electricity Charges,2038609,202211
Rother District Council,23/08/2022,091HOUSING,Housing and Community Services,20128,Public Conveniences,B2201,Electricity,31.03,Laser Energy Buying Group (Kent County Council Commercial Services),Electricity - Electricity Charges,2038609,202211
Rother District Council,23/08/2022,091HOUSING,Housing and Community Services,20128,Public Conveniences,B2201,Electricity,50.31,Laser Energy Buying Group (Kent County Council Commercial Services),Electricity - Electricity Charges,2038609,202211
Rother District Council,23/08/2022,091HOUSING,Housing and Community Services,20128,Public Conveniences,B2201,Electricity,6.21,Laser Energy Buying Group (Kent County Council Commercial Services),Electricity - Electricity Charges,2038609,202211
Rother District Council,23/08/2022,091HOUSING,Housing and Community Services,20128,Public Conveniences,B2201,Electricity,56.76,Laser Energy Buying Group (Kent County Council Commercial Services),Electricity - Electricity Charges,2038609,202211
Rother District Council,23/08/2022,081ACQUISIT,"Acquisitions, Transformation and Regeneration",20148,Misc Land & Buildings,B2201,Electricity,26,Laser Energy Buying Group (Kent County Council Commercial Services),Electricity - Electricity Charges,2038609,202211
Rother District Council,23/08/2022,091HOUSING,Housing and Community Services,20128,Public Conveniences,B2201,Electricity,57.11,Laser Energy Buying Group (Kent County Council Commercial Services),Electricity - Electricity Charges,2038609,202211
Rother District Council,23/08/2022,091HOUSING,Housing and Community Services,20128,Public Conveniences,B2201,Electricity,43.69,Laser Energy Buying Group (Kent County Council Commercial Services),Electricity - Electricity Charges,2038609,202211
Rother District Council,23/08/2022,091HOUSING,Housing and Community Services,20128,Public Conveniences,B2201,Electricity,43.46,Laser Energy Buying Group (Kent County Council Commercial Services),Electricity - Electricity Charges,2038609,202211
Rother District Council,23/08/2022,081ACQUISIT,"Acquisitions, Transformation and Regeneration",20148,Misc Land & Buildings,B2201,Electricity,84.33,Laser Energy Buying Group (Kent County Council Commercial Services),Electricity - Electricity Charges,2038609,202211
Rother District Council,23/08/2022,091HOUSING,Housing and Community Services,20128,Public Conveniences,B2201,Electricity,18.98,Laser Energy Buying Group (Kent County Council Commercial Services),Electricity - Electricity Charges,2038609,202211
Rother District Council,23/08/2022,081ACQUISIT,"Acquisitions, Transformation and Regeneration",20154,Committee Property Account,B2201,Electricity,27.66,Laser Energy Buying Group (Kent County Council Commercial Services),Electricity - Electricity Charges,2038609,202211
Rother District Council,23/08/2022,081ACQUISIT,"Acquisitions, Transformation and Regeneration",20154,Committee Property Account,B2201,Electricity,27.66,Laser Energy Buying Group (Kent County Council Commercial Services),Electricity - Electricity Charges,2038609,202211
Rother District Council,23/08/2022,081ACQUISIT,"Acquisitions, Transformation and Regeneration",20154,Committee Property Account,B2201,Electricity,27.66,Laser Energy Buying Group (Kent County Council Commercial Services),Electricity - Electricity Charges,2038609,202211
Rother District Council,23/08/2022,081ACQUISIT,"Acquisitions, Transformation and Regeneration",20154,Committee Property Account,B2201,Electricity,27.66,Laser Energy Buying Group (Kent County Council Commercial Services),Electricity - Electricity Charges,2038609,202211
Rother District Council,23/08/2022,081ACQUISIT,"Acquisitions, Transformation and Regeneration",20154,Committee Property Account,B2201,Electricity,"1,244.51",Laser Energy Buying Group (Kent County Council Commercial Services),Electricity - Electricity Charges,2038609,202211
Rother District Council,23/08/2022,031RESOURCES,Chief Executive & Corporate Core,20173,Administrative Offices - Town Hall,B2201,Electricity,"2,310.35",Laser Energy Buying Group (Kent County Council Commercial Services),Electricity - Electricity Charges,2038609,202211
Rother District Council,23/08/2022,081ACQUISIT,"Acquisitions, Transformation and Regeneration",20153,"Elva Business Centre, Bexhill",B2201,Electricity,841.8,Laser Energy Buying Group (Kent County Council Commercial Services),Electricity - Electricity Charges,2038609,202211
Rother District Council,23/08/2022,031RESOURCES,Chief Executive & Corporate Core,20177,Administrative Offices - Rear Depot,B2201,Electricity,48.23,Laser Energy Buying Group (Kent County Council Commercial Services),Electricity - Electricity Charges,2038609,202211
Rother District Council,23/08/2022,081ACQUISIT,"Acquisitions, Transformation and Regeneration",20154,Committee Property Account,B2201,Electricity,25.04,Laser Energy Buying Group (Kent County Council Commercial Services),Electricity - Electricity Charges,2038609,202211
Rother District Council,23/08/2022,081ACQUISIT,"Acquisitions, Transformation and Regeneration",20154,Committee Property Account,B2201,Electricity,25.04,Laser Energy Buying Group (Kent County Council Commercial Services),Electricity - Electricity Charges,2038609,202211
Rother District Council,23/08/2022,081ACQUISIT,"Acquisitions, Transformation and Regeneration",20154,Committee Property Account,B2201,Electricity,25.04,Laser Energy Buying Group (Kent County Council Commercial Services),Electricity - Electricity Charges,2038609,202211
Rother District Council,23/08/2022,081ACQUISIT,"Acquisitions, Transformation and Regeneration",20154,Committee Property Account,B2201,Electricity,25.04,Laser Energy Buying Group (Kent County Council Commercial Services),Electricity - Electricity Charges,2038609,202211
Rother District Council,23/08/2022,081ACQUISIT,"Acquisitions, Transformation and Regeneration",20154,Committee Property Account,B2201,Electricity,"1,126.98",Laser Energy Buying Group (Kent County Council Commercial Services),Electricity - Electricity Charges,2038609,202211
Rother District Council,23/08/2022,081ACQUISIT,"Acquisitions, Transformation and Regeneration",20155,Investment properties,B2201,Electricity,32.62,Laser Energy Buying Group (Kent County Council Commercial Services),Electricity - Electricity Charges,2038609,202211
Rother District Council,23/08/2022,081ACQUISIT,"Acquisitions, Transformation and Regeneration",20154,Committee Property Account,B2201,Electricity,25.49,Laser Energy Buying Group (Kent County Council Commercial Services),Electricity - Electricity Charges,2038609,202211
Rother District Council,23/08/2022,081ACQUISIT,"Acquisitions, Transformation and Regeneration",20154,Committee Property Account,B2201,Electricity,25.49,Laser Energy Buying Group (Kent County Council Commercial Services),Electricity - Electricity Charges,2038609,202211
Rother District Council,23/08/2022,081ACQUISIT,"Acquisitions, Transformation and Regeneration",20154,Committee Property Account,B2201,Electricity,25.49,Laser Energy Buying Group (Kent County Council Commercial Services),Electricity - Electricity Charges,2038609,202211
Rother District Council,23/08/2022,081ACQUISIT,"Acquisitions, Transformation and Regeneration",20154,Committee Property Account,B2201,Electricity,25.49,Laser Energy Buying Group (Kent County Council Commercial Services),Electricity - Electricity Charges,2038609,202211
Rother District Council,23/08/2022,081ACQUISIT,"Acquisitions, Transformation and Regeneration",20154,Committee Property Account,B2201,Electricity,"1,147.11",Laser Energy Buying Group (Kent County Council Commercial Services),Electricity - Electricity Charges,2038609,202211
Rother District Council,23/08/2022,081ACQUISIT,"Acquisitions, Transformation and Regeneration",20154,Committee Property Account,B2201,Electricity,36.22,Laser Energy Buying Group (Kent County Council Commercial Services),Electricity - Electricity Charges,2038609,202211
Rother District Council,23/08/2022,081ACQUISIT,"Acquisitions, Transformation and Regeneration",20154,Committee Property Account,B2201,Electricity,36.22,Laser Energy Buying Group (Kent County Council Commercial Services),Electricity - Electricity Charges,2038609,202211
Rother District Council,23/08/2022,081ACQUISIT,"Acquisitions, Transformation and Regeneration",20154,Committee Property Account,B2201,Electricity,36.22,Laser Energy Buying Group (Kent County Council Commercial Services),Electricity - Electricity Charges,2038609,202211
Rother District Council,23/08/2022,081ACQUISIT,"Acquisitions, Transformation and Regeneration",20154,Committee Property Account,B2201,Electricity,36.22,Laser Energy Buying Group (Kent County Council Commercial Services),Electricity - Electricity Charges,2038609,202211
Rother District Council,23/08/2022,081ACQUISIT,"Acquisitions, Transformation and Regeneration",20154,Committee Property Account,B2201,Electricity,"1,629.73",Laser Energy Buying Group (Kent County Council Commercial Services),Electricity - Electricity Charges,2038609,202211
Rother District Council,23/08/2022,031RESOURCES,Chief Executive & Corporate Core,20176,Administrative Offices - Print Room,B2201,Electricity,161.75,Laser Energy Buying Group (Kent County Council Commercial Services),Electricity - Electricity Charges,2038609,202211
Rother District Council,23/08/2022,081ACQUISIT,"Acquisitions, Transformation and Regeneration",20154,Committee Property Account,B2201,Electricity,9.76,Laser Energy Buying Group (Kent County Council Commercial Services),Electricity - Electricity Charges,2038609,202211
Rother District Council,23/08/2022,081ACQUISIT,"Acquisitions, Transformation and Regeneration",20154,Committee Property Account,B2201,Electricity,9.75,Laser Energy Buying Group (Kent County Council Commercial Services),Electricity - Electricity Charges,2038609,202211
Rother District Council,23/08/2022,081ACQUISIT,"Acquisitions, Transformation and Regeneration",20154,Committee Property Account,B2201,Electricity,9.75,Laser Energy Buying Group (Kent County Council Commercial Services),Electricity - Electricity Charges,2038609,202211
Rother District Council,23/08/2022,081ACQUISIT,"Acquisitions, Transformation and Regeneration",20154,Committee Property Account,B2201,Electricity,9.75,Laser Energy Buying Group (Kent County Council Commercial Services),Electricity - Electricity Charges,2038609,202211
Rother District Council,23/08/2022,091HOUSING,Housing and Community Services,20261,"TA Purchases (prev - 41 Jameson Mews, Bexhill on Sea)",B2201,Electricity,93.86,Laser Energy Buying Group (Kent County Council Commercial Services),Electricity - Electricity Charges,2038609,202211
Rother District Council,23/08/2022,091HOUSING,Housing and Community Services,20261,"TA Purchases (prev - 41 Jameson Mews, Bexhill on Sea)",B2201,Electricity,34.43,Laser Energy Buying Group (Kent County Council Commercial Services),Electricity - Electricity Charges,2038609,202211
Rother District Council,23/08/2022,091HOUSING,Housing and Community Services,20261,"TA Purchases (prev - 41 Jameson Mews, Bexhill on Sea)",B2201,Electricity,64.82,Laser Energy Buying Group (Kent County Council Commercial Services),Electricity - Electricity Charges,2038609,202211
Rother District Council,23/08/2022,091HOUSING,Housing and Community Services,20261,"TA Purchases (prev - 41 Jameson Mews, Bexhill on Sea)",B2201,Electricity,46.69,Laser Energy Buying Group (Kent County Council Commercial Services),Electricity - Electricity Charges,2038609,202211
Rother District Council,23/08/2022,091HOUSING,Housing and Community Services,20261,"TA Purchases (prev - 41 Jameson Mews, Bexhill on Sea)",B2201,Electricity,"1,153.73",Laser Energy Buying Group (Kent County Council Commercial Services),Electricity - Electricity Charges,2038609,202211
Rother District Council,23/08/2022,091HOUSING,Housing and Community Services,20145,Maintenance Services,B2201,Electricity,60.9,Laser Energy Buying Group (Kent County Council Commercial Services),Electricity - Electricity Charges,2038609,202211
Rother District Council,23/08/2022,091HOUSING,Housing and Community Services,20261,"TA Purchases (prev - 41 Jameson Mews, Bexhill on Sea)",B2201,Electricity,74.54,Laser Energy Buying Group (Kent County Council Commercial Services),Electricity - Electricity Charges,2038609,202211
Rother District Council,23/08/2022,081ACQUISIT,"Acquisitions, Transformation and Regeneration",20308,Amherst Road,B2202,Gas,146.64,Laser Energy Buying Group (Kent County Council Commercial Services),Gas - Gas Charges,2038529,202211
Rother District Council,23/08/2022,081ACQUISIT,"Acquisitions, Transformation and Regeneration",20308,Amherst Road,B2202,Gas,124.48,Laser Energy Buying Group (Kent County Council Commercial Services),Gas - Gas Charges,2038529,202211
Rother District Council,23/08/2022,081ACQUISIT,"Acquisitions, Transformation and Regeneration",20154,Committee Property Account,B2202,Gas,12.3,Laser Energy Buying Group (Kent County Council Commercial Services),Gas - Gas Charges,2038529,202211
Rother District Council,23/08/2022,031RESOURCES,Chief Executive & Corporate Core,20173,Administrative Offices - Town Hall,B2202,Gas,130.82,Laser Energy Buying Group (Kent County Council Commercial Services),Gas - Gas Charges,2038529,202211
Rother District Council,23/08/2022,031RESOURCES,Chief Executive & Corporate Core,20176,Administrative Offices - Print Room,B2202,Gas,53.47,Laser Energy Buying Group (Kent County Council Commercial Services),Gas - Gas Charges,2038529,202211
Rother District Council,24/08/2022,071STRAT,Strategy and Planning,20246,Planning Applications,D2513,Hired and Contracted services,51,H M Land Registry,Hired and contracted services - Land Registry-Planning,2038331,202210
Rother District Council,24/08/2022,041ENVIRON,Environmental Services,32144,EH Environmental Services Admin R + W Partnership,D2513,Hired and Contracted services,3,H M Land Registry,Hired and contracted services - Env H-Land Registry,2038331,202210
Rother District Council,24/08/2022,101RESOURCES,Resources,20216,Cost Of Collection,D2513,Hired and Contracted services,12,H M Land Registry,Hired and contracted services - Council Tax-Land Registry Enquiries,2038331,202210
Rother District Council,26/08/2022,101RESOURCES,Resources,20216,Cost Of Collection,D2513,Hired and Contracted services,6,H M Land Registry,Hired and contracted services - Council Tax-Land Registry Enquiries,2038339,202210
Rother District Council,26/08/2022,999NOREPORT,"Acquisitions, Transformation and Regeneration",70725,Capital - Blackfriars,N1004,Architects & Consultant Fees,"8,385.69",Baily Garner LLP,Architects & Consultant Fees Capital-Architect and Conslt Fees,2037946,202210
Rother District Council,31/08/2022,071STRAT,Strategy and Planning,20258,BC Dangerous Structures H+R Partnership,D2513,Hired and Contracted services,15,H M Land Registry,Hired and contracted services - Env H-Land Registry,2038329,202210
Rother District Council,31/08/2022,071STRAT,Strategy and Planning,20246,Planning Applications,D2513,Hired and Contracted services,45,H M Land Registry,Hired and contracted services - Land Registry-Planning,2038329,202210
Rother District Council,31/08/2022,091HOUSING,Housing and Community Services,20200,Housing Needs - HB (Housing Benefit),D2513,Hired and Contracted services,212,Town Taxis,,2037876,202210
Rother District Council,31/08/2022,041ENVIRON,Environmental Services,32144,EH Environmental Services Admin R + W Partnership,D2513,Hired and Contracted services,3,H M Land Registry,Hired and contracted services - Env H-Land Registry,2038329,202210
Rother District Council,31/08/2022,101RESOURCES,Resources,20216,Cost Of Collection,D2513,Hired and Contracted services,12,H M Land Registry,Hired and contracted services - Council Tax-Land Registry Enquiries,2038329,202210
Rother District Council,31/08/2022,091HOUSING,Housing and Community Services,20200,Housing Needs - HB (Housing Benefit),D2513,Hired and Contracted services,45,NowMedical,,2038485,202211
Rother District Council,31/08/2022,091HOUSING,Housing and Community Services,20337,Homes for Ukraine Accommodation,D2513,Hired and Contracted services,127.96,DA Languages Ltd,Hired and contracted services - All Translation Services,2038532,202211
Rother District Council,01/09/2022,101RESOURCES,Resources,20209,Corporate management,D2513,Hired and Contracted services,20.09,Merchant Rentals Ltd,Hired and contracted services - Streamline Machine-Rental,2038425,202210
Rother District Council,01/09/2022,101RESOURCES,Resources,20209,Corporate management,D2513,Hired and Contracted services,43.97,Lloyds Bank,Bank Charges,2040263,202212
Rother District Council,01/09/2022,101RESOURCES,Resources,20209,Corporate management,D2513,Hired and Contracted services,787.14,Lloyds Bank,Bank Charges,2040263,202212
Rother District Council,02/09/2022,071STRAT,Strategy and Planning,20246,Planning Applications,D2513,Hired and Contracted services,78,H M Land Registry,Hired and contracted services - Land Registry-Planning,2038340,202210
Rother District Council,02/09/2022,101RESOURCES,Resources,20216,Cost Of Collection,D2513,Hired and Contracted services,21,H M Land Registry,Hired and contracted services - Council Tax-Land Registry Enquiries,2038340,202210
Rother District Council,02/09/2022,101RESOURCES,Resources,20242,Communications-Phones,D2621,Telephones,33.39,TalkTalk Communications Ltd T/A TalkTalk Business,Telephones - Leased Line Rental,2038433,202212
Rother District Council,04/09/2022,999NOREPORT,"Acquisitions, Transformation and Regeneration",70737,Capital � Barnhorn Green,B2201,Electricity,20.28,Ecotricity Ltd,Electricity - Electricity Charges,2039701,202212
Rother District Council,04/09/2022,091HOUSING,Housing and Community Services,20108,Bexhill Promenade & Foreshore,B2201,Electricity,3.2,Ecotricity Ltd,Electricity - Electricity Charges,2039701,202212
Rother District Council,04/09/2022,091HOUSING,Housing and Community Services,20108,Bexhill Promenade & Foreshore,B2201,Electricity,11.33,Ecotricity Ltd,Electricity - Electricity Charges,2039703,202212
Rother District Council,04/09/2022,091HOUSING,Housing and Community Services,20138,Residual Highway Services,B2201,Electricity,3.2,Ecotricity Ltd,Electricity - Electricity Charges,2039701,202212
Rother District Council,04/09/2022,091HOUSING,Housing and Community Services,20137,Car Parks,B2201,Electricity,59.19,Ecotricity Ltd,Electricity - Electricity Charges,2039702,202212
Rother District Council,04/09/2022,091HOUSING,Housing and Community Services,20138,Residual Highway Services,B2201,Electricity,49.26,Ecotricity Ltd,Electricity - Electricity Charges,2039702,202212
Rother District Council,04/09/2022,091HOUSING,Housing and Community Services,20137,Car Parks,B2201,Electricity,71.74,Ecotricity Ltd,Electricity - Electricity Charges,2039703,202212
Rother District Council,04/09/2022,091HOUSING,Housing and Community Services,20138,Residual Highway Services,B2201,Electricity,11.33,Ecotricity Ltd,Electricity - Electricity Charges,2039703,202212
Rother District Council,04/09/2022,091HOUSING,Housing and Community Services,20137,Car Parks,B2201,Electricity,8.36,Ecotricity Ltd,Electricity - Electricity Charges,2039704,202212
Rother District Council,04/09/2022,091HOUSING,Housing and Community Services,20138,Residual Highway Services,B2201,Electricity,6.96,Ecotricity Ltd,Electricity - Electricity Charges,2039704,202212
Rother District Council,04/09/2022,041ENVIRON,Environmental Services,20129,Community Safety - CCTV costs only,B2201,Electricity,443.72,Ecotricity Ltd,Electricity - Electricity Charges,2039702,202212
Rother District Council,04/09/2022,041ENVIRON,Environmental Services,20129,Community Safety - CCTV costs only,B2201,Electricity,62.69,Ecotricity Ltd,Electricity - Electricity Charges,2039704,202212
Rother District Council,05/09/2022,091HOUSING,Housing and Community Services,20236,Customer Services and Development,D2632,Additional Computer Equipment,265.83,Apple Retail UK Ltd,Additional Computer Equipment - New PC/Computer,2038280,202210
Rother District Council,06/09/2022,091HOUSING,Housing and Community Services,20114,Bexhill Parks & Open Spaces,B2201,Electricity,35.1,Ecotricity Ltd,Electricity - Electricity Charges,2039705,202212
Rother District Council,06/09/2022,091HOUSING,Housing and Community Services,20200,Housing Needs - HB (Housing Benefit),D2514,Accommodation Costs,8.11,Hastings Borough Council,,2039627,202212
Rother District Council,07/09/2022,071STRAT,Strategy and Planning,20258,BC Dangerous Structures H+R Partnership,D2513,Hired and Contracted services,6,H M Land Registry,Hired and contracted services - Env H-Land Registry,2038341,202211
Rother District Council,07/09/2022,071STRAT,Strategy and Planning,20246,Planning Applications,D2513,Hired and Contracted services,18,H M Land Registry,Hired and contracted services - Land Registry-Planning,2038341,202211
Rother District Council,07/09/2022,041ENVIRON,Environmental Services,20129,Community Safety - CCTV costs only,D2513,Hired and Contracted services,15,H M Land Registry,Hired and contracted services - Env H-Land Registry,2038341,202211
Rother District Council,07/09/2022,091HOUSING,Housing and Community Services,20200,Housing Needs - HB (Housing Benefit),D2513,Hired and Contracted services,3,H M Land Registry,Hired and contracted services - Housing-Land Registry,2038341,202211
Rother District Council,07/09/2022,101RESOURCES,Resources,20216,Cost Of Collection,D2513,Hired and Contracted services,12,H M Land Registry,Hired and contracted services - Council Tax-Land Registry Enquiries,2038341,202211
Rother District Council,08/09/2022,041ENVIRON,Environmental Services,32144,EH Environmental Services Admin R + W Partnership,A2203,Training,165,Institute of Licensing (Events) Ltd,Training,2039623,202212
Rother District Council,09/09/2022,091HOUSING,Housing and Community Services,20204,Housing Administration Account,A2203,Training,"1,163.04",Lloyds Bank,Training,2040098,202212
Rother District Council,09/09/2022,091HOUSING,Housing and Community Services,20200,Housing Needs - HB (Housing Benefit),A2203,Training,495,Lloyds Bank,Training,2040104,202212
Rother District Council,09/09/2022,091HOUSING,Housing and Community Services,20204,Housing Administration Account,D1201,Equipment & Materials,22.68,Lloyds Bank,Equipment & materials - Miscellaneous,2040101,202212
Rother District Council,09/09/2022,081ACQUISIT,"Acquisitions, Transformation and Regeneration",20144,Property Management,D1206,Furniture & Fittings,129,Lloyds Bank,Furniture & Fittings - Chair,2040099,202212
Rother District Council,09/09/2022,091HOUSING,Housing and Community Services,20202,Rother Tenant Finder (prev Rother Letting Service),D2513,Hired and Contracted services,5.3,Lloyds Bank,Car Parking - On Street Car Parking,2040100,202212
Rother District Council,09/09/2022,091HOUSING,Housing and Community Services,20261,"TA Purchases (prev - 41 Jameson Mews, Bexhill on Sea)",D2513,Hired and Contracted services,20,Lloyds Bank,Hired and contracted services - Service fee paid,2040100,202212
Rother District Council,09/09/2022,091HOUSING,Housing and Community Services,20202,Rother Tenant Finder (prev Rother Letting Service),D2513,Hired and Contracted services,10.5,Lloyds Bank,Hired and contracted services - Service fee paid,2040100,202212
Rother District Council,09/09/2022,091HOUSING,Housing and Community Services,20206,UK Resettlement (Syrians),D2513,Hired and Contracted services,229.2,Lloyds Bank,Hired and contracted services - Syrian Misc,2040105,202212
Rother District Council,09/09/2022,091HOUSING,Housing and Community Services,20206,UK Resettlement (Syrians),D2513,Hired and Contracted services,546,Lloyds Bank,Hired and contracted services - Syrian-Bus Pass,2040105,202212
Rother District Council,09/09/2022,071STRAT,Strategy and Planning,20258,BC Dangerous Structures H+R Partnership,D2513,Hired and Contracted services,3,H M Land Registry,Hired and contracted services - Env H-Land Registry,2038342,202210
Rother District Council,09/09/2022,071STRAT,Strategy and Planning,20246,Planning Applications,D2513,Hired and Contracted services,6,H M Land Registry,Hired and contracted services - Land Registry-Planning,2038342,202210
Rother District Council,09/09/2022,041ENVIRON,Environmental Services,32144,EH Environmental Services Admin R + W Partnership,D2513,Hired and Contracted services,3,H M Land Registry,Hired and contracted services - Env H-Land Registry,2038342,202210
Rother District Council,09/09/2022,041ENVIRON,Environmental Services,32134,EH Pollution R + W Partnership,D2513,Hired and Contracted services,3,H M Land Registry,Hired and contracted services - Env H-Land Registry,2038342,202210
Rother District Council,09/09/2022,101RESOURCES,Resources,20216,Cost Of Collection,D2513,Hired and Contracted services,33,H M Land Registry,Hired and contracted services - Council Tax-Land Registry Enquiries,2038342,202210
Rother District Council,09/09/2022,091HOUSING,Housing and Community Services,20337,Homes for Ukraine Accommodation,D2514,Accommodation Costs,"3,250.85",Lloyds Bank,Accommodation Costs - Homelessness services Temp Accom - No VAT,2040103,202212
Rother District Council,09/09/2022,101RESOURCES,Resources,20242,Communications-Phones,D2621,Telephones,67.51,TalkTalk Communications Ltd T/A TalkTalk Business,Telephones - Leased Line Rental,2038421,202212
Rother District Council,09/09/2022,101RESOURCES,Resources,20239,Computer Services,D2633,Computer Equipment,255.36,Lloyds Bank,Computer Equipment - Computer peripherals,2040102,202212
Rother District Council,09/09/2022,101RESOURCES,Resources,20239,Computer Services,D2633,Computer Equipment,104.54,Lloyds Bank,Computer Equipment - Computer peripherals,2040102,202212
Rother District Council,09/09/2022,101RESOURCES,Resources,20239,Computer Services,D2633,Computer Equipment,922.42,Lloyds Bank,,2040102,202212
Rother District Council,09/09/2022,091HOUSING,Housing and Community Services,20236,Customer Services and Development,D2633,Computer Equipment,8.32,Lloyds Bank,Computer Equipment - New - Computer Hardware,2040106,202212
Rother District Council,09/09/2022,999NOREPORT,Housing and Community Services,70751,Capital - Temporary Accommodation,N1009,Furniture & Fittings,787.48,Lloyds Bank,Furniture and Fittings for TA purchases,2040098,202212
Rother District Council,09/09/2022,999NOREPORT,Housing and Community Services,70751,Capital - Temporary Accommodation,N1009,Furniture & Fittings,-66.99,Lloyds Bank,Furniture and Fittings for TA purchases,2040098,202212
Rother District Council,12/09/2022,101RESOURCES,Resources,20209,Corporate management,D2513,Hired and Contracted services,977.01,Lloyds Bank,Bank Charges,2038419,202210
Rother District Council,12/09/2022,101RESOURCES,Resources,20209,Corporate management,D2513,Hired and Contracted services,287.7,Lloyds Bank,Bank Charges,2038428,202210
Rother District Council,12/09/2022,101RESOURCES,Resources,20209,Corporate management,D2513,Hired and Contracted services,59.75,Lloyds Bank,Bank Charges,2040232,202212
Rother District Council,13/09/2022,101RESOURCES,Resources,20242,Communications-Phones,D2621,Telephones,110,O2 (UK) Ltd,,2038320,202212
Rother District Council,13/09/2022,101RESOURCES,Resources,20242,Communications-Phones,D2621,Telephones,55,O2 (UK) Ltd,,2038321,202212
Rother District Council,13/09/2022,101RESOURCES,Resources,20242,Communications-Phones,D2621,Telephones,155,O2 (UK) Ltd,,2038322,202212
Rother District Council,13/09/2022,101RESOURCES,Resources,20242,Communications-Phones,D2621,Telephones,326,O2 (UK) Ltd,,2038323,202212
Rother District Council,13/09/2022,101RESOURCES,Resources,20242,Communications-Phones,D2621,Telephones,548,O2 (UK) Ltd,,2038324,202212
Rother District Council,13/09/2022,101RESOURCES,Resources,20242,Communications-Phones,D2621,Telephones,601.06,O2 (UK) Ltd,,2038325,202212
Rother District Council,15/09/2022,091HOUSING,Housing and Community Services,20145,Maintenance Services,C1101,Vehicle Repairs & Servicing,22.49,Allstar Business Solutions,Vehicle Repairs & Servicing,2038302,202210
Rother District Council,15/09/2022,091HOUSING,Housing and Community Services,20145,Maintenance Services,C1104,Derv,53.34,Allstar Business Solutions,,2038302,202210
Rother District Council,15/09/2022,091HOUSING,Housing and Community Services,20145,Maintenance Services,C1104,Derv,60.01,Allstar Business Solutions,,2038302,202210
Rother District Council,15/09/2022,091HOUSING,Housing and Community Services,20145,Maintenance Services,C1104,Derv,61.68,Allstar Business Solutions,,2038302,202210
Rother District Council,15/09/2022,091HOUSING,Housing and Community Services,20145,Maintenance Services,C1104,Derv,5.7,Allstar Business Solutions,,2038302,202210
Rother District Council,15/09/2022,091HOUSING,Housing and Community Services,20145,Maintenance Services,C1104,Derv,106.47,Allstar Business Solutions,,2038302,202210
Rother District Council,15/09/2022,091HOUSING,Housing and Community Services,20145,Maintenance Services,C1104,Derv,105.06,Allstar Business Solutions,,2038302,202210
Rother District Council,15/09/2022,091HOUSING,Housing and Community Services,20145,Maintenance Services,C1104,Derv,107.87,Allstar Business Solutions,,2038302,202210
Rother District Council,15/09/2022,091HOUSING,Housing and Community Services,20145,Maintenance Services,C1104,Derv,86.91,Allstar Business Solutions,,2038302,202210
Rother District Council,16/09/2022,071STRAT,Strategy and Planning,20258,BC Dangerous Structures H+R Partnership,D2513,Hired and Contracted services,12,H M Land Registry,Hired and contracted services - Env H-Land Registry,2038343,202211
Rother District Council,16/09/2022,071STRAT,Strategy and Planning,20246,Planning Applications,D2513,Hired and Contracted services,9,H M Land Registry,Hired and contracted services - Land Registry-Planning,2038343,202211
Rother District Council,16/09/2022,081ACQUISIT,"Acquisitions, Transformation and Regeneration",20144,Property Management,D2513,Hired and Contracted services,12,H M Land Registry,Hired and contracted services - Land Registry-Property Management,2038343,202211
Rother District Council,16/09/2022,041ENVIRON,Environmental Services,32134,EH Pollution R + W Partnership,D2513,Hired and Contracted services,3,H M Land Registry,Hired and contracted services - Env H-Land Registry,2038343,202211
Rother District Council,16/09/2022,091HOUSING,Housing and Community Services,20200,Housing Needs - HB (Housing Benefit),D2513,Hired and Contracted services,6,H M Land Registry,Hired and contracted services - Housing-Land Registry,2038343,202211
Rother District Council,16/09/2022,101RESOURCES,Resources,20216,Cost Of Collection,D2513,Hired and Contracted services,6,H M Land Registry,Hired and contracted services - Council Tax-Land Registry Enquiries,2038343,202211
Rother District Council,21/09/2022,041ENVIRON,Environmental Services,32144,EH Environmental Services Admin R + W Partnership,D1201,Equipment & Materials,8,SuperStitch 86,Equipment & Materials - Carriage/Handling Charge,2038142,202210
Rother District Council,21/09/2022,041ENVIRON,Environmental Services,32144,EH Environmental Services Admin R + W Partnership,D2352,Clothing and Uniforms,119.92,SuperStitch 86,Clothing and Uniforms - EnvH- Protective Clothing EnvHealth,2038142,202210
Rother District Council,23/09/2022,091HOUSING,Housing and Community Services,20261,"TA Purchases (prev - 41 Jameson Mews, Bexhill on Sea)",B2201,Electricity,101.53,Laser Energy Buying Group (Kent County Council Commercial Services),Electricity - Electricity Charges,2039120,202212
Rother District Council,23/09/2022,091HOUSING,Housing and Community Services,20261,"TA Purchases (prev - 41 Jameson Mews, Bexhill on Sea)",B2201,Electricity,94.98,Laser Energy Buying Group (Kent County Council Commercial Services),Electricity - Electricity Charges,2039120,202212
Rother District Council,23/09/2022,091HOUSING,Housing and Community Services,20261,"TA Purchases (prev - 41 Jameson Mews, Bexhill on Sea)",B2201,Electricity,35.92,Laser Energy Buying Group (Kent County Council Commercial Services),Electricity - Electricity Charges,2039120,202212
Rother District Council,23/09/2022,091HOUSING,Housing and Community Services,20261,"TA Purchases (prev - 41 Jameson Mews, Bexhill on Sea)",B2201,Electricity,64.53,Laser Energy Buying Group (Kent County Council Commercial Services),Electricity - Electricity Charges,2039120,202212
Rother District Council,23/09/2022,091HOUSING,Housing and Community Services,20145,Maintenance Services,B2201,Electricity,59.88,Laser Energy Buying Group (Kent County Council Commercial Services),Electricity - Electricity Charges,2039120,202212
Rother District Council,23/09/2022,091HOUSING,Housing and Community Services,20261,"TA Purchases (prev - 41 Jameson Mews, Bexhill on Sea)",B2201,Electricity,244.82,Laser Energy Buying Group (Kent County Council Commercial Services),Electricity - Electricity Charges,2039120,202212
Rother District Council,23/09/2022,081ACQUISIT,"Acquisitions, Transformation and Regeneration",20308,Amherst Road,B2201,Electricity,755.57,Laser Energy Buying Group (Kent County Council Commercial Services),Electricity - Electricity Charges,2039120,202212
Rother District Council,23/09/2022,081ACQUISIT,"Acquisitions, Transformation and Regeneration",20308,Amherst Road,B2201,Electricity,664.43,Laser Energy Buying Group (Kent County Council Commercial Services),Electricity - Electricity Charges,2039120,202212
Rother District Council,23/09/2022,091HOUSING,Housing and Community Services,20107,Camber Beach & Foreshore,B2201,Electricity,129.54,Laser Energy Buying Group (Kent County Council Commercial Services),Electricity - Electricity Charges,2039120,202212
Rother District Council,23/09/2022,091HOUSING,Housing and Community Services,20107,Camber Beach & Foreshore,B2201,Electricity,28.9,Laser Energy Buying Group (Kent County Council Commercial Services),Electricity - Electricity Charges,2039120,202212
Rother District Council,23/09/2022,091HOUSING,Housing and Community Services,20107,Camber Beach & Foreshore,B2201,Electricity,29.66,Laser Energy Buying Group (Kent County Council Commercial Services),Electricity - Electricity Charges,2039120,202212
Rother District Council,23/09/2022,091HOUSING,Housing and Community Services,20108,Bexhill Promenade & Foreshore,B2201,Electricity,28.07,Laser Energy Buying Group (Kent County Council Commercial Services),Electricity - Electricity Charges,2039120,202212
Rother District Council,23/09/2022,091HOUSING,Housing and Community Services,20108,Bexhill Promenade & Foreshore,B2201,Electricity,50.28,Laser Energy Buying Group (Kent County Council Commercial Services),Electricity - Electricity Charges,2039120,202212
Rother District Council,23/09/2022,091HOUSING,Housing and Community Services,20108,Bexhill Promenade & Foreshore,B2201,Electricity,25.12,Laser Energy Buying Group (Kent County Council Commercial Services),Electricity - Electricity Charges,2039120,202212
Rother District Council,23/09/2022,091HOUSING,Housing and Community Services,20108,Bexhill Promenade & Foreshore,B2201,Electricity,12.56,Laser Energy Buying Group (Kent County Council Commercial Services),Electricity - Electricity Charges,2039120,202212
Rother District Council,23/09/2022,091HOUSING,Housing and Community Services,20108,Bexhill Promenade & Foreshore,B2201,Electricity,12.56,Laser Energy Buying Group (Kent County Council Commercial Services),Electricity - Electricity Charges,2039120,202212
Rother District Council,23/09/2022,091HOUSING,Housing and Community Services,20108,Bexhill Promenade & Foreshore,B2201,Electricity,12.56,Laser Energy Buying Group (Kent County Council Commercial Services),Electricity - Electricity Charges,2039120,202212
Rother District Council,23/09/2022,091HOUSING,Housing and Community Services,20108,Bexhill Promenade & Foreshore,B2201,Electricity,32.69,Laser Energy Buying Group (Kent County Council Commercial Services),Electricity - Electricity Charges,2039120,202212
Rother District Council,23/09/2022,091HOUSING,Housing and Community Services,20108,Bexhill Promenade & Foreshore,B2201,Electricity,24.94,Laser Energy Buying Group (Kent County Council Commercial Services),Electricity - Electricity Charges,2039120,202212
Rother District Council,23/09/2022,091HOUSING,Housing and Community Services,20108,Bexhill Promenade & Foreshore,B2201,Electricity,42.62,Laser Energy Buying Group (Kent County Council Commercial Services),Electricity - Electricity Charges,2039120,202212
Rother District Council,23/09/2022,091HOUSING,Housing and Community Services,20108,Bexhill Promenade & Foreshore,B2201,Electricity,29.49,Laser Energy Buying Group (Kent County Council Commercial Services),Electricity - Electricity Charges,2039120,202212
Rother District Council,23/09/2022,091HOUSING,Housing and Community Services,20108,Bexhill Promenade & Foreshore,B2201,Electricity,29.39,Laser Energy Buying Group (Kent County Council Commercial Services),Electricity - Electricity Charges,2039120,202212
Rother District Council,23/09/2022,091HOUSING,Housing and Community Services,20108,Bexhill Promenade & Foreshore,B2201,Electricity,31.3,Laser Energy Buying Group (Kent County Council Commercial Services),Electricity - Electricity Charges,2039120,202212
Rother District Council,23/09/2022,091HOUSING,Housing and Community Services,20108,Bexhill Promenade & Foreshore,B2201,Electricity,28.21,Laser Energy Buying Group (Kent County Council Commercial Services),Electricity - Electricity Charges,2039120,202212
Rother District Council,23/09/2022,091HOUSING,Housing and Community Services,20114,Bexhill Parks & Open Spaces,B2201,Electricity,47.05,Laser Energy Buying Group (Kent County Council Commercial Services),Electricity - Electricity Charges,2039120,202212
Rother District Council,23/09/2022,091HOUSING,Housing and Community Services,20114,Bexhill Parks & Open Spaces,B2201,Electricity,25.7,Laser Energy Buying Group (Kent County Council Commercial Services),Electricity - Electricity Charges,2039120,202212
Rother District Council,23/09/2022,091HOUSING,Housing and Community Services,20115,Rye Area Parks & Gardens,B2201,Electricity,29.47,Laser Energy Buying Group (Kent County Council Commercial Services),Electricity - Electricity Charges,2039120,202212
Rother District Council,23/09/2022,091HOUSING,Housing and Community Services,20114,Bexhill Parks & Open Spaces,B2201,Electricity,41.19,Laser Energy Buying Group (Kent County Council Commercial Services),Electricity - Electricity Charges,2039120,202212
Rother District Council,23/09/2022,091HOUSING,Housing and Community Services,20115,Rye Area Parks & Gardens,B2201,Electricity,24.76,Laser Energy Buying Group (Kent County Council Commercial Services),Electricity - Electricity Charges,2039120,202212
Rother District Council,23/09/2022,091HOUSING,Housing and Community Services,20114,Bexhill Parks & Open Spaces,B2201,Electricity,36.46,Laser Energy Buying Group (Kent County Council Commercial Services),Electricity - Electricity Charges,2039120,202212
Rother District Council,23/09/2022,091HOUSING,Housing and Community Services,20114,Bexhill Parks & Open Spaces,B2201,Electricity,30.95,Laser Energy Buying Group (Kent County Council Commercial Services),Electricity - Electricity Charges,2039120,202212
Rother District Council,23/09/2022,091HOUSING,Housing and Community Services,20114,Bexhill Parks & Open Spaces,B2201,Electricity,34.24,Laser Energy Buying Group (Kent County Council Commercial Services),Electricity - Electricity Charges,2039120,202212
Rother District Council,23/09/2022,091HOUSING,Housing and Community Services,20128,Public Conveniences,B2201,Electricity,44.43,Laser Energy Buying Group (Kent County Council Commercial Services),Electricity - Electricity Charges,2039120,202212
Rother District Council,23/09/2022,091HOUSING,Housing and Community Services,20128,Public Conveniences,B2201,Electricity,29.85,Laser Energy Buying Group (Kent County Council Commercial Services),Electricity - Electricity Charges,2039120,202212
Rother District Council,23/09/2022,091HOUSING,Housing and Community Services,20128,Public Conveniences,B2201,Electricity,30.89,Laser Energy Buying Group (Kent County Council Commercial Services),Electricity - Electricity Charges,2039120,202212
Rother District Council,23/09/2022,091HOUSING,Housing and Community Services,20128,Public Conveniences,B2201,Electricity,38.92,Laser Energy Buying Group (Kent County Council Commercial Services),Electricity - Electricity Charges,2039120,202212
Rother District Council,23/09/2022,091HOUSING,Housing and Community Services,20128,Public Conveniences,B2201,Electricity,29.47,Laser Energy Buying Group (Kent County Council Commercial Services),Electricity - Electricity Charges,2039120,202212
Rother District Council,23/09/2022,091HOUSING,Housing and Community Services,20128,Public Conveniences,B2201,Electricity,38.17,Laser Energy Buying Group (Kent County Council Commercial Services),Electricity - Electricity Charges,2039120,202212
Rother District Council,23/09/2022,091HOUSING,Housing and Community Services,20128,Public Conveniences,B2201,Electricity,49.13,Laser Energy Buying Group (Kent County Council Commercial Services),Electricity - Electricity Charges,2039120,202212
Rother District Council,23/09/2022,091HOUSING,Housing and Community Services,20137,Car Parks,B2201,Electricity,34.01,Laser Energy Buying Group (Kent County Council Commercial Services),Electricity - Electricity Charges,2039120,202212
Rother District Council,23/09/2022,091HOUSING,Housing and Community Services,20137,Car Parks,B2201,Electricity,48.18,Laser Energy Buying Group (Kent County Council Commercial Services),Electricity - Electricity Charges,2039120,202212
Rother District Council,23/09/2022,081ACQUISIT,"Acquisitions, Transformation and Regeneration",20150,Peasmarsh Workshops,B2201,Electricity,29.76,Laser Energy Buying Group (Kent County Council Commercial Services),Electricity - Electricity Charges,2039120,202212
Rother District Council,23/09/2022,091HOUSING,Housing and Community Services,20128,Public Conveniences,B2201,Electricity,94.16,Laser Energy Buying Group (Kent County Council Commercial Services),Electricity - Electricity Charges,2039120,202212
Rother District Council,23/09/2022,091HOUSING,Housing and Community Services,20128,Public Conveniences,B2201,Electricity,33.99,Laser Energy Buying Group (Kent County Council Commercial Services),Electricity - Electricity Charges,2039120,202212
Rother District Council,23/09/2022,091HOUSING,Housing and Community Services,20128,Public Conveniences,B2201,Electricity,171.8,Laser Energy Buying Group (Kent County Council Commercial Services),Electricity - Electricity Charges,2039120,202212
Rother District Council,23/09/2022,091HOUSING,Housing and Community Services,20128,Public Conveniences,B2201,Electricity,63.3,Laser Energy Buying Group (Kent County Council Commercial Services),Electricity - Electricity Charges,2039120,202212
Rother District Council,23/09/2022,091HOUSING,Housing and Community Services,20128,Public Conveniences,B2201,Electricity,121.33,Laser Energy Buying Group (Kent County Council Commercial Services),Electricity - Electricity Charges,2039120,202212
Rother District Council,23/09/2022,091HOUSING,Housing and Community Services,20128,Public Conveniences,B2201,Electricity,177.48,Laser Energy Buying Group (Kent County Council Commercial Services),Electricity - Electricity Charges,2039120,202212
Rother District Council,23/09/2022,091HOUSING,Housing and Community Services,20128,Public Conveniences,B2201,Electricity,43.46,Laser Energy Buying Group (Kent County Council Commercial Services),Electricity - Electricity Charges,2039120,202212
Rother District Council,23/09/2022,091HOUSING,Housing and Community Services,20128,Public Conveniences,B2201,Electricity,45.38,Laser Energy Buying Group (Kent County Council Commercial Services),Electricity - Electricity Charges,2039120,202212
Rother District Council,23/09/2022,081ACQUISIT,"Acquisitions, Transformation and Regeneration",20151,Udimore Workshops,B2201,Electricity,28.72,Laser Energy Buying Group (Kent County Council Commercial Services),Electricity - Electricity Charges,2039120,202212
Rother District Council,23/09/2022,091HOUSING,Housing and Community Services,20128,Public Conveniences,B2201,Electricity,37.98,Laser Energy Buying Group (Kent County Council Commercial Services),Electricity - Electricity Charges,2039120,202212
Rother District Council,23/09/2022,091HOUSING,Housing and Community Services,20128,Public Conveniences,B2201,Electricity,36.95,Laser Energy Buying Group (Kent County Council Commercial Services),Electricity - Electricity Charges,2039120,202212
Rother District Council,23/09/2022,091HOUSING,Housing and Community Services,20128,Public Conveniences,B2201,Electricity,150.9,Laser Energy Buying Group (Kent County Council Commercial Services),Electricity - Electricity Charges,2039120,202212
Rother District Council,23/09/2022,091HOUSING,Housing and Community Services,20128,Public Conveniences,B2201,Electricity,51.96,Laser Energy Buying Group (Kent County Council Commercial Services),Electricity - Electricity Charges,2039120,202212
Rother District Council,23/09/2022,091HOUSING,Housing and Community Services,20128,Public Conveniences,B2201,Electricity,43.65,Laser Energy Buying Group (Kent County Council Commercial Services),Electricity - Electricity Charges,2039120,202212
Rother District Council,23/09/2022,091HOUSING,Housing and Community Services,20128,Public Conveniences,B2201,Electricity,31.93,Laser Energy Buying Group (Kent County Council Commercial Services),Electricity - Electricity Charges,2039120,202212
Rother District Council,23/09/2022,091HOUSING,Housing and Community Services,20128,Public Conveniences,B2201,Electricity,60.09,Laser Energy Buying Group (Kent County Council Commercial Services),Electricity - Electricity Charges,2039120,202212
Rother District Council,23/09/2022,091HOUSING,Housing and Community Services,20128,Public Conveniences,B2201,Electricity,6.42,Laser Energy Buying Group (Kent County Council Commercial Services),Electricity - Electricity Charges,2039120,202212
Rother District Council,23/09/2022,081ACQUISIT,"Acquisitions, Transformation and Regeneration",20148,Misc Land & Buildings,B2201,Electricity,99.78,Laser Energy Buying Group (Kent County Council Commercial Services),Electricity - Electricity Charges,2039120,202212
Rother District Council,23/09/2022,091HOUSING,Housing and Community Services,20128,Public Conveniences,B2201,Electricity,59.52,Laser Energy Buying Group (Kent County Council Commercial Services),Electricity - Electricity Charges,2039120,202212
Rother District Council,23/09/2022,091HOUSING,Housing and Community Services,20128,Public Conveniences,B2201,Electricity,54.7,Laser Energy Buying Group (Kent County Council Commercial Services),Electricity - Electricity Charges,2039120,202212
Rother District Council,23/09/2022,081ACQUISIT,"Acquisitions, Transformation and Regeneration",20148,Misc Land & Buildings,B2201,Electricity,24.76,Laser Energy Buying Group (Kent County Council Commercial Services),Electricity - Electricity Charges,2039120,202212
Rother District Council,23/09/2022,081ACQUISIT,"Acquisitions, Transformation and Regeneration",20151,Udimore Workshops,B2201,Electricity,26.87,Laser Energy Buying Group (Kent County Council Commercial Services),Electricity - Electricity Charges,2039120,202212
Rother District Council,23/09/2022,091HOUSING,Housing and Community Services,20128,Public Conveniences,B2201,Electricity,41.38,Laser Energy Buying Group (Kent County Council Commercial Services),Electricity - Electricity Charges,2039120,202212
Rother District Council,23/09/2022,081ACQUISIT,"Acquisitions, Transformation and Regeneration",20151,Udimore Workshops,B2201,Electricity,27.77,Laser Energy Buying Group (Kent County Council Commercial Services),Electricity - Electricity Charges,2039120,202212
Rother District Council,23/09/2022,081ACQUISIT,"Acquisitions, Transformation and Regeneration",20151,Udimore Workshops,B2201,Electricity,26.87,Laser Energy Buying Group (Kent County Council Commercial Services),Electricity - Electricity Charges,2039120,202212
Rother District Council,23/09/2022,091HOUSING,Housing and Community Services,20128,Public Conveniences,B2201,Electricity,54.61,Laser Energy Buying Group (Kent County Council Commercial Services),Electricity - Electricity Charges,2039120,202212
Rother District Council,23/09/2022,081ACQUISIT,"Acquisitions, Transformation and Regeneration",20104,Ancient Monuments & Gazebo,B2201,Electricity,27.77,Laser Energy Buying Group (Kent County Council Commercial Services),Electricity - Electricity Charges,2039120,202212
Rother District Council,23/09/2022,091HOUSING,Housing and Community Services,20128,Public Conveniences,B2201,Electricity,148.27,Laser Energy Buying Group (Kent County Council Commercial Services),Electricity - Electricity Charges,2039120,202212
Rother District Council,23/09/2022,091HOUSING,Housing and Community Services,20128,Public Conveniences,B2201,Electricity,35.71,Laser Energy Buying Group (Kent County Council Commercial Services),Electricity - Electricity Charges,2039120,202212
Rother District Council,23/09/2022,081ACQUISIT,"Acquisitions, Transformation and Regeneration",20155,Investment properties,B2201,Electricity,30.9,Laser Energy Buying Group (Kent County Council Commercial Services),Electricity - Electricity Charges,2039120,202212
Rother District Council,23/09/2022,031RESOURCES,Chief Executive & Corporate Core,20176,Administrative Offices - Print Room,B2201,Electricity,177.06,Laser Energy Buying Group (Kent County Council Commercial Services),Electricity - Electricity Charges,2039120,202212
Rother District Council,23/09/2022,081ACQUISIT,"Acquisitions, Transformation and Regeneration",20154,Committee Property Account,B2201,Electricity,10.03,Laser Energy Buying Group (Kent County Council Commercial Services),Electricity - Electricity Charges,2039120,202212
Rother District Council,23/09/2022,081ACQUISIT,"Acquisitions, Transformation and Regeneration",20154,Committee Property Account,B2201,Electricity,10.03,Laser Energy Buying Group (Kent County Council Commercial Services),Electricity - Electricity Charges,2039120,202212
Rother District Council,23/09/2022,081ACQUISIT,"Acquisitions, Transformation and Regeneration",20154,Committee Property Account,B2201,Electricity,10.03,Laser Energy Buying Group (Kent County Council Commercial Services),Electricity - Electricity Charges,2039120,202212
Rother District Council,23/09/2022,081ACQUISIT,"Acquisitions, Transformation and Regeneration",20154,Committee Property Account,B2201,Electricity,10.03,Laser Energy Buying Group (Kent County Council Commercial Services),Electricity - Electricity Charges,2039120,202212
Rother District Council,23/09/2022,081ACQUISIT,"Acquisitions, Transformation and Regeneration",20154,Committee Property Account,B2201,Electricity,25.12,Laser Energy Buying Group (Kent County Council Commercial Services),Electricity - Electricity Charges,2039120,202212
Rother District Council,23/09/2022,081ACQUISIT,"Acquisitions, Transformation and Regeneration",20154,Committee Property Account,B2201,Electricity,25.12,Laser Energy Buying Group (Kent County Council Commercial Services),Electricity - Electricity Charges,2039120,202212
Rother District Council,23/09/2022,081ACQUISIT,"Acquisitions, Transformation and Regeneration",20154,Committee Property Account,B2201,Electricity,25.12,Laser Energy Buying Group (Kent County Council Commercial Services),Electricity - Electricity Charges,2039120,202212
Rother District Council,23/09/2022,081ACQUISIT,"Acquisitions, Transformation and Regeneration",20154,Committee Property Account,B2201,Electricity,25.12,Laser Energy Buying Group (Kent County Council Commercial Services),Electricity - Electricity Charges,2039120,202212
Rother District Council,23/09/2022,081ACQUISIT,"Acquisitions, Transformation and Regeneration",20154,Committee Property Account,B2201,Electricity,25.12,Laser Energy Buying Group (Kent County Council Commercial Services),Electricity - Electricity Charges,2039120,202212
Rother District Council,23/09/2022,081ACQUISIT,"Acquisitions, Transformation and Regeneration",20154,Committee Property Account,B2201,Electricity,25.12,Laser Energy Buying Group (Kent County Council Commercial Services),Electricity - Electricity Charges,2039120,202212
Rother District Council,23/09/2022,081ACQUISIT,"Acquisitions, Transformation and Regeneration",20154,Committee Property Account,B2201,Electricity,25.12,Laser Energy Buying Group (Kent County Council Commercial Services),Electricity - Electricity Charges,2039120,202212
Rother District Council,23/09/2022,081ACQUISIT,"Acquisitions, Transformation and Regeneration",20154,Committee Property Account,B2201,Electricity,"1,243.44",Laser Energy Buying Group (Kent County Council Commercial Services),Electricity - Electricity Charges,2039120,202212
Rother District Council,23/09/2022,081ACQUISIT,"Acquisitions, Transformation and Regeneration",20154,Committee Property Account,B2201,Electricity,24.94,Laser Energy Buying Group (Kent County Council Commercial Services),Electricity - Electricity Charges,2039120,202212
Rother District Council,23/09/2022,081ACQUISIT,"Acquisitions, Transformation and Regeneration",20154,Committee Property Account,B2201,Electricity,24.94,Laser Energy Buying Group (Kent County Council Commercial Services),Electricity - Electricity Charges,2039120,202212
Rother District Council,23/09/2022,081ACQUISIT,"Acquisitions, Transformation and Regeneration",20154,Committee Property Account,B2201,Electricity,24.94,Laser Energy Buying Group (Kent County Council Commercial Services),Electricity - Electricity Charges,2039120,202212
Rother District Council,23/09/2022,031RESOURCES,Chief Executive & Corporate Core,20177,Administrative Offices - Rear Depot,B2201,Electricity,36.65,Laser Energy Buying Group (Kent County Council Commercial Services),Electricity - Electricity Charges,2039120,202212
Rother District Council,23/09/2022,081ACQUISIT,"Acquisitions, Transformation and Regeneration",20153,"Elva Business Centre, Bexhill",B2201,Electricity,921.64,Laser Energy Buying Group (Kent County Council Commercial Services),Electricity - Electricity Charges,2039120,202212
Rother District Council,23/09/2022,031RESOURCES,Chief Executive & Corporate Core,20173,Administrative Offices - Town Hall,B2201,Electricity,"2,304.00",Laser Energy Buying Group (Kent County Council Commercial Services),Electricity - Electricity Charges,2039120,202212
Rother District Council,23/09/2022,081ACQUISIT,"Acquisitions, Transformation and Regeneration",20308,Amherst Road,B2202,Gas,734.5,Laser Energy Buying Group (Kent County Council Commercial Services),Gas - Gas Charges,2039137,202212
Rother District Council,23/09/2022,081ACQUISIT,"Acquisitions, Transformation and Regeneration",20154,Committee Property Account,B2202,Gas,12.71,Laser Energy Buying Group (Kent County Council Commercial Services),Gas - Gas Charges,2039137,202212
Rother District Council,23/09/2022,031RESOURCES,Chief Executive & Corporate Core,20176,Administrative Offices - Print Room,B2202,Gas,59.65,Laser Energy Buying Group (Kent County Council Commercial Services),Gas - Gas Charges,2039137,202212
Rother District Council,23/09/2022,031RESOURCES,Chief Executive & Corporate Core,20173,Administrative Offices - Town Hall,B2202,Gas,130.82,Laser Energy Buying Group (Kent County Council Commercial Services),Gas - Gas Charges,2039137,202212
Rother District Council,23/09/2022,071STRAT,Strategy and Planning,20258,BC Dangerous Structures H+R Partnership,D2513,Hired and Contracted services,3,H M Land Registry,Hired and contracted services - Env H-Land Registry,2038344,202211
Rother District Council,23/09/2022,071STRAT,Strategy and Planning,20246,Planning Applications,D2513,Hired and Contracted services,12,H M Land Registry,Hired and contracted services - Land Registry-Planning,2038344,202211
Rother District Council,23/09/2022,081ACQUISIT,"Acquisitions, Transformation and Regeneration",20144,Property Management,D2513,Hired and Contracted services,9,H M Land Registry,Hired and contracted services - Land Registry-Property Management,2038344,202211
Rother District Council,23/09/2022,041ENVIRON,Environmental Services,32134,EH Pollution R + W Partnership,D2513,Hired and Contracted services,6,H M Land Registry,Hired and contracted services - Env H-Land Registry,2038344,202211
Rother District Council,23/09/2022,091HOUSING,Housing and Community Services,20200,Housing Needs - HB (Housing Benefit),D2513,Hired and Contracted services,3,H M Land Registry,Hired and contracted services - Housing-Land Registry,2038344,202211
Rother District Council,23/09/2022,101RESOURCES,Resources,20216,Cost Of Collection,D2513,Hired and Contracted services,12,H M Land Registry,Hired and contracted services - Council Tax-Land Registry Enquiries,2038344,202211
Rother District Council,24/09/2022,091HOUSING,Housing and Community Services,20317,Rother Leasing Scheme,D2514,Accommodation Costs,583.4,Allicin International Ltd,Accommodation Costs - Homelessness services Rent in Advance for Homeless,2038245,202210
Rother District Council,26/09/2022,081ACQUISIT,"Acquisitions, Transformation and Regeneration",20144,Property Management,D2513,Hired and Contracted services,650,Hunt Commercial Property Ltd,Hired and contracted services - Valuation Services,2039121,202212
Rother District Council,29/09/2022,091HOUSING,Housing and Community Services,20145,Maintenance Services,D1201,Equipment & Materials,55,C-Scope International Ltd,Equipment & Materials - Purchase of Tools,2038525,202211
Rother District Council,30/09/2022,091HOUSING,Housing and Community Services,20107,Camber Beach & Foreshore,C1104,Derv,78.29,Allstar Business Solutions,,2038297,202210
Rother District Council,30/09/2022,091HOUSING,Housing and Community Services,20107,Camber Beach & Foreshore,C1104,Derv,1.9,Allstar Business Solutions,Derv - Fuel Service fee payable on fuel cards,2038297,202210
Rother District Council,30/09/2022,041ENVIRON,Environmental Services,32136,EH Pest Control R + W Partnership,C1104,Derv,1.9,Allstar Business Solutions,Derv - Fuel Service fee payable on fuel cards,2038297,202210
Rother District Council,30/09/2022,041ENVIRON,Environmental Services,32136,EH Pest Control R + W Partnership,C1104,Derv,64.17,Allstar Business Solutions,,2038297,202210
Rother District Council,30/09/2022,091HOUSING,Housing and Community Services,20145,Maintenance Services,C1104,Derv,62.72,Allstar Business Solutions,,2038297,202210
Rother District Council,30/09/2022,091HOUSING,Housing and Community Services,20145,Maintenance Services,C1104,Derv,104.47,Allstar Business Solutions,,2038297,202210
Rother District Council,30/09/2022,091HOUSING,Housing and Community Services,20145,Maintenance Services,C1104,Derv,76.8,Allstar Business Solutions,,2038297,202210
Rother District Council,30/09/2022,071STRAT,Strategy and Planning,20258,BC Dangerous Structures H+R Partnership,D2513,Hired and Contracted services,9,H M Land Registry,Hired and contracted services - Env H-Land Registry,2038345,202210
Rother District Council,30/09/2022,071STRAT,Strategy and Planning,20246,Planning Applications,D2513,Hired and Contracted services,18,H M Land Registry,Hired and contracted services - Land Registry-Planning,2038345,202210
Rother District Council,30/09/2022,101RESOURCES,Resources,20209,Corporate management,D2513,Hired and Contracted services,790.58,allpay.net Ltd,Hired and contracted services - Allpay Card/Rep/Let Chrg - Vatable,2038281,202210
Rother District Council,30/09/2022,101RESOURCES,Resources,20209,Corporate management,D2513,Hired and Contracted services,16.4,allpay.net Ltd,Hired and contracted services - Allpay Card/Rep/Let Chrg - Vatable,2038282,202210
Rother District Council,30/09/2022,101RESOURCES,Resources,20209,Corporate management,D2513,Hired and Contracted services,24.05,allpay.net Ltd,Hired and contracted services - Allpay Card/Rep/Let Chrg - Vatable,2038283,202210
Rother District Council,30/09/2022,101RESOURCES,Resources,20209,Corporate management,D2513,Hired and Contracted services,11.09,allpay.net Ltd,Hired and contracted services - Allpay Card/Rep/Let Chrg - Vatable,2038284,202210
Rother District Council,30/09/2022,101RESOURCES,Resources,20216,Cost Of Collection,D2513,Hired and Contracted services,30,H M Land Registry,Hired and contracted services - Council Tax-Land Registry Enquiries,2038345,202210
Rother District Council,30/09/2022,999NOREPORT,"Acquisitions, Transformation and Regeneration",70736,Capital - 18-40 Beeching Road Refurbishment,N1003,Construction/Conversion,"4,740.97",Alfa Electric Ltd,Construction/Conversion Capital-Contract Payments - General,2038168,202210
Rother District Council,30/09/2022,999NOREPORT,"Acquisitions, Transformation and Regeneration",70754,Capital - King Offa Residential Development Scheme,N1004,Architects & Consultant Fees,"3,107.50",Campbell Reith Hill LLP,Architects & Consultant Fees Capital-Architect and Conslt Fees,2038178,202210
Rother District Council,30/09/2022,999NOREPORT,"Acquisitions, Transformation and Regeneration",70754,Capital - King Offa Residential Development Scheme,N1004,Architects & Consultant Fees,600,Campbell Reith Hill LLP,Architects & Consultant Fees Capital-Architect and Conslt Fees,2038178,202210
Rother District Council,01/10/2022,101RESOURCES,Resources,20209,Corporate management,D2513,Hired and Contracted services,233,Her Majestys Court Service,Hired and contracted services - Court Costs/Fees,2038376,202210
Rother District Council,01/10/2022,101RESOURCES,Resources,20209,Corporate management,D2513,Hired and Contracted services,20,Lloyds Bank,Bank Charges,2038378,202210
Rother District Council,01/10/2022,101RESOURCES,Resources,20209,Corporate management,D2513,Hired and Contracted services,20,Lloyds Bank,Bank Charges,2038383,202210
Rother District Council,01/10/2022,101RESOURCES,Resources,20209,Corporate management,D2513,Hired and Contracted services,20,Lloyds Bank,Bank Charges,2038386,202210
Rother District Council,01/10/2022,101RESOURCES,Resources,20209,Corporate management,D2513,Hired and Contracted services,20,Lloyds Bank,Bank Charges,2038388,202210
Rother District Council,01/10/2022,101RESOURCES,Resources,20209,Corporate management,D2513,Hired and Contracted services,"1,851.22",Lloyds Bank,Bank Charges,2038392,202210
Rother District Council,01/10/2022,101RESOURCES,Resources,20209,Corporate management,D2513,Hired and Contracted services,20,Lloyds Bank,Bank Charges,2038397,202210
Rother District Council,01/10/2022,101RESOURCES,Resources,20209,Corporate management,D2513,Hired and Contracted services,20,Lloyds Bank,Bank Charges,2038398,202210
Rother District Council,01/10/2022,101RESOURCES,Resources,20209,Corporate management,D2513,Hired and Contracted services,20,Lloyds Bank,Bank Charges,2038402,202210
Rother District Council,01/10/2022,101RESOURCES,Resources,20209,Corporate management,D2513,Hired and Contracted services,866.58,Lloyds Bank,Bank Charges,2038406,202210
Rother District Council,01/10/2022,101RESOURCES,Resources,20209,Corporate management,D2513,Hired and Contracted services,20,Lloyds Bank,Bank Charges,2038410,202210
Rother District Council,01/10/2022,101RESOURCES,Resources,20209,Corporate management,D2513,Hired and Contracted services,50,Lloyds Bank,Bank Charges,2038417,202210
Rother District Council,01/10/2022,101RESOURCES,Resources,20209,Corporate management,D2513,Hired and Contracted services,20.09,Merchant Rentals Ltd,Hired and contracted services - Streamline Machine-Rental,2038424,202210
Rother District Council,01/10/2022,101RESOURCES,Resources,20209,Corporate management,D2513,Hired and Contracted services,311.74,Lloyds Bank,Bank Charges,2040259,202212
Rother District Council,01/10/2022,101RESOURCES,Resources,20209,Corporate management,D2513,Hired and Contracted services,38.8,Lloyds Bank,Bank Charges,2040259,202212
Rother District Council,01/10/2022,091HOUSING,Housing and Community Services,20107,Camber Beach & Foreshore,D2621,Telephones,52.95,Beaming Ltd,Telephones - Broadband Connection,2038275,202212
Rother District Council,01/10/2022,091HOUSING,Housing and Community Services,20108,Bexhill Promenade & Foreshore,D2621,Telephones,4.11,Commtel Ltd T/A Teleguard,Equipment & Materials - Access cards and systems,2038372,202210
Rother District Council,02/10/2022,101RESOURCES,Resources,20242,Communications-Phones,D2621,Telephones,31.45,TalkTalk Communications Ltd T/A TalkTalk Business,Telephones - Leased Line Rental,2038432,202212
Rother District Council,03/10/2022,091HOUSING,Housing and Community Services,20200,Housing Needs - HB (Housing Benefit),D2513,Hired and Contracted services,3,H M Land Registry,Hired and contracted services - Housing-Land Registry,2038336,202211
Rother District Council,04/10/2022,101RESOURCES,Resources,20222,Accountancy,A1110,Agency Staff,"10,050.00",Penna PLC,Agency Staff,2039151,202212
Rother District Council,04/10/2022,091HOUSING,Housing and Community Services,20108,Bexhill Promenade & Foreshore,B2201,Electricity,5.06,Ecotricity Ltd,Electricity - Electricity Charges,2039707,202212
Rother District Council,04/10/2022,091HOUSING,Housing and Community Services,20114,Bexhill Parks & Open Spaces,B2201,Electricity,33.97,Ecotricity Ltd,Electricity - Electricity Charges,2039708,202212
Rother District Council,04/10/2022,091HOUSING,Housing and Community Services,20138,Residual Highway Services,B2201,Electricity,47.66,Ecotricity Ltd,Electricity - Electricity Charges,2039706,202212
Rother District Council,04/10/2022,091HOUSING,Housing and Community Services,20137,Car Parks,B2201,Electricity,57.29,Ecotricity Ltd,Electricity - Electricity Charges,2039706,202212
Rother District Council,04/10/2022,091HOUSING,Housing and Community Services,20137,Car Parks,B2201,Electricity,31.98,Ecotricity Ltd,Electricity - Electricity Charges,2039707,202212
Rother District Council,04/10/2022,091HOUSING,Housing and Community Services,20138,Residual Highway Services,B2201,Electricity,5.05,Ecotricity Ltd,Electricity - Electricity Charges,2039707,202212
Rother District Council,04/10/2022,041ENVIRON,Environmental Services,20129,Community Safety - CCTV costs only,B2201,Electricity,429.41,Ecotricity Ltd,Electricity - Electricity Charges,2039706,202212
Rother District Council,06/10/2022,101RESOURCES,Resources,20209,Corporate management,D2513,Hired and Contracted services,30,Lloyds Bank,Bank Charges,2038426,202210
Rother District Council,06/10/2022,101RESOURCES,Resources,20209,Corporate management,D2513,Hired and Contracted services,95,Lloyds Bank,Bank Charges,2038439,202210
Rother District Council,07/10/2022,031RESOURCES,Chief Executive & Corporate Core,20156,Representing Local Interest,D2312,Refreshments,78.92,Booker Ltd,Refreshments - Catering/Refreshments for Meetings,2038328,202210
Rother District Council,07/10/2022,071STRAT,Strategy and Planning,20246,Planning Applications,D2513,Hired and Contracted services,15,H M Land Registry,Hired and contracted services - Land Registry-Planning,2038346,202210
Rother District Council,07/10/2022,041ENVIRON,Environmental Services,32144,EH Environmental Services Admin R + W Partnership,D2513,Hired and Contracted services,6,H M Land Registry,Hired and contracted services - Env H-Land Registry,2038346,202210
Rother District Council,07/10/2022,101RESOURCES,Resources,20216,Cost Of Collection,D2513,Hired and Contracted services,39,H M Land Registry,Hired and contracted services - Council Tax-Land Registry Enquiries,2038346,202210
Rother District Council,10/10/2022,081ACQUISIT,"Acquisitions, Transformation and Regeneration",20122,Economic Development,A2203,Training,260,Lloyds Bank,Training,2040268,202212
Rother District Council,10/10/2022,081ACQUISIT,"Acquisitions, Transformation and Regeneration",20150,Peasmarsh Workshops,B1100,Repairs to Premises,39.05,Lloyds Bank,Repairs to Premises - Purchase of Materials - Build Maint,2040267,202212
Rother District Council,10/10/2022,091HOUSING,Housing and Community Services,20261,"TA Purchases (prev - 41 Jameson Mews, Bexhill on Sea)",C2335,Public transport,154.1,Lloyds Bank,Public Transport - Train tickets,2040266,202212
Rother District Council,10/10/2022,091HOUSING,Housing and Community Services,20204,Housing Administration Account,C2335,Public transport,46.3,Lloyds Bank,Public Transport - Train tickets,2040274,202212
Rother District Council,10/10/2022,091HOUSING,Housing and Community Services,20133,Refuse Collection,D1201,Equipment & Materials,85,Lloyds Bank,Equipment & Materials - EnvH- Locksmiths,2040270,202212
Rother District Council,10/10/2022,081ACQUISIT,"Acquisitions, Transformation and Regeneration",20272,Major Projects unit,D1201,Equipment & Materials,65.94,Lloyds Bank,Equipment & materials - Miscellaneous,2040267,202212
Rother District Council,10/10/2022,081ACQUISIT,"Acquisitions, Transformation and Regeneration",20101,Cultural Development,D2415,Printing by external suppliers,166.66,Lloyds Bank,Printing by external suppliers - Printing (Not from RDC Print Room),2040268,202212
Rother District Council,10/10/2022,101RESOURCES,Resources,20239,Computer Services,D2420,General office supplies (Stationery purchased from ext suppliers),56.46,Lloyds Bank,General office supplies - Stationery,2040273,202212
Rother District Council,10/10/2022,101RESOURCES,Resources,20239,Computer Services,D2420,General office supplies (Stationery purchased from ext suppliers),34.54,Lloyds Bank,General office supplies - Stationery,2040273,202212
Rother District Council,10/10/2022,091HOUSING,Housing and Community Services,20236,Customer Services and Development,D2511,Bank Charges,1.48,Lloyds Bank,Bank Charges,2040276,202212
Rother District Council,10/10/2022,091HOUSING,Housing and Community Services,20202,Rother Tenant Finder (prev Rother Letting Service),D2513,Hired and Contracted services,5.2,Lloyds Bank,Car Parking - On Street Car Parking,2040269,202212
Rother District Council,10/10/2022,091HOUSING,Housing and Community Services,20206,UK Resettlement (Syrians),D2513,Hired and Contracted services,420.16,Lloyds Bank,Hired and contracted services - Syrian-Bus Pass,2040275,202212
Rother District Council,10/10/2022,091HOUSING,Housing and Community Services,20206,UK Resettlement (Syrians),D2513,Hired and Contracted services,306.76,Lloyds Bank,Hired and contracted services - Syrian Misc,2040275,202212
Rother District Council,10/10/2022,999NOREPORT,Housing and Community Services,70751,Capital - Temporary Accommodation,D2513,Hired and Contracted services,270,Lloyds Bank,Hired and contracted services - Service fee paid,2040266,202212
Rother District Council,10/10/2022,999NOREPORT,Housing and Community Services,70706,Capital - Disabled Facilities Grant,D2513,Hired and Contracted services,75,Lloyds Bank,Car Parking - On Street Car Parking,2040274,202212
Rother District Council,10/10/2022,091HOUSING,Housing and Community Services,20137,Car Parks,D2513,Hired and Contracted services,128.38,Planet Merchant Services,Hired and contracted services - Car Parks-Card payments transaction fee,2038365,202210
Rother District Council,10/10/2022,101RESOURCES,Resources,20209,Corporate management,D2513,Hired and Contracted services,75.02,Lloyds Bank,Bank Charges,2040233,202212
Rother District Council,10/10/2022,091HOUSING,Housing and Community Services,20200,Housing Needs - HB (Housing Benefit),D2514,Accommodation Costs,45.83,Lloyds Bank,Accommodation Costs - Homelessness services Temp Accom-plus VAT,2040272,202212
Rother District Council,10/10/2022,091HOUSING,Housing and Community Services,20200,Housing Needs - HB (Housing Benefit),D2514,Accommodation Costs,171.67,Lloyds Bank,Accommodation Costs - Homelessness services Temp Accom-plus VAT,2040272,202212
Rother District Council,10/10/2022,091HOUSING,Housing and Community Services,20200,Housing Needs - HB (Housing Benefit),D2514,Accommodation Costs,"1,201.25",Lloyds Bank,Accommodation Costs - Homelessness services Temp Accom-plus VAT,2040272,202212
Rother District Council,10/10/2022,091HOUSING,Housing and Community Services,20200,Housing Needs - HB (Housing Benefit),D2514,Accommodation Costs,668.3,Lloyds Bank,Accommodation Costs - Homelessness services Temp Accom-plus VAT,2040272,202212
Rother District Council,10/10/2022,091HOUSING,Housing and Community Services,20200,Housing Needs - HB (Housing Benefit),D2514,Accommodation Costs,731.5,Lloyds Bank,Accommodation Costs - Homelessness services Temp Accom-plus VAT,2040272,202212
Rother District Council,10/10/2022,101RESOURCES,Resources,20239,Computer Services,D2633,Computer Equipment,645.82,Lloyds Bank,Computer Equipment - Computer peripherals,2040273,202212
Rother District Council,10/10/2022,101RESOURCES,Resources,20239,Computer Services,D2633,Computer Equipment,34.24,Lloyds Bank,Computer Equipment - Carry Case,2040273,202212
Rother District Council,10/10/2022,101RESOURCES,Resources,20239,Computer Services,D2633,Computer Equipment,316.81,Lloyds Bank,,2040273,202212
Rother District Council,10/10/2022,101RESOURCES,Resources,20239,Computer Services,D2635,Computer Licences,9.99,Lloyds Bank,Computer Licences - Domain Name Renewal,2040265,202212
Rother District Council,10/10/2022,091HOUSING,Housing and Community Services,20236,Customer Services and Development,D2636,Computer Software,53.69,Lloyds Bank,Computer Software - charged to departments,2040276,202212
Rother District Council,10/10/2022,999NOREPORT,Housing and Community Services,70751,Capital - Temporary Accommodation,N1009,Furniture & Fittings,577.56,Lloyds Bank,Furniture and Fittings for TA purchases,2040266,202212
Rother District Council,11/10/2022,101RESOURCES,Resources,20209,Corporate management,D2513,Hired and Contracted services,920.85,Lloyds Bank,Bank Charges,2038441,202210
Rother District Council,11/10/2022,101RESOURCES,Resources,20209,Corporate management,D2513,Hired and Contracted services,294,Lloyds Bank,Bank Charges,2038442,202210
Rother District Council,11/10/2022,101RESOURCES,Resources,20209,Corporate management,D2516,Audit fees,25,Royal Bank of Scotland Plc,,2038279,202210
Rother District Council,13/10/2022,071STRAT,Strategy and Planning,20258,BC Dangerous Structures H+R Partnership,D2513,Hired and Contracted services,18,H M Land Registry,Hired and contracted services - Env H-Land Registry,2038347,202210
Rother District Council,13/10/2022,071STRAT,Strategy and Planning,20246,Planning Applications,D2513,Hired and Contracted services,12,H M Land Registry,Hired and contracted services - Land Registry-Planning,2038347,202210
Rother District Council,13/10/2022,081ACQUISIT,"Acquisitions, Transformation and Regeneration",20144,Property Management,D2513,Hired and Contracted services,27,H M Land Registry,Hired and contracted services - Land Registry-Property Management,2038347,202210
Rother District Council,13/10/2022,031RESOURCES,Chief Executive & Corporate Core,20181,Internal Audit,D2513,Hired and Contracted services,6,H M Land Registry,,2038347,202210
Rother District Council,13/10/2022,041ENVIRON,Environmental Services,32144,EH Environmental Services Admin R + W Partnership,D2513,Hired and Contracted services,3,H M Land Registry,Hired and contracted services - Env H-Land Registry,2038347,202210
Rother District Council,13/10/2022,041ENVIRON,Environmental Services,20129,Community Safety - CCTV costs only,D2513,Hired and Contracted services,24,H M Land Registry,Hired and contracted services - Env H-Land Registry,2038347,202210
Rother District Council,13/10/2022,101RESOURCES,Resources,20216,Cost Of Collection,D2513,Hired and Contracted services,15,H M Land Registry,Hired and contracted services - Council Tax-Land Registry Enquiries,2038347,202210
Rother District Council,13/10/2022,101RESOURCES,Resources,20242,Communications-Phones,D2621,Telephones,155.15,O2 (UK) Ltd,,2038304,202212
Rother District Council,13/10/2022,101RESOURCES,Resources,20242,Communications-Phones,D2621,Telephones,326,O2 (UK) Ltd,,2038305,202212
Rother District Council,13/10/2022,101RESOURCES,Resources,20242,Communications-Phones,D2621,Telephones,110,O2 (UK) Ltd,,2038306,202212
Rother District Council,13/10/2022,101RESOURCES,Resources,20242,Communications-Phones,D2621,Telephones,550.03,O2 (UK) Ltd,,2038316,202212
Rother District Council,13/10/2022,101RESOURCES,Resources,20242,Communications-Phones,D2621,Telephones,601.27,O2 (UK) Ltd,,2038318,202212
Rother District Council,13/10/2022,101RESOURCES,Resources,20242,Communications-Phones,D2621,Telephones,55,O2 (UK) Ltd,,2038326,202212
Rother District Council,14/10/2022,071STRAT,Strategy and Planning,20246,Planning Applications,D2513,Hired and Contracted services,12,H M Land Registry,Hired and contracted services - Land Registry-Planning,2038348,202210
Rother District Council,14/10/2022,041ENVIRON,Environmental Services,32144,EH Environmental Services Admin R + W Partnership,D2513,Hired and Contracted services,3,H M Land Registry,Hired and contracted services - Env H-Land Registry,2038348,202210
Rother District Council,14/10/2022,101RESOURCES,Resources,20216,Cost Of Collection,D2513,Hired and Contracted services,3,H M Land Registry,Hired and contracted services - Council Tax-Land Registry Enquiries,2038348,202210
Rother District Council,15/10/2022,041ENVIRON,Environmental Services,32136,EH Pest Control R + W Partnership,C1104,Derv,62.5,Allstar Business Solutions,,2038303,202210
Rother District Council,15/10/2022,041ENVIRON,Environmental Services,32136,EH Pest Control R + W Partnership,C1104,Derv,69.17,Allstar Business Solutions,,2038303,202210
Rother District Council,15/10/2022,041ENVIRON,Environmental Services,32136,EH Pest Control R + W Partnership,C1104,Derv,3.8,Allstar Business Solutions,Derv - Fuel Service fee payable on fuel cards,2038303,202210
Rother District Council,15/10/2022,091HOUSING,Housing and Community Services,20145,Maintenance Services,C1104,Derv,1.9,Allstar Business Solutions,Derv - Fuel Service fee payable on fuel cards,2038303,202210
Rother District Council,15/10/2022,091HOUSING,Housing and Community Services,20145,Maintenance Services,C1104,Derv,68.25,Allstar Business Solutions,,2038303,202210
Rother District Council,15/10/2022,091HOUSING,Housing and Community Services,20145,Maintenance Services,C1104,Derv,86.52,Allstar Business Solutions,,2038303,202210
Rother District Council,15/10/2022,091HOUSING,Housing and Community Services,20145,Maintenance Services,C1104,Derv,105.75,Allstar Business Solutions,,2038303,202210
Rother District Council,15/10/2022,091HOUSING,Housing and Community Services,20145,Maintenance Services,C1104,Derv,106.62,Allstar Business Solutions,,2038303,202210
Rother District Council,15/10/2022,031RESOURCES,Chief Executive & Corporate Core,20170,Communications-Postages,D2626,Postages,860,Pitney Bowes Finance Limited,Hired and contracted services - Postages franking machine costs,2038444,202211
Rother District Council,17/10/2022,091HOUSING,Housing and Community Services,20137,Car Parks,B1100,Repairs to Premises,388.58,Alfa Electric Ltd,Repairs to Premises - Car Park Maintenance,2038782,202211
Rother District Council,17/10/2022,091HOUSING,Housing and Community Services,20137,Car Parks,B1100,Repairs to Premises,660,REDACTED PERSONAL DATA,Repairs to Premises - Parks- Landscaping Works,2038783,202211
Rother District Council,17/10/2022,081ACQUISIT,"Acquisitions, Transformation and Regeneration",20155,Investment properties,B1100,Repairs to Premises,460,REDACTED PERSONAL DATA,Repairs to Premises - Parks- Landscaping Works,2038781,202211
Rother District Council,17/10/2022,101RESOURCES,Resources,20314,Payments to Ukrainian guests,D2513,Hired and Contracted services,31.5,Post Office Ltd,Hired and contracted services - Service fee paid,2038042,202211
Rother District Council,18/10/2022,041ENVIRON,Environmental Services,32144,EH Environmental Services Admin R + W Partnership,A2203,Training,165,Institute of Licensing (Events) Ltd,Training,2039411,202212
Rother District Council,18/10/2022,071STRAT,Strategy and Planning,20246,Planning Applications,D2509,Consultants and Other Services,500,Reading Agricultural Consultants,Consultants and other services - Consultants Fees,2037943,202210
Rother District Council,20/10/2022,071STRAT,Strategy and Planning,20258,BC Dangerous Structures H+R Partnership,D2513,Hired and Contracted services,6,H M Land Registry,Hired and contracted services - Env H-Land Registry,2038349,202210
Rother District Council,20/10/2022,071STRAT,Strategy and Planning,20246,Planning Applications,D2513,Hired and Contracted services,15,H M Land Registry,Hired and contracted services - Land Registry-Planning,2038349,202210
Rother District Council,20/10/2022,041ENVIRON,Environmental Services,20129,Community Safety - CCTV costs only,D2513,Hired and Contracted services,12,H M Land Registry,Hired and contracted services - Env H-Land Registry,2038349,202210
Rother District Council,20/10/2022,041ENVIRON,Environmental Services,32134,EH Pollution R + W Partnership,D2513,Hired and Contracted services,3,H M Land Registry,Hired and contracted services - Env H-Land Registry,2038349,202210
Rother District Council,20/10/2022,031RESOURCES,Chief Executive & Corporate Core,20276,COVID19 RDC expenditure,D2513,Hired and Contracted services,"1,325.00","Department for Levelling Up, Housing and Communities",Hired and Contracted Services - Housing Misc Costs relating to Covid 19,2038765,202211
Rother District Council,20/10/2022,101RESOURCES,Resources,20216,Cost Of Collection,D2513,Hired and Contracted services,15,H M Land Registry,Hired and contracted services - Council Tax-Land Registry Enquiries,2038349,202210
Rother District Council,21/10/2022,091HOUSING,Housing and Community Services,20145,Maintenance Services,B2201,Electricity,64.81,Laser Energy Buying Group (Kent County Council Commercial Services),Electricity - Electricity Charges,2039233,202212
Rother District Council,21/10/2022,091HOUSING,Housing and Community Services,20261,"TA Purchases (prev - 41 Jameson Mews, Bexhill on Sea)",B2201,Electricity,53.35,Laser Energy Buying Group (Kent County Council Commercial Services),Electricity - Electricity Charges,2039233,202212
Rother District Council,21/10/2022,091HOUSING,Housing and Community Services,20261,"TA Purchases (prev - 41 Jameson Mews, Bexhill on Sea)",B2201,Electricity,99.14,Laser Energy Buying Group (Kent County Council Commercial Services),Electricity - Electricity Charges,2039233,202212
Rother District Council,21/10/2022,091HOUSING,Housing and Community Services,20261,"TA Purchases (prev - 41 Jameson Mews, Bexhill on Sea)",B2201,Electricity,87.42,Laser Energy Buying Group (Kent County Council Commercial Services),Electricity - Electricity Charges,2039233,202212
Rother District Council,21/10/2022,091HOUSING,Housing and Community Services,20261,"TA Purchases (prev - 41 Jameson Mews, Bexhill on Sea)",B2201,Electricity,76.02,Laser Energy Buying Group (Kent County Council Commercial Services),Electricity - Electricity Charges,2039233,202212
Rother District Council,21/10/2022,081ACQUISIT,"Acquisitions, Transformation and Regeneration",20308,Amherst Road,B2201,Electricity,875.77,Laser Energy Buying Group (Kent County Council Commercial Services),Electricity - Electricity Charges,2039233,202212
Rother District Council,21/10/2022,091HOUSING,Housing and Community Services,20107,Camber Beach & Foreshore,B2201,Electricity,115.67,Laser Energy Buying Group (Kent County Council Commercial Services),Electricity - Electricity Charges,2039233,202212
Rother District Council,21/10/2022,091HOUSING,Housing and Community Services,20108,Bexhill Promenade & Foreshore,B2201,Electricity,10.62,Laser Energy Buying Group (Kent County Council Commercial Services),Electricity - Electricity Charges,2039233,202212
Rother District Council,21/10/2022,091HOUSING,Housing and Community Services,20108,Bexhill Promenade & Foreshore,B2201,Electricity,10.62,Laser Energy Buying Group (Kent County Council Commercial Services),Electricity - Electricity Charges,2039233,202212
Rother District Council,21/10/2022,091HOUSING,Housing and Community Services,20108,Bexhill Promenade & Foreshore,B2201,Electricity,23.66,Laser Energy Buying Group (Kent County Council Commercial Services),Electricity - Electricity Charges,2039233,202212
Rother District Council,21/10/2022,091HOUSING,Housing and Community Services,20125,Coast Protection,B2201,Electricity,510.4,Laser Energy Buying Group (Kent County Council Commercial Services),Electricity - Electricity Charges,2039233,202212
Rother District Council,21/10/2022,091HOUSING,Housing and Community Services,20123,Cemeteries,B2201,Electricity,36.28,Laser Energy Buying Group (Kent County Council Commercial Services),Electricity - Electricity Charges,2039233,202212
Rother District Council,21/10/2022,091HOUSING,Housing and Community Services,20114,Bexhill Parks & Open Spaces,B2201,Electricity,31.24,Laser Energy Buying Group (Kent County Council Commercial Services),Electricity - Electricity Charges,2039233,202212
Rother District Council,21/10/2022,091HOUSING,Housing and Community Services,20125,Coast Protection,B2201,Electricity,523.13,Laser Energy Buying Group (Kent County Council Commercial Services),Electricity - Electricity Charges,2039233,202212
Rother District Council,21/10/2022,091HOUSING,Housing and Community Services,20128,Public Conveniences,B2201,Electricity,59,Laser Energy Buying Group (Kent County Council Commercial Services),Electricity - Electricity Charges,2039233,202212
Rother District Council,21/10/2022,091HOUSING,Housing and Community Services,20128,Public Conveniences,B2201,Electricity,148.16,Laser Energy Buying Group (Kent County Council Commercial Services),Electricity - Electricity Charges,2039233,202212
Rother District Council,21/10/2022,091HOUSING,Housing and Community Services,20128,Public Conveniences,B2201,Electricity,158.9,Laser Energy Buying Group (Kent County Council Commercial Services),Electricity - Electricity Charges,2039233,202212
Rother District Council,21/10/2022,091HOUSING,Housing and Community Services,20128,Public Conveniences,B2201,Electricity,75.63,Laser Energy Buying Group (Kent County Council Commercial Services),Electricity - Electricity Charges,2039233,202212
Rother District Council,21/10/2022,091HOUSING,Housing and Community Services,20128,Public Conveniences,B2201,Electricity,89.45,Laser Energy Buying Group (Kent County Council Commercial Services),Electricity - Electricity Charges,2039233,202212
Rother District Council,21/10/2022,091HOUSING,Housing and Community Services,20128,Public Conveniences,B2201,Electricity,62.44,Laser Energy Buying Group (Kent County Council Commercial Services),Electricity - Electricity Charges,2039233,202212
Rother District Council,21/10/2022,091HOUSING,Housing and Community Services,20128,Public Conveniences,B2201,Electricity,174.33,Laser Energy Buying Group (Kent County Council Commercial Services),Electricity - Electricity Charges,2039233,202212
Rother District Council,21/10/2022,091HOUSING,Housing and Community Services,20128,Public Conveniences,B2201,Electricity,139.74,Laser Energy Buying Group (Kent County Council Commercial Services),Electricity - Electricity Charges,2039233,202212
Rother District Council,21/10/2022,091HOUSING,Housing and Community Services,20128,Public Conveniences,B2201,Electricity,51.46,Laser Energy Buying Group (Kent County Council Commercial Services),Electricity - Electricity Charges,2039233,202212
Rother District Council,21/10/2022,091HOUSING,Housing and Community Services,20128,Public Conveniences,B2201,Electricity,29.46,Laser Energy Buying Group (Kent County Council Commercial Services),Electricity - Electricity Charges,2039233,202212
Rother District Council,21/10/2022,081ACQUISIT,"Acquisitions, Transformation and Regeneration",20154,Committee Property Account,B2201,Electricity,21.24,Laser Energy Buying Group (Kent County Council Commercial Services),Electricity - Electricity Charges,2039233,202212
Rother District Council,21/10/2022,081ACQUISIT,"Acquisitions, Transformation and Regeneration",20154,Committee Property Account,B2201,Electricity,21.25,Laser Energy Buying Group (Kent County Council Commercial Services),Electricity - Electricity Charges,2039233,202212
Rother District Council,21/10/2022,081ACQUISIT,"Acquisitions, Transformation and Regeneration",20154,Committee Property Account,B2201,Electricity,21.24,Laser Energy Buying Group (Kent County Council Commercial Services),Electricity - Electricity Charges,2039233,202212
Rother District Council,21/10/2022,081ACQUISIT,"Acquisitions, Transformation and Regeneration",20154,Committee Property Account,B2201,Electricity,21.25,Laser Energy Buying Group (Kent County Council Commercial Services),Electricity - Electricity Charges,2039233,202212
Rother District Council,21/10/2022,081ACQUISIT,"Acquisitions, Transformation and Regeneration",20154,Committee Property Account,B2201,Electricity,956.11,Laser Energy Buying Group (Kent County Council Commercial Services),Electricity - Electricity Charges,2039233,202212
Rother District Council,21/10/2022,081ACQUISIT,"Acquisitions, Transformation and Regeneration",20154,Committee Property Account,B2201,Electricity,23.66,Laser Energy Buying Group (Kent County Council Commercial Services),Electricity - Electricity Charges,2039233,202212
Rother District Council,21/10/2022,081ACQUISIT,"Acquisitions, Transformation and Regeneration",20154,Committee Property Account,B2201,Electricity,23.66,Laser Energy Buying Group (Kent County Council Commercial Services),Electricity - Electricity Charges,2039233,202212
Rother District Council,21/10/2022,081ACQUISIT,"Acquisitions, Transformation and Regeneration",20154,Committee Property Account,B2201,Electricity,23.66,Laser Energy Buying Group (Kent County Council Commercial Services),Electricity - Electricity Charges,2039233,202212
Rother District Council,21/10/2022,031RESOURCES,Chief Executive & Corporate Core,20176,Administrative Offices - Print Room,B2201,Electricity,172.3,Laser Energy Buying Group (Kent County Council Commercial Services),Electricity - Electricity Charges,2039233,202212
Rother District Council,21/10/2022,081ACQUISIT,"Acquisitions, Transformation and Regeneration",20267,Property Investment Strategy - 18-40 Beeching Road ( Land and Buildings),B2201,Electricity,49.57,Laser Energy Buying Group (Kent County Council Commercial Services),Electricity - Electricity Charges,2039233,202212
Rother District Council,21/10/2022,081ACQUISIT,"Acquisitions, Transformation and Regeneration",20153,"Elva Business Centre, Bexhill",B2201,Electricity,985.96,Laser Energy Buying Group (Kent County Council Commercial Services),Electricity - Electricity Charges,2039233,202212
Rother District Council,21/10/2022,081ACQUISIT,"Acquisitions, Transformation and Regeneration",20155,Investment properties,B2201,Electricity,29.46,Laser Energy Buying Group (Kent County Council Commercial Services),Electricity - Electricity Charges,2039233,202212
Rother District Council,21/10/2022,031RESOURCES,Chief Executive & Corporate Core,20173,Administrative Offices - Town Hall,B2201,Electricity,"2,352.33",Laser Energy Buying Group (Kent County Council Commercial Services),Electricity - Electricity Charges,2039233,202212
Rother District Council,21/10/2022,081ACQUISIT,"Acquisitions, Transformation and Regeneration",20308,Amherst Road,B2202,Gas,176.12,Laser Energy Buying Group (Kent County Council Commercial Services),Gas - Gas Charges,2039234,202212
Rother District Council,21/10/2022,081ACQUISIT,"Acquisitions, Transformation and Regeneration",20154,Committee Property Account,B2202,Gas,12.71,Laser Energy Buying Group (Kent County Council Commercial Services),Gas - Gas Charges,2039234,202212
Rother District Council,21/10/2022,031RESOURCES,Chief Executive & Corporate Core,20176,Administrative Offices - Print Room,B2202,Gas,66.29,Laser Energy Buying Group (Kent County Council Commercial Services),Gas - Gas Charges,2039234,202212
Rother District Council,21/10/2022,031RESOURCES,Chief Executive & Corporate Core,20173,Administrative Offices - Town Hall,B2202,Gas,248.86,Laser Energy Buying Group (Kent County Council Commercial Services),Gas - Gas Charges,2039234,202212
Rother District Council,21/10/2022,081ACQUISIT,"Acquisitions, Transformation and Regeneration",20154,Committee Property Account,B2202,Gas,12.3,Laser Energy Buying Group (Kent County Council Commercial Services),Gas - Gas Charges,2039234,202212
Rother District Council,21/10/2022,071STRAT,Strategy and Planning,20258,BC Dangerous Structures H+R Partnership,D2513,Hired and Contracted services,3,H M Land Registry,Hired and contracted services - Env H-Land Registry,2038350,202210
Rother District Council,21/10/2022,101RESOURCES,Resources,20216,Cost Of Collection,D2513,Hired and Contracted services,6,H M Land Registry,Hired and contracted services - Council Tax-Land Registry Enquiries,2038350,202210
Rother District Council,21/10/2022,101RESOURCES,Resources,20239,Computer Services,D2631,Computer Equip Maintenance,780,Arcool Ltd,Computer Equip Maintenance - IT EQUIP MAINT,2038784,202211
Rother District Council,25/10/2022,031RESOURCES,Chief Executive & Corporate Core,20171,Human Resources,A2203,Training,818.1,Croner Group Ltd,Training,2038370,202211
Rother District Council,25/10/2022,031RESOURCES,Chief Executive & Corporate Core,20171,Human Resources,A2203,Training,101.81,Croner Group Ltd,Training,2038370,202211
Rother District Council,26/10/2022,071STRAT,Strategy and Planning,20258,BC Dangerous Structures H+R Partnership,D2513,Hired and Contracted services,6,H M Land Registry,Hired and contracted services - Env H-Land Registry,2038351,202211
Rother District Council,26/10/2022,071STRAT,Strategy and Planning,20246,Planning Applications,D2513,Hired and Contracted services,27,H M Land Registry,Hired and contracted services - Land Registry-Planning,2038351,202211
Rother District Council,26/10/2022,041ENVIRON,Environmental Services,20129,Community Safety - CCTV costs only,D2513,Hired and Contracted services,6,H M Land Registry,Hired and contracted services - Env H-Land Registry,2038351,202211
Rother District Council,26/10/2022,091HOUSING,Housing and Community Services,20200,Housing Needs - HB (Housing Benefit),D2513,Hired and Contracted services,3,H M Land Registry,Hired and contracted services - Housing-Land Registry,2038351,202211
Rother District Council,26/10/2022,101RESOURCES,Resources,20216,Cost Of Collection,D2513,Hired and Contracted services,12,H M Land Registry,Hired and contracted services - Council Tax-Land Registry Enquiries,2038351,202211
Rother District Council,27/10/2022,999NOREPORT,Neighbourhood Services,70762,Capital - Bexhill Promenade Shelter One,N1008,Equipment,565,Aldershaw Handmade Tiles Ltd,Capital - Purchase of Equipment,2040144,202212
Rother District Council,28/10/2022,071STRAT,Strategy and Planning,20246,Planning Applications,D2513,Hired and Contracted services,6,H M Land Registry,Hired and contracted services - Land Registry-Planning,2038352,202210
Rother District Council,28/10/2022,041ENVIRON,Environmental Services,20187,Pollution,D2513,Hired and Contracted services,250,LoadFast Waste Disposal,Hired and contracted services - Service fee paid,2038090,202210
Rother District Council,28/10/2022,041ENVIRON,Environmental Services,32134,EH Pollution R + W Partnership,D2513,Hired and Contracted services,3,H M Land Registry,Hired and contracted services - Env H-Land Registry,2038352,202210
Rother District Council,28/10/2022,091HOUSING,Housing and Community Services,20200,Housing Needs - HB (Housing Benefit),D2513,Hired and Contracted services,6,H M Land Registry,Hired and contracted services - Housing-Land Registry,2038352,202210
Rother District Council,28/10/2022,101RESOURCES,Resources,20216,Cost Of Collection,D2513,Hired and Contracted services,15,H M Land Registry,Hired and contracted services - Council Tax-Land Registry Enquiries,2038352,202210
Rother District Council,28/10/2022,091HOUSING,Housing and Community Services,20200,Housing Needs - HB (Housing Benefit),D2514,Accommodation Costs,24.1,Eastbourne Borough Council,,2038449,202211
Rother District Council,28/10/2022,091HOUSING,Housing and Community Services,20200,Housing Needs - HB (Housing Benefit),D2514,Accommodation Costs,24.1,Eastbourne Borough Council,,2038451,202211
Rother District Council,31/10/2022,091HOUSING,Housing and Community Services,20114,Bexhill Parks & Open Spaces,B1100,Repairs to Premises,"1,395.00",Gristwood and Toms Limited,Repairs to Premises - Parks - Tree Works,2038247,202210
Rother District Council,31/10/2022,081ACQUISIT,"Acquisitions, Transformation and Regeneration",20338,7-12 Beeching Road Studios ( Regeneration Project ),B2611,Contract cleaning,360,Diamond Hygiene Ltd,Contract cleaning - Office Cleaning,2039629,202212
Rother District Council,31/10/2022,091HOUSING,Housing and Community Services,20145,Maintenance Services,C1103,Petrol,34.55,Allstar Business Solutions,,2038298,202210
Rother District Council,31/10/2022,041ENVIRON,Environmental Services,32136,EH Pest Control R + W Partnership,C1104,Derv,60.84,Allstar Business Solutions,,2038298,202210
Rother District Council,31/10/2022,041ENVIRON,Environmental Services,32136,EH Pest Control R + W Partnership,C1104,Derv,65.83,Allstar Business Solutions,,2038298,202210
Rother District Council,31/10/2022,041ENVIRON,Environmental Services,32136,EH Pest Control R + W Partnership,C1104,Derv,3.8,Allstar Business Solutions,Derv - Fuel Service fee payable on fuel cards,2038298,202210
Rother District Council,31/10/2022,091HOUSING,Housing and Community Services,20145,Maintenance Services,C1104,Derv,107.48,Allstar Business Solutions,,2038298,202210
Rother District Council,31/10/2022,091HOUSING,Housing and Community Services,20145,Maintenance Services,C1104,Derv,91.4,Allstar Business Solutions,,2038298,202210
Rother District Council,31/10/2022,091HOUSING,Housing and Community Services,20145,Maintenance Services,C1104,Derv,67.42,Allstar Business Solutions,,2038298,202210
Rother District Council,31/10/2022,091HOUSING,Housing and Community Services,20337,Homes for Ukraine Accommodation,D2513,Hired and Contracted services,30.42,Migrant Help Trading Ltd t/a Clear Voice,Hired and contracted services - All Translation Services,2040035,202212
Rother District Council,31/10/2022,999NOREPORT,"Acquisitions, Transformation and Regeneration",70725,Capital - Blackfriars,D2513,Hired and Contracted services,"3,658.50",Bevan Brittan LLP,Hired and contracted services - Legal Advice,2039364,202212
Rother District Council,31/10/2022,999NOREPORT,"Acquisitions, Transformation and Regeneration",70725,Capital - Blackfriars,D2513,Hired and Contracted services,6,Bevan Brittan LLP,Hired and contracted services - Legal Advice,2039364,202212
Rother District Council,31/10/2022,101RESOURCES,Resources,20209,Corporate management,D2513,Hired and Contracted services,772.69,allpay.net Ltd,Hired and contracted services - Allpay Card/Rep/Let Chrg - Vatable,2038285,202210
Rother District Council,31/10/2022,101RESOURCES,Resources,20209,Corporate management,D2513,Hired and Contracted services,11.57,allpay.net Ltd,Hired and contracted services - Allpay Card/Rep/Let Chrg - Vatable,2038286,202210
Rother District Council,31/10/2022,101RESOURCES,Resources,20209,Corporate management,D2513,Hired and Contracted services,16.37,allpay.net Ltd,Hired and contracted services - Allpay Card/Rep/Let Chrg - Vatable,2038287,202210
Rother District Council,31/10/2022,101RESOURCES,Resources,20209,Corporate management,D2513,Hired and Contracted services,32.68,allpay.net Ltd,Hired and contracted services - Allpay Card/Rep/Let Chrg - Vatable,2038288,202210
Rother District Council,31/10/2022,031RESOURCES,Chief Executive & Corporate Core,20171,Human Resources,D2513,Hired and Contracted services,25.6,Computershare Voucher Services,Hired and contracted services - Child Care Voucher Service Charge,2038368,202210
Rother District Council,31/10/2022,081ACQUISIT,"Acquisitions, Transformation and Regeneration",20266,Property Investment Strategy,D2513,Hired and Contracted services,996.9,Batcheller Monkhouse,Hired and contracted services - Service fee paid,2039285,202212
Rother District Council,31/10/2022,091HOUSING,Housing and Community Services,20202,Rother Tenant Finder (prev Rother Letting Service),D2513,Hired and Contracted services,350,Help2Rent Ltd,Hired and contracted services - Service fee paid,2037752,202210
Rother District Council,31/10/2022,091HOUSING,Housing and Community Services,20337,Homes for Ukraine Accommodation,D2513,Hired and Contracted services,300,Help2Rent Ltd,Hired and contracted services - Service fee paid,2037752,202210
Rother District Council,31/10/2022,101RESOURCES,Resources,20216,Cost Of Collection,D2513,Hired and Contracted services,6,H M Land Registry,Hired and contracted services - Council Tax-Land Registry Enquiries,2038353,202210
Rother District Council,31/10/2022,091HOUSING,Housing and Community Services,20200,Housing Needs - HB (Housing Benefit),D2513,Hired and Contracted services,3,H M Land Registry,Hired and contracted services - Housing-Land Registry,2038353,202210
Rother District Council,31/10/2022,091HOUSING,Housing and Community Services,20200,Housing Needs - HB (Housing Benefit),D2513,Hired and Contracted services,30,NowMedical,,2038486,202211
Rother District Council,31/10/2022,999NOREPORT,"Acquisitions, Transformation and Regeneration",70725,Capital - Blackfriars,N1004,Architects & Consultant Fees,"16,771.37",Baily Garner LLP,Architects & Consultant Fees Capital-Architect and Conslt Fees,2036580,202210
Rother District Council,31/10/2022,999NOREPORT,Resources,90000,Balance sheet all accounts,T1002,Childcare Vouchers,320,Computershare Voucher Services,,2038368,202210
Rother District Council,01/11/2022,091HOUSING,Housing and Community Services,20114,Bexhill Parks & Open Spaces,B1100,Repairs to Premises,"4,585.00",Gristwood and Toms Limited,Repairs to Premises - Parks - Tree Works,2038248,202210
Rother District Council,01/11/2022,101RESOURCES,Resources,20209,Corporate management,D2513,Hired and Contracted services,560,Her Majestys Court Service,Hired and contracted services - Court Costs/Fees,2038374,202210
Rother District Council,01/11/2022,101RESOURCES,Resources,20209,Corporate management,D2513,Hired and Contracted services,284.5,Her Majestys Court Service,,2038375,202210
Rother District Council,01/11/2022,101RESOURCES,Resources,20209,Corporate management,D2513,Hired and Contracted services,20,Lloyds Bank,Bank Charges,2038379,202210
Rother District Council,01/11/2022,101RESOURCES,Resources,20209,Corporate management,D2513,Hired and Contracted services,20,Lloyds Bank,Bank Charges,2038387,202210
Rother District Council,01/11/2022,101RESOURCES,Resources,20209,Corporate management,D2513,Hired and Contracted services,20,Lloyds Bank,Bank Charges,2038389,202210
Rother District Council,01/11/2022,101RESOURCES,Resources,20209,Corporate management,D2513,Hired and Contracted services,"1,910.40",Lloyds Bank,Bank Charges,2038393,202210
Rother District Council,01/11/2022,101RESOURCES,Resources,20209,Corporate management,D2513,Hired and Contracted services,20,Lloyds Bank,Bank Charges,2038396,202210
Rother District Council,01/11/2022,101RESOURCES,Resources,20209,Corporate management,D2513,Hired and Contracted services,20,Lloyds Bank,Bank Charges,2038401,202210
Rother District Council,01/11/2022,101RESOURCES,Resources,20209,Corporate management,D2513,Hired and Contracted services,856.52,Lloyds Bank,Bank Charges,2038405,202210
Rother District Council,01/11/2022,101RESOURCES,Resources,20209,Corporate management,D2513,Hired and Contracted services,20,Lloyds Bank,Bank Charges,2038409,202210
Rother District Council,01/11/2022,101RESOURCES,Resources,20209,Corporate management,D2513,Hired and Contracted services,20,Lloyds Bank,Bank Charges,2038413,202210
Rother District Council,01/11/2022,101RESOURCES,Resources,20209,Corporate management,D2513,Hired and Contracted services,50,Lloyds Bank,Bank Charges,2038416,202210
Rother District Council,01/11/2022,101RESOURCES,Resources,20209,Corporate management,D2513,Hired and Contracted services,20.09,Merchant Rentals Ltd,Hired and contracted services - Streamline Machine-Rental,2038423,202210
Rother District Council,01/11/2022,101RESOURCES,Resources,20209,Corporate management,D2513,Hired and Contracted services,23.84,Lloyds Bank,Bank Charges,2040258,202212
Rother District Council,01/11/2022,101RESOURCES,Resources,20209,Corporate management,D2513,Hired and Contracted services,288.41,Lloyds Bank,Bank Charges,2040258,202212
Rother District Council,01/11/2022,091HOUSING,Housing and Community Services,20107,Camber Beach & Foreshore,D2621,Telephones,52.95,Beaming Ltd,Telephones - Broadband Connection,2038276,202212
Rother District Council,01/11/2022,091HOUSING,Housing and Community Services,20108,Bexhill Promenade & Foreshore,D2621,Telephones,3.38,Commtel Ltd T/A Teleguard,Equipment & Materials - Access cards and systems,2038371,202211
Rother District Council,02/11/2022,091HOUSING,Housing and Community Services,20137,Car Parks,D2513,Hired and Contracted services,89.74,Planet Merchant Services,Hired and contracted services - Car Parks-Card payments transaction fee,2039971,202212
Rother District Council,02/11/2022,101RESOURCES,Resources,20209,Corporate management,D2513,Hired and Contracted services,204.75,Pay 360 Ltd,Bank Charges,2039888,202212
Rother District Council,02/11/2022,101RESOURCES,Resources,20242,Communications-Phones,D2621,Telephones,25.72,TalkTalk Communications Ltd T/A TalkTalk Business,Telephones - Leased Line Rental,2038431,202212
Rother District Council,03/11/2022,091HOUSING,Housing and Community Services,20107,Camber Beach & Foreshore,D1201,Equipment & Materials,"2,750.00",Rye Pilots,Equipment & Materials - Marker Buoys and Signs,2038528,202211
Rother District Council,03/11/2022,041ENVIRON,Environmental Services,32134,EH Pollution R + W Partnership,D2513,Hired and Contracted services,239,Corserv Care Limited,Hired and contracted services - RDC ENV H Out Of Hours Call Answering Service,2037917,202210
Rother District Council,03/11/2022,091HOUSING,Housing and Community Services,20204,Housing Administration Account,D2513,Hired and Contracted services,"1,044.68",Corserv Care Limited,Hired and contracted services - RDC Homelessness Out Of Hours Call Answering Service,2037917,202210
Rother District Council,04/11/2022,091HOUSING,Housing and Community Services,20107,Camber Beach & Foreshore,B2201,Electricity,320.13,Ecotricity Ltd,Electricity - Electricity Charges,2039774,202212
Rother District Council,04/11/2022,091HOUSING,Housing and Community Services,20108,Bexhill Promenade & Foreshore,B2201,Electricity,15.57,Ecotricity Ltd,Electricity - Electricity Charges,2039760,202212
Rother District Council,04/11/2022,091HOUSING,Housing and Community Services,20108,Bexhill Promenade & Foreshore,B2201,Electricity,87.29,Ecotricity Ltd,Electricity - Electricity Charges,2039778,202212
Rother District Council,04/11/2022,091HOUSING,Housing and Community Services,20108,Bexhill Promenade & Foreshore,B2201,Electricity,87.29,Ecotricity Ltd,Electricity - Electricity Charges,2039778,202212
Rother District Council,04/11/2022,091HOUSING,Housing and Community Services,20125,Coast Protection,B2201,Electricity,"2,083.83",Ecotricity Ltd,Electricity - Electricity Charges,2039710,202212
Rother District Council,04/11/2022,091HOUSING,Housing and Community Services,20114,Bexhill Parks & Open Spaces,B2201,Electricity,267.09,Ecotricity Ltd,Electricity - Electricity Charges,2039711,202212
Rother District Council,04/11/2022,091HOUSING,Housing and Community Services,20114,Bexhill Parks & Open Spaces,B2201,Electricity,80.85,Ecotricity Ltd,Electricity - Electricity Charges,2039759,202212
Rother District Council,04/11/2022,091HOUSING,Housing and Community Services,20114,Bexhill Parks & Open Spaces,B2201,Electricity,44.67,Ecotricity Ltd,Electricity - Electricity Charges,2039775,202212
Rother District Council,04/11/2022,091HOUSING,Housing and Community Services,20137,Car Parks,B2201,Electricity,305.64,Ecotricity Ltd,Electricity - Electricity Charges,2039709,202212
Rother District Council,04/11/2022,091HOUSING,Housing and Community Services,20138,Residual Highway Services,B2201,Electricity,254.31,Ecotricity Ltd,Electricity - Electricity Charges,2039709,202212
Rother District Council,04/11/2022,091HOUSING,Housing and Community Services,20138,Residual Highway Services,B2201,Electricity,27.07,Ecotricity Ltd,Electricity - Electricity Charges,2039715,202212
Rother District Council,04/11/2022,091HOUSING,Housing and Community Services,20137,Car Parks,B2201,Electricity,29.54,Ecotricity Ltd,Electricity - Electricity Charges,2039715,202212
Rother District Council,04/11/2022,091HOUSING,Housing and Community Services,20128,Public Conveniences,B2201,Electricity,217.06,Ecotricity Ltd,Electricity - Electricity Charges,2039720,202212
Rother District Council,04/11/2022,081ACQUISIT,"Acquisitions, Transformation and Regeneration",20148,Misc Land & Buildings,B2201,Electricity,66.01,Ecotricity Ltd,Electricity - Electricity Charges,2039756,202212
Rother District Council,04/11/2022,091HOUSING,Housing and Community Services,20128,Public Conveniences,B2201,Electricity,861.16,Ecotricity Ltd,Electricity - Electricity Charges,2039757,202212
Rother District Council,04/11/2022,091HOUSING,Housing and Community Services,20128,Public Conveniences,B2201,Electricity,820.07,Ecotricity Ltd,Electricity - Electricity Charges,2039758,202212
Rother District Council,04/11/2022,091HOUSING,Housing and Community Services,20137,Car Parks,B2201,Electricity,98.63,Ecotricity Ltd,Electricity - Electricity Charges,2039760,202212
Rother District Council,04/11/2022,091HOUSING,Housing and Community Services,20138,Residual Highway Services,B2201,Electricity,15.57,Ecotricity Ltd,Electricity - Electricity Charges,2039760,202212
Rother District Council,04/11/2022,091HOUSING,Housing and Community Services,20128,Public Conveniences,B2201,Electricity,152.5,Ecotricity Ltd,Electricity - Electricity Charges,2039776,202212
Rother District Council,04/11/2022,091HOUSING,Housing and Community Services,20128,Public Conveniences,B2201,Electricity,440.51,Ecotricity Ltd,Electricity - Electricity Charges,2039777,202212
Rother District Council,04/11/2022,091HOUSING,Housing and Community Services,20128,Public Conveniences,B2201,Electricity,87.81,Ecotricity Ltd,Electricity - Electricity Charges,2039779,202212
Rother District Council,04/11/2022,091HOUSING,Housing and Community Services,20128,Public Conveniences,B2201,Electricity,31,Ecotricity Ltd,Electricity - Electricity Charges,2039780,202212
Rother District Council,04/11/2022,041ENVIRON,Environmental Services,20129,Community Safety - CCTV costs only,B2201,Electricity,"2,291.14",Ecotricity Ltd,Electricity - Electricity Charges,2039709,202212
Rother District Council,04/11/2022,041ENVIRON,Environmental Services,20129,Community Safety - CCTV costs only,B2201,Electricity,246.89,Ecotricity Ltd,Electricity - Electricity Charges,2039715,202212
Rother District Council,04/11/2022,081ACQUISIT,"Acquisitions, Transformation and Regeneration",20153,"Elva Business Centre, Bexhill",B2201,Electricity,"4,894.90",Ecotricity Ltd,Electricity - Electricity Charges,2039717,202212
Rother District Council,04/11/2022,081ACQUISIT,"Acquisitions, Transformation and Regeneration",20154,Committee Property Account,B2201,Electricity,"7,856.47",Ecotricity Ltd,Electricity - Electricity Charges,2039778,202212
Rother District Council,04/11/2022,081ACQUISIT,"Acquisitions, Transformation and Regeneration",20154,Committee Property Account,B2201,Electricity,174.58,Ecotricity Ltd,Electricity - Electricity Charges,2039778,202212
Rother District Council,04/11/2022,081ACQUISIT,"Acquisitions, Transformation and Regeneration",20154,Committee Property Account,B2201,Electricity,174.58,Ecotricity Ltd,Electricity - Electricity Charges,2039778,202212
Rother District Council,04/11/2022,081ACQUISIT,"Acquisitions, Transformation and Regeneration",20154,Committee Property Account,B2201,Electricity,174.58,Ecotricity Ltd,Electricity - Electricity Charges,2039778,202212
Rother District Council,04/11/2022,081ACQUISIT,"Acquisitions, Transformation and Regeneration",20154,Committee Property Account,B2201,Electricity,174.62,Ecotricity Ltd,Electricity - Electricity Charges,2039778,202212
Rother District Council,04/11/2022,081ACQUISIT,"Acquisitions, Transformation and Regeneration",20155,Investment properties,B2201,Electricity,87.81,Ecotricity Ltd,Electricity - Electricity Charges,2039779,202212
Rother District Council,04/11/2022,071STRAT,Strategy and Planning,20246,Planning Applications,D2513,Hired and Contracted services,12,H M Land Registry,Hired and contracted services - Land Registry-Planning,2038354,202211
Rother District Council,04/11/2022,081ACQUISIT,"Acquisitions, Transformation and Regeneration",20144,Property Management,D2513,Hired and Contracted services,15,H M Land Registry,Hired and contracted services - Land Registry-Property Management,2038354,202211
Rother District Council,04/11/2022,081ACQUISIT,"Acquisitions, Transformation and Regeneration",20140,"CHF grant reserve funded Revenue expenditure (formerly Housing Policy,Strategy & Dev)",D2513,Hired and Contracted services,6,H M Land Registry,Hired and contracted services - Land Registry-Property Management,2038354,202211
Rother District Council,04/11/2022,101RESOURCES,Resources,20216,Cost Of Collection,D2513,Hired and Contracted services,15,H M Land Registry,Hired and contracted services - Council Tax-Land Registry Enquiries,2038354,202211
Rother District Council,06/11/2022,081ACQUISIT,"Acquisitions, Transformation and Regeneration",20153,"Elva Business Centre, Bexhill",B1100,Repairs to Premises,245,REDACTED PERSONAL DATA,Repairs to Premises - Energy Performance Certificate,2038673,202211
Rother District Council,07/11/2022,091HOUSING,Housing and Community Services,20206,UK Resettlement (Syrians),D2513,Hired and Contracted services,180,Milburn Psychology Practice,Hired and contracted services - Syrian Misc,2037897,202210
Rother District Council,08/11/2022,091HOUSING,Housing and Community Services,20206,UK Resettlement (Syrians),D2513,Hired and Contracted services,189,Vandu Language Services Ltd,Hired and contracted services - Syrian-Translation Services,2038649,202211
Rother District Council,09/11/2022,091HOUSING,Housing and Community Services,20108,Bexhill Promenade & Foreshore,B2201,Electricity,10.97,Ecotricity Ltd,,2039781,202212
Rother District Council,09/11/2022,091HOUSING,Housing and Community Services,20108,Bexhill Promenade & Foreshore,B2201,Electricity,3.1,Ecotricity Ltd,Electricity - Electricity Charges,2039782,202212
Rother District Council,09/11/2022,091HOUSING,Housing and Community Services,20137,Car Parks,B2201,Electricity,69.43,Ecotricity Ltd,,2039781,202212
Rother District Council,09/11/2022,091HOUSING,Housing and Community Services,20138,Residual Highway Services,B2201,Electricity,10.96,Ecotricity Ltd,,2039781,202212
Rother District Council,09/11/2022,091HOUSING,Housing and Community Services,20137,Car Parks,B2201,Electricity,19.62,Ecotricity Ltd,Electricity - Electricity Charges,2039782,202212
Rother District Council,09/11/2022,091HOUSING,Housing and Community Services,20138,Residual Highway Services,B2201,Electricity,3.1,Ecotricity Ltd,Electricity - Electricity Charges,2039782,202212
Rother District Council,10/11/2022,071STRAT,Strategy and Planning,20258,BC Dangerous Structures H+R Partnership,D2513,Hired and Contracted services,12,H M Land Registry,Hired and contracted services - Env H-Land Registry,2038330,202210
Rother District Council,10/11/2022,071STRAT,Strategy and Planning,20246,Planning Applications,D2513,Hired and Contracted services,3,H M Land Registry,Hired and contracted services - Land Registry-Planning,2038330,202210
Rother District Council,10/11/2022,081ACQUISIT,"Acquisitions, Transformation and Regeneration",20144,Property Management,D2513,Hired and Contracted services,15,H M Land Registry,Hired and contracted services - Land Registry-Property Management,2038330,202210
Rother District Council,10/11/2022,041ENVIRON,Environmental Services,32134,EH Pollution R + W Partnership,D2513,Hired and Contracted services,6,H M Land Registry,Hired and contracted services - Env H-Land Registry,2038330,202210
Rother District Council,10/11/2022,091HOUSING,Housing and Community Services,20200,Housing Needs - HB (Housing Benefit),D2513,Hired and Contracted services,6,H M Land Registry,Hired and contracted services - Housing-Land Registry,2038330,202210
Rother District Council,10/11/2022,101RESOURCES,Resources,20216,Cost Of Collection,D2513,Hired and Contracted services,30,H M Land Registry,Hired and contracted services - Council Tax-Land Registry Enquiries,2038330,202210
Rother District Council,10/11/2022,999NOREPORT,"Acquisitions, Transformation and Regeneration",70759,Capital - Town Hall Renaissance Project,N1004,Architects & Consultant Fees,570,RG Consultancy Ltd,Architects & Consultant Fees Capital-Architect and Conslt Fees,2037750,202210
Rother District Council,11/11/2022,101RESOURCES,Resources,20209,Corporate management,D2513,Hired and Contracted services,277.5,Lloyds Bank,Bank Charges,2038429,202210
Rother District Council,11/11/2022,101RESOURCES,Resources,20209,Corporate management,D2513,Hired and Contracted services,"1,047.82",Lloyds Bank,Bank Charges,2040229,202212
Rother District Council,11/11/2022,101RESOURCES,Resources,20209,Corporate management,D2513,Hired and Contracted services,58.43,Lloyds Bank,Bank Charges,2040231,202212
Rother District Council,11/11/2022,101RESOURCES,Resources,20216,Cost Of Collection,D2513,Hired and Contracted services,12,H M Land Registry,Hired and contracted services - Council Tax-Land Registry Enquiries,2038355,202210
Rother District Council,12/11/2022,091HOUSING,Housing and Community Services,20261,"TA Purchases (prev - 41 Jameson Mews, Bexhill on Sea)",D2513,Hired and Contracted services,135,A&A Cleaning & Property Services Ltd,Hired and contracted services - Service fee paid,2037904,202210
Rother District Council,13/11/2022,101RESOURCES,Resources,20242,Communications-Phones,D2621,Telephones,110,O2 (UK) Ltd,,2038307,202212
Rother District Council,13/11/2022,101RESOURCES,Resources,20242,Communications-Phones,D2621,Telephones,155,O2 (UK) Ltd,,2038308,202212
Rother District Council,13/11/2022,101RESOURCES,Resources,20242,Communications-Phones,D2621,Telephones,326,O2 (UK) Ltd,,2038310,202212
Rother District Council,13/11/2022,101RESOURCES,Resources,20242,Communications-Phones,D2621,Telephones,55,O2 (UK) Ltd,,2038311,202212
Rother District Council,13/11/2022,101RESOURCES,Resources,20242,Communications-Phones,D2621,Telephones,548,O2 (UK) Ltd,,2038313,202212
Rother District Council,13/11/2022,101RESOURCES,Resources,20242,Communications-Phones,D2621,Telephones,601.13,O2 (UK) Ltd,,2038317,202212
Rother District Council,15/11/2022,041ENVIRON,Environmental Services,32136,EH Pest Control R + W Partnership,C1104,Derv,67.5,Allstar Business Solutions,,2038300,202210
Rother District Council,15/11/2022,041ENVIRON,Environmental Services,32136,EH Pest Control R + W Partnership,C1104,Derv,56.68,Allstar Business Solutions,,2038300,202210
Rother District Council,15/11/2022,041ENVIRON,Environmental Services,32136,EH Pest Control R + W Partnership,C1104,Derv,3.8,Allstar Business Solutions,Derv - Fuel Service fee payable on fuel cards,2038300,202210
Rother District Council,15/11/2022,091HOUSING,Housing and Community Services,20145,Maintenance Services,C1104,Derv,96.38,Allstar Business Solutions,,2038300,202210
Rother District Council,15/11/2022,091HOUSING,Housing and Community Services,20145,Maintenance Services,C1104,Derv,108.39,Allstar Business Solutions,,2038300,202210
Rother District Council,15/11/2022,091HOUSING,Housing and Community Services,20145,Maintenance Services,C1104,Derv,110.77,Allstar Business Solutions,,2038300,202210
Rother District Council,15/11/2022,091HOUSING,Housing and Community Services,20145,Maintenance Services,C1104,Derv,107.92,Allstar Business Solutions,,2038300,202210
Rother District Council,15/11/2022,071STRAT,Strategy and Planning,20255,Local Development Framework,D2513,Hired and Contracted services,"7,200.00",East Sussex County Council,Hired and contracted services - AONB Management,2038183,202210
Rother District Council,15/11/2022,081ACQUISIT,"Acquisitions, Transformation and Regeneration",20136,Regeneration,D2513,Hired and Contracted services,500,Rother Voluntary Action,Hired and contracted services - Christmas Lights,2037896,202210
Rother District Council,15/11/2022,101RESOURCES,Resources,20242,Communications-Phones,D2621,Telephones,706.65,TalkTalk Communications Ltd T/A TalkTalk Business,Telephones - Leased Line Rental,2038420,202212
Rother District Council,15/11/2022,071STRAT,Strategy and Planning,20259,Land Charges,E1101,Third party payment other LAs,"5,508.00",East Sussex County Council,Third party payment other LAs - Fee Payments to ESCC,2037970,202210
Rother District Council,16/11/2022,091HOUSING,Housing and Community Services,20204,Housing Administration Account,A1110,Agency Staff,"1,326.00",Oyster Partnership,Agency Staff,2037348,202210
Rother District Council,16/11/2022,999NOREPORT,"Acquisitions, Transformation and Regeneration",70725,Capital - Blackfriars,D2513,Hired and Contracted services,"1,786.00",Bevan Brittan LLP,Hired and contracted services - Legal Advice,2037857,202210
Rother District Council,16/11/2022,081ACQUISIT,"Acquisitions, Transformation and Regeneration",20272,Major Projects unit,D2513,Hired and Contracted services,"6,150.00",Precision Resource Group Ltd,Hired and contracted services - Service fee paid,2037347,202210
Rother District Council,17/11/2022,101RESOURCES,Resources,20241,Stationery,D2420,General office supplies (Stationery purchased from ext suppliers),27.29,Banner Group Ltd,General office supplies - Stationery (Stationery Services to buy ONLY),2037358,202210
Rother District Council,17/11/2022,091HOUSING,Housing and Community Services,20123,Cemeteries,D2513,Hired and Contracted services,655,Bexhill Funeral Service / Dignity,Hired and contracted services - Parks-Public Health Burials,2038785,202211
Rother District Council,18/11/2022,091HOUSING,Housing and Community Services,20261,"TA Purchases (prev - 41 Jameson Mews, Bexhill on Sea)",B2201,Electricity,200.63,Opus Energy Ltd,Electricity - Electricity Charges,2039417,202212
Rother District Council,18/11/2022,091HOUSING,Housing and Community Services,20261,"TA Purchases (prev - 41 Jameson Mews, Bexhill on Sea)",B2201,Electricity,119.81,Opus Energy Ltd,Electricity - Electricity Charges,2039417,202212
Rother District Council,18/11/2022,081ACQUISIT,"Acquisitions, Transformation and Regeneration",20308,Amherst Road,B2201,Electricity,"1,629.53",Opus Energy Ltd,Electricity - Electricity Charges,2039417,202212
Rother District Council,18/11/2022,091HOUSING,Housing and Community Services,20107,Camber Beach & Foreshore,B2201,Electricity,34.02,Opus Energy Ltd,Electricity - Electricity Charges,2039417,202212
Rother District Council,18/11/2022,091HOUSING,Housing and Community Services,20108,Bexhill Promenade & Foreshore,B2201,Electricity,27.82,Opus Energy Ltd,Electricity - Electricity Charges,2039417,202212
Rother District Council,18/11/2022,091HOUSING,Housing and Community Services,20108,Bexhill Promenade & Foreshore,B2201,Electricity,20.6,Opus Energy Ltd,Electricity - Electricity Charges,2039417,202212
Rother District Council,18/11/2022,091HOUSING,Housing and Community Services,20108,Bexhill Promenade & Foreshore,B2201,Electricity,22.37,Opus Energy Ltd,Electricity - Electricity Charges,2039417,202212
Rother District Council,18/11/2022,091HOUSING,Housing and Community Services,20108,Bexhill Promenade & Foreshore,B2201,Electricity,21.31,Opus Energy Ltd,Electricity - Electricity Charges,2039417,202212
Rother District Council,18/11/2022,091HOUSING,Housing and Community Services,20108,Bexhill Promenade & Foreshore,B2201,Electricity,65.92,Opus Energy Ltd,Electricity - Electricity Charges,2039417,202212
Rother District Council,18/11/2022,091HOUSING,Housing and Community Services,20108,Bexhill Promenade & Foreshore,B2201,Electricity,41.09,Opus Energy Ltd,Electricity - Electricity Charges,2039417,202212
Rother District Council,18/11/2022,091HOUSING,Housing and Community Services,20114,Bexhill Parks & Open Spaces,B2201,Electricity,38.94,Opus Energy Ltd,Electricity - Electricity Charges,2039417,202212
Rother District Council,18/11/2022,091HOUSING,Housing and Community Services,20123,Cemeteries,B2201,Electricity,54.25,Opus Energy Ltd,Electricity - Electricity Charges,2039417,202212
Rother District Council,18/11/2022,091HOUSING,Housing and Community Services,20115,Rye Area Parks & Gardens,B2201,Electricity,19.15,Opus Energy Ltd,Electricity - Electricity Charges,2039417,202212
Rother District Council,18/11/2022,091HOUSING,Housing and Community Services,20114,Bexhill Parks & Open Spaces,B2201,Electricity,18.62,Opus Energy Ltd,Electricity - Electricity Charges,2039417,202212
Rother District Council,18/11/2022,091HOUSING,Housing and Community Services,20114,Bexhill Parks & Open Spaces,B2201,Electricity,31.77,Opus Energy Ltd,Electricity - Electricity Charges,2039417,202212
Rother District Council,18/11/2022,091HOUSING,Housing and Community Services,20114,Bexhill Parks & Open Spaces,B2201,Electricity,22.95,Opus Energy Ltd,Electricity - Electricity Charges,2039417,202212
Rother District Council,18/11/2022,091HOUSING,Housing and Community Services,20115,Rye Area Parks & Gardens,B2201,Electricity,20.65,Opus Energy Ltd,Electricity - Electricity Charges,2039417,202212
Rother District Council,18/11/2022,091HOUSING,Housing and Community Services,20114,Bexhill Parks & Open Spaces,B2201,Electricity,948.82,Opus Energy Ltd,Electricity - Electricity Charges,2039417,202212
Rother District Council,18/11/2022,091HOUSING,Housing and Community Services,20114,Bexhill Parks & Open Spaces,B2201,Electricity,98.38,Opus Energy Ltd,Electricity - Electricity Charges,2039417,202212
Rother District Council,18/11/2022,091HOUSING,Housing and Community Services,20114,Bexhill Parks & Open Spaces,B2201,Electricity,47.27,Opus Energy Ltd,Electricity - Electricity Charges,2039417,202212
Rother District Council,18/11/2022,091HOUSING,Housing and Community Services,20128,Public Conveniences,B2201,Electricity,31.42,Opus Energy Ltd,Electricity - Electricity Charges,2039417,202212
Rother District Council,18/11/2022,091HOUSING,Housing and Community Services,20128,Public Conveniences,B2201,Electricity,48.72,Opus Energy Ltd,Electricity - Electricity Charges,2039417,202212
Rother District Council,18/11/2022,091HOUSING,Housing and Community Services,20128,Public Conveniences,B2201,Electricity,120.18,Opus Energy Ltd,Electricity - Electricity Charges,2039417,202212
Rother District Council,18/11/2022,091HOUSING,Housing and Community Services,20128,Public Conveniences,B2201,Electricity,69.28,Opus Energy Ltd,Electricity - Electricity Charges,2039417,202212
Rother District Council,18/11/2022,091HOUSING,Housing and Community Services,20128,Public Conveniences,B2201,Electricity,27.85,Opus Energy Ltd,Electricity - Electricity Charges,2039417,202212
Rother District Council,18/11/2022,081ACQUISIT,"Acquisitions, Transformation and Regeneration",20150,Peasmarsh Workshops,B2201,Electricity,21.44,Opus Energy Ltd,Electricity - Electricity Charges,2039417,202212
Rother District Council,18/11/2022,081ACQUISIT,"Acquisitions, Transformation and Regeneration",20104,Ancient Monuments & Gazebo,B2201,Electricity,16.73,Opus Energy Ltd,Electricity - Electricity Charges,2039417,202212
Rother District Council,18/11/2022,091HOUSING,Housing and Community Services,20128,Public Conveniences,B2201,Electricity,23.6,Opus Energy Ltd,Electricity - Electricity Charges,2039417,202212
Rother District Council,18/11/2022,091HOUSING,Housing and Community Services,20128,Public Conveniences,B2201,Electricity,29.07,Opus Energy Ltd,Electricity - Electricity Charges,2039417,202212
Rother District Council,18/11/2022,091HOUSING,Housing and Community Services,20128,Public Conveniences,B2201,Electricity,51.66,Opus Energy Ltd,Electricity - Electricity Charges,2039417,202212
Rother District Council,18/11/2022,091HOUSING,Housing and Community Services,20128,Public Conveniences,B2201,Electricity,27.53,Opus Energy Ltd,Electricity - Electricity Charges,2039417,202212
Rother District Council,18/11/2022,081ACQUISIT,"Acquisitions, Transformation and Regeneration",20148,Misc Land & Buildings,B2201,Electricity,19.14,Opus Energy Ltd,Electricity - Electricity Charges,2039417,202212
Rother District Council,18/11/2022,091HOUSING,Housing and Community Services,20128,Public Conveniences,B2201,Electricity,49.28,Opus Energy Ltd,Electricity - Electricity Charges,2039417,202212
Rother District Council,18/11/2022,091HOUSING,Housing and Community Services,20128,Public Conveniences,B2201,Electricity,65.36,Opus Energy Ltd,Electricity - Electricity Charges,2039417,202212
Rother District Council,18/11/2022,091HOUSING,Housing and Community Services,20128,Public Conveniences,B2201,Electricity,4.65,Opus Energy Ltd,Electricity - Electricity Charges,2039417,202212
Rother District Council,18/11/2022,091HOUSING,Housing and Community Services,20137,Car Parks,B2201,Electricity,48.07,Opus Energy Ltd,Electricity - Electricity Charges,2039417,202212
Rother District Council,18/11/2022,091HOUSING,Housing and Community Services,20128,Public Conveniences,B2201,Electricity,85.26,Opus Energy Ltd,Electricity - Electricity Charges,2039417,202212
Rother District Council,18/11/2022,091HOUSING,Housing and Community Services,20128,Public Conveniences,B2201,Electricity,48.97,Opus Energy Ltd,Electricity - Electricity Charges,2039417,202212
Rother District Council,18/11/2022,091HOUSING,Housing and Community Services,20128,Public Conveniences,B2201,Electricity,37.3,Opus Energy Ltd,Electricity - Electricity Charges,2039417,202212
Rother District Council,18/11/2022,091HOUSING,Housing and Community Services,20128,Public Conveniences,B2201,Electricity,406.64,Opus Energy Ltd,Electricity - Electricity Charges,2039417,202212
Rother District Council,18/11/2022,091HOUSING,Housing and Community Services,20137,Car Parks,B2201,Electricity,29.79,Opus Energy Ltd,Electricity - Electricity Charges,2039417,202212
Rother District Council,18/11/2022,091HOUSING,Housing and Community Services,20128,Public Conveniences,B2201,Electricity,24.6,Opus Energy Ltd,Electricity - Electricity Charges,2039417,202212
Rother District Council,18/11/2022,091HOUSING,Housing and Community Services,20128,Public Conveniences,B2201,Electricity,23.58,Opus Energy Ltd,Electricity - Electricity Charges,2039417,202212
Rother District Council,18/11/2022,091HOUSING,Housing and Community Services,20128,Public Conveniences,B2201,Electricity,11.82,Opus Energy Ltd,Electricity - Electricity Charges,2039417,202212
Rother District Council,18/11/2022,091HOUSING,Housing and Community Services,20128,Public Conveniences,B2201,Electricity,34.03,Opus Energy Ltd,Electricity - Electricity Charges,2039417,202212
Rother District Council,18/11/2022,091HOUSING,Housing and Community Services,20128,Public Conveniences,B2201,Electricity,21.31,Opus Energy Ltd,Electricity - Electricity Charges,2039417,202212
Rother District Council,18/11/2022,031RESOURCES,Chief Executive & Corporate Core,20177,Administrative Offices - Rear Depot,B2201,Electricity,48.06,Opus Energy Ltd,Electricity - Electricity Charges,2039417,202212
Rother District Council,18/11/2022,081ACQUISIT,"Acquisitions, Transformation and Regeneration",20154,Committee Property Account,B2201,Electricity,16.41,Opus Energy Ltd,Electricity - Electricity Charges,2039417,202212
Rother District Council,18/11/2022,081ACQUISIT,"Acquisitions, Transformation and Regeneration",20154,Committee Property Account,B2201,Electricity,16.42,Opus Energy Ltd,Electricity - Electricity Charges,2039417,202212
Rother District Council,18/11/2022,081ACQUISIT,"Acquisitions, Transformation and Regeneration",20154,Committee Property Account,B2201,Electricity,16.41,Opus Energy Ltd,Electricity - Electricity Charges,2039417,202212
Rother District Council,18/11/2022,081ACQUISIT,"Acquisitions, Transformation and Regeneration",20154,Committee Property Account,B2201,Electricity,16.42,Opus Energy Ltd,Electricity - Electricity Charges,2039417,202212
Rother District Council,18/11/2022,081ACQUISIT,"Acquisitions, Transformation and Regeneration",20151,Udimore Workshops,B2201,Electricity,17.06,Opus Energy Ltd,Electricity - Electricity Charges,2039417,202212
Rother District Council,18/11/2022,071STRAT,Strategy and Planning,20258,BC Dangerous Structures H+R Partnership,D2513,Hired and Contracted services,3,H M Land Registry,Hired and contracted services - Env H-Land Registry,2038333,202211
Rother District Council,18/11/2022,071STRAT,Strategy and Planning,20246,Planning Applications,D2513,Hired and Contracted services,21,H M Land Registry,Hired and contracted services - Land Registry-Planning,2038333,202211
Rother District Council,18/11/2022,081ACQUISIT,"Acquisitions, Transformation and Regeneration",20144,Property Management,D2513,Hired and Contracted services,6,H M Land Registry,Hired and contracted services - Land Registry-Property Management,2038333,202211
Rother District Council,18/11/2022,091HOUSING,Housing and Community Services,20200,Housing Needs - HB (Housing Benefit),D2513,Hired and Contracted services,6,H M Land Registry,Hired and contracted services - Housing-Land Registry,2038333,202211
Rother District Council,18/11/2022,101RESOURCES,Resources,20216,Cost Of Collection,D2513,Hired and Contracted services,27,H M Land Registry,Hired and contracted services - Council Tax-Land Registry Enquiries,2038333,202211
Rother District Council,20/11/2022,091HOUSING,Housing and Community Services,20204,Housing Administration Account,A1110,Agency Staff,"1,479.60",Park Avenue Recruitment Ltd,Agency Staff,2037478,202210
Rother District Council,21/11/2022,031RESOURCES,Chief Executive & Corporate Core,20173,Administrative Offices - Town Hall,B1100,Repairs to Premises,237.42,Alfa Electric Ltd,Repairs to Premises - Specified Repairs and Works listed,2037954,202210
Rother District Council,21/11/2022,101RESOURCES,Resources,20216,Cost Of Collection,D2513,Hired and Contracted services,3,H M Land Registry,Hired and contracted services - Council Tax-Land Registry Enquiries,2038356,202210
Rother District Council,21/11/2022,999NOREPORT,Neighbourhood Services,70714,Capital - Community Grants,N1011,Capital Grants,"7,000.00",Battle Town Council,Capital Grants - Community Grants Scheme,2037901,202210
Rother District Council,23/11/2022,091HOUSING,Housing and Community Services,20204,Housing Administration Account,A1110,Agency Staff,"1,306.28",Oyster Partnership,Agency Staff,2037406,202210
Rother District Council,23/11/2022,031RESOURCES,Chief Executive & Corporate Core,20173,Administrative Offices - Town Hall,B1100,Repairs to Premises,95,Abel Alarm Co. Ltd.,Repairs to Premises - Intruder Alarm System Monitor/Maint,2037723,202210
Rother District Council,23/11/2022,081ACQUISIT,"Acquisitions, Transformation and Regeneration",20308,Amherst Road,D1201,Equipment & Materials,"3,105.00",ASL Lockers Ltd,Equipment & materials - Miscellaneous,2037960,202210
Rother District Council,23/11/2022,091HOUSING,Housing and Community Services,20145,Maintenance Services,D2352,Clothing and Uniforms,74.98,Trade UK Account (Screwfix & B&Q),Clothing and Uniforms - Mens Protective-Footware,2037509,202210
Rother District Council,23/11/2022,081ACQUISIT,"Acquisitions, Transformation and Regeneration",20272,Major Projects unit,D2513,Hired and Contracted services,"3,075.00",Precision Resource Group Ltd,Hired and contracted services - Service fee paid,2037527,202210
Rother District Council,24/11/2022,031RESOURCES,Chief Executive & Corporate Core,20162,Electoral Registration,A2202,Recruitment expenses,715.8,National World Publishing Ltd,Recruitment expenses Advertising Vacant Post,2037540,202210
Rother District Council,24/11/2022,091HOUSING,Housing and Community Services,20108,Bexhill Promenade & Foreshore,B1100,Repairs to Premises,333.91,Alfa Electric Ltd,Repairs to Premises - Repairs - Electrical Works,2038065,202210
Rother District Council,24/11/2022,031RESOURCES,Chief Executive & Corporate Core,20176,Administrative Offices - Print Room,B1100,Repairs to Premises,53.45,Trade UK Account (Screwfix & B&Q),Repairs to Premises - Purchase of Materials - Build Maint,2037578,202210
Rother District Council,24/11/2022,091HOUSING,Housing and Community Services,20145,Maintenance Services,D1201,Equipment & Materials,9.99,Trade UK Account (Screwfix & B&Q),Equipment & Materials - Purchase of Tools,2037536,202210
Rother District Council,24/11/2022,081ACQUISIT,"Acquisitions, Transformation and Regeneration",20136,Regeneration,D2513,Hired and Contracted services,"4,000.00",De La Warr Pavilion Charitable Trust,Hired and contracted services - Service fee paid,2039464,202212
Rother District Council,24/11/2022,101RESOURCES,Resources,20314,Payments to Ukrainian guests,D2513,Hired and Contracted services,14.1,Post Office Ltd,Hired and contracted services - Service fee paid,2037577,202211
Rother District Council,25/11/2022,031RESOURCES,Chief Executive & Corporate Core,20171,Human Resources,A2203,Training,818.1,Croner Group Ltd,Training,2039950,202212
Rother District Council,25/11/2022,031RESOURCES,Chief Executive & Corporate Core,20171,Human Resources,A2203,Training,101.81,Croner Group Ltd,Training,2039950,202212
Rother District Council,25/11/2022,081ACQUISIT,"Acquisitions, Transformation and Regeneration",20153,"Elva Business Centre, Bexhill",B1100,Repairs to Premises,80.66,Stannah Lift Services Ltd,Repairs to Premises - Specified Repairs and Works listed,2037706,202210
Rother District Council,25/11/2022,091HOUSING,Housing and Community Services,20114,Bexhill Parks & Open Spaces,B2422,Sewerage,"1,451.45",CountyClean Environmental Services Ltd,Sewerage Parks- Emptying of Cesspit,2037592,202210
Rother District Council,25/11/2022,071STRAT,Strategy and Planning,20258,BC Dangerous Structures H+R Partnership,D2513,Hired and Contracted services,6,H M Land Registry,Hired and contracted services - Env H-Land Registry,2038357,202210
Rother District Council,25/11/2022,071STRAT,Strategy and Planning,20246,Planning Applications,D2513,Hired and Contracted services,30,H M Land Registry,Hired and contracted services - Land Registry-Planning,2038357,202210
Rother District Council,25/11/2022,041ENVIRON,Environmental Services,32144,EH Environmental Services Admin R + W Partnership,D2513,Hired and Contracted services,3,H M Land Registry,Hired and contracted services - Env H-Land Registry,2038357,202210
Rother District Council,25/11/2022,091HOUSING,Housing and Community Services,20200,Housing Needs - HB (Housing Benefit),D2513,Hired and Contracted services,6,H M Land Registry,Hired and contracted services - Housing-Land Registry,2038357,202210
Rother District Council,25/11/2022,101RESOURCES,Resources,20216,Cost Of Collection,D2513,Hired and Contracted services,12,H M Land Registry,Hired and contracted services - Council Tax-Land Registry Enquiries,2038357,202210
Rother District Council,25/11/2022,041ENVIRON,Environmental Services,32141,EH Alcohol Licensing R + W Partnership,D2639,Departmental Systems,"2,156.44",Idox Software Ltd,Departmental Systems - EnvH- Idox Support & Maintenance,2037591,202211
Rother District Council,25/11/2022,041ENVIRON,Environmental Services,32133,EH Food Hyg / Idc / Water Purity R + W Partnership,D2639,Departmental Systems,"2,156.44",Idox Software Ltd,Departmental Systems - EnvH- Idox Support & Maintenance,2037591,202211
Rother District Council,25/11/2022,041ENVIRON,Environmental Services,32134,EH Pollution R + W Partnership,D2639,Departmental Systems,"2,156.44",Idox Software Ltd,Departmental Systems - EnvH- Idox Support & Maintenance,2037591,202211
Rother District Council,25/11/2022,041ENVIRON,Environmental Services,20141,Private Sector Housing,D2639,Departmental Systems,"1,070.87",Idox Software Ltd,Departmental Systems - EnvH- Idox Support & Maintenance,2037591,202211
Rother District Council,25/11/2022,041ENVIRON,Environmental Services,32142,EH Taxi and Private Hire Licenses R + W Partnership,D2639,Departmental Systems,"2,156.44",Idox Software Ltd,Departmental Systems - EnvH- Idox Support & Maintenance,2037591,202211
Rother District Council,25/11/2022,041ENVIRON,Environmental Services,32144,EH Environmental Services Admin R + W Partnership,D2639,Departmental Systems,"1,070.87",Idox Software Ltd,Departmental Systems - EnvH- Idox Support & Maintenance,2037591,202211
Rother District Council,25/11/2022,031RESOURCES,Chief Executive & Corporate Core,20180,Emergency Planning,E1101,Third party payment other LAs,"1,393.74",The Police and Crime Commissioner for Sussex,Third party payment other LAs - Fee Payments to ESCC,2038179,202210
Rother District Council,25/11/2022,091HOUSING,Housing and Community Services,20125,Coast Protection,E2302,Third party payment private contractors,133.6,Kingsdown Compressed Air Systems Ltd,Third party payment private contractors - Fairlight Compressor Maintenance Contract,2037965,202210
Rother District Council,27/11/2022,101RESOURCES,Resources,20242,Communications-Phones,D2621,Telephones,334.57,BT British Telecommunications plc,Telephones - BT-Rental-General,2037600,202210
Rother District Council,28/11/2022,081ACQUISIT,"Acquisitions, Transformation and Regeneration",20308,Amherst Road,B1100,Repairs to Premises,994.29,Alfa Electric Ltd,Repairs to Premises - Repairs - Electrical Works,2038064,202210
Rother District Council,28/11/2022,031RESOURCES,Chief Executive & Corporate Core,20173,Administrative Offices - Town Hall,B1100,Repairs to Premises,9.99,Trade UK Account (Screwfix & B&Q),Repairs to Premises - Purchase of Materials - Build Maint,2037614,202210
Rother District Council,28/11/2022,031RESOURCES,Chief Executive & Corporate Core,20173,Administrative Offices - Town Hall,B1100,Repairs to Premises,104.94,Stannah Lift Services Ltd,Repairs to Premises - Specified Repairs and Works listed,2037704,202210
Rother District Council,28/11/2022,091HOUSING,Housing and Community Services,20200,Housing Needs - HB (Housing Benefit),D2509,Consultants and Other Services,12,NEC Software Solutions UK Ltd,Consultants and other services - Consultants Fees,2037524,202210
Rother District Council,28/11/2022,101RESOURCES,Resources,20216,Cost Of Collection,D2509,Consultants and Other Services,62.35,NEC Software Solutions UK Ltd,Consultants and other services - Consultants Fees,2037524,202210
Rother District Council,28/11/2022,101RESOURCES,Resources,20217,Reliefs & Benefits-Council Tax Benefit,D2509,Consultants and Other Services,5.5,NEC Software Solutions UK Ltd,Consultants and other services - Consultants Fees,2037524,202210
Rother District Council,28/11/2022,041ENVIRON,Environmental Services,32143,EH Licenses and Registration R + W Partnership,D2513,Hired and Contracted services,484.03,Fairfield House Veterinary Surgery,Hired and contracted services - EnvH-Veterinary Services for Licens,2037613,202210
Rother District Council,28/11/2022,101RESOURCES,Resources,20239,Computer Services,D2633,Computer Equipment,463.41,Konica Minolta Business Solutions (UK) Ltd,Computer Equip Maintenance - Maintenance re Colourwave Printer,2037620,202210
Rother District Council,28/11/2022,101RESOURCES,Resources,20222,Accountancy,D2636,Computer Software,"1,100.87",Integra Associates Ltd,Computer Software - charged to departments,2037616,202210
Rother District Council,28/11/2022,999NOREPORT,"Acquisitions, Transformation and Regeneration",70725,Capital - Blackfriars,N1004,Architects & Consultant Fees,"8,385.68",Baily Garner LLP,Architects & Consultant Fees Capital-Architect and Conslt Fees,2037609,202210
Rother District Council,29/11/2022,091HOUSING,Housing and Community Services,20114,Bexhill Parks & Open Spaces,B1100,Repairs to Premises,175,B and G Environmental Services Limited,Repairs to Premises - Drainage Clearance,2038082,202210
Rother District Council,29/11/2022,091HOUSING,Housing and Community Services,20137,Car Parks,B1100,Repairs to Premises,149.86,Alfa Electric Ltd,Repairs to Premises - Repairs - Electrical Works,2038068,202210
Rother District Council,29/11/2022,031RESOURCES,Chief Executive & Corporate Core,20173,Administrative Offices - Town Hall,B1100,Repairs to Premises,600,Booker and Best Ltd,Repairs to Premises - Heating Maintenance,2037722,202210
Rother District Council,29/11/2022,081ACQUISIT,"Acquisitions, Transformation and Regeneration",20338,7-12 Beeching Road Studios ( Regeneration Project ),B1100,Repairs to Premises,187.58,Alfa Electric Ltd,Repairs to Premises - Repairs - Electrical Works,2038067,202210
Rother District Council,29/11/2022,041ENVIRON,Environmental Services,20187,Pollution,D1201,Equipment & Materials,255,Normanton Screen Print,Equipment & materials - Miscellaneous,2037627,202210
Rother District Council,29/11/2022,091HOUSING,Housing and Community Services,20145,Maintenance Services,D1201,Equipment & Materials,17.48,Trade UK Account (Screwfix & B&Q),Equipment & Materials - Purchase of Tools,2037632,202210
Rother District Council,29/11/2022,091HOUSING,Housing and Community Services,20145,Maintenance Services,D2352,Clothing and Uniforms,36.33,Trade UK Account (Screwfix & B&Q),Clothing and Uniforms - Mens Protective-Coat,2037626,202210
Rother District Council,29/11/2022,091HOUSING,Housing and Community Services,20145,Maintenance Services,D2352,Clothing and Uniforms,54.99,Trade UK Account (Screwfix & B&Q),Clothing and Uniforms - Mens Protective-Footware,2037631,202210
Rother District Council,29/11/2022,091HOUSING,Housing and Community Services,20145,Maintenance Services,D2352,Clothing and Uniforms,57.48,Trade UK Account (Screwfix & B&Q),Clothing and Uniforms - Mens Protective-Other,2037631,202210
Rother District Council,29/11/2022,041ENVIRON,Environmental Services,20187,Pollution,D2513,Hired and Contracted services,750,Jeffrey Garden Services (Oliver Jeffrey),Hired and contracted services - Service fee paid,2037687,202210
Rother District Council,29/11/2022,041ENVIRON,Environmental Services,20187,Pollution,D2626,Postages,10.95,Normanton Screen Print,Postages - Carriage of Supplies,2037627,202210
Rother District Council,30/11/2022,091HOUSING,Housing and Community Services,20204,Housing Administration Account,A1110,Agency Staff,"1,311.72",Oyster Partnership,Agency Staff,2037407,202210
Rother District Council,30/11/2022,091HOUSING,Housing and Community Services,20204,Housing Administration Account,A1110,Agency Staff,"1,476.00",Park Avenue Recruitment Ltd,Agency Staff,2037682,202210
Rother District Council,30/11/2022,081ACQUISIT,"Acquisitions, Transformation and Regeneration",20144,Property Management,A2202,Recruitment expenses,"1,950.00",LNRS Data Services Limited / Lexis Nexis,Recruitment expenses Advertising Vacant Post,2038249,202210
Rother District Council,30/11/2022,081ACQUISIT,"Acquisitions, Transformation and Regeneration",20308,Amherst Road,B1100,Repairs to Premises,37.79,C Brewer and Sons Ltd,Repairs to Premises - Purchase of Materials - Build Maint,2037672,202210
Rother District Council,30/11/2022,081ACQUISIT,"Acquisitions, Transformation and Regeneration",20308,Amherst Road,B1100,Repairs to Premises,217.2,MC Glass (East Sussex) Ltd,Repairs to Premises - Purchase of Materials - Build Maint,2037674,202210
Rother District Council,30/11/2022,081ACQUISIT,"Acquisitions, Transformation and Regeneration",20308,Amherst Road,B1100,Repairs to Premises,67.91,C Brewer and Sons Ltd,,2037675,202210
Rother District Council,30/11/2022,081ACQUISIT,"Acquisitions, Transformation and Regeneration",20308,Amherst Road,B1100,Repairs to Premises,11.29,C Brewer and Sons Ltd,Repairs to Premises - Purchase of Materials - Build Maint,2037676,202210
Rother District Council,30/11/2022,081ACQUISIT,"Acquisitions, Transformation and Regeneration",20308,Amherst Road,B1100,Repairs to Premises,15,C Brewer and Sons Ltd,Repairs to Premises - Purchase of Materials - Build Maint,2037677,202210
Rother District Council,30/11/2022,081ACQUISIT,"Acquisitions, Transformation and Regeneration",20308,Amherst Road,B1100,Repairs to Premises,250.66,C Brewer and Sons Ltd,Repairs to Premises - Purchase of Materials - Build Maint,2037678,202210
Rother District Council,30/11/2022,081ACQUISIT,"Acquisitions, Transformation and Regeneration",20308,Amherst Road,B1100,Repairs to Premises,93.54,C Brewer and Sons Ltd,Repairs to Premises - Purchase of Materials - Build Maint,2037679,202210
Rother District Council,30/11/2022,081ACQUISIT,"Acquisitions, Transformation and Regeneration",20308,Amherst Road,B1100,Repairs to Premises,71.06,C Brewer and Sons Ltd,Repairs to Premises - Purchase of Materials - Build Maint,2037680,202210
Rother District Council,30/11/2022,081ACQUISIT,"Acquisitions, Transformation and Regeneration",20154,Committee Property Account,B1100,Repairs to Premises,137.5,I.B. Lock & Safe,Repairs to Premises - Specified Repairs and Works listed,2037728,202210
Rother District Council,30/11/2022,031RESOURCES,Chief Executive & Corporate Core,20173,Administrative Offices - Town Hall,B1100,Repairs to Premises,119.64,Alfa Electric Ltd,Repairs to Premises - Repairs - Electrical Works,2038066,202210
Rother District Council,30/11/2022,031RESOURCES,Chief Executive & Corporate Core,20173,Administrative Offices - Town Hall,B1100,Repairs to Premises,"1,749.00",SDS Builders & Decorators (Hastings) Ltd,Repairs to Premises - Repairs Doors,2038786,202211
Rother District Council,30/11/2022,091HOUSING,Housing and Community Services,20108,Bexhill Promenade & Foreshore,B2611,Contract cleaning,153,Abacus Main Ltd,Contract cleaning - Office Cleaning,2038592,202211
Rother District Council,30/11/2022,041ENVIRON,Environmental Services,32136,EH Pest Control R + W Partnership,C1104,Derv,60.83,Allstar Business Solutions,,2038301,202210
Rother District Council,30/11/2022,041ENVIRON,Environmental Services,32136,EH Pest Control R + W Partnership,C1104,Derv,58.9,Allstar Business Solutions,,2038301,202210
Rother District Council,30/11/2022,041ENVIRON,Environmental Services,32136,EH Pest Control R + W Partnership,C1104,Derv,3.8,Allstar Business Solutions,Derv - Fuel Service fee payable on fuel cards,2038301,202210
Rother District Council,30/11/2022,091HOUSING,Housing and Community Services,20145,Maintenance Services,C1104,Derv,1.9,Allstar Business Solutions,Derv - Fuel Service fee payable on fuel cards,2038301,202210
Rother District Council,30/11/2022,091HOUSING,Housing and Community Services,20145,Maintenance Services,C1104,Derv,97.95,Allstar Business Solutions,,2038301,202210
Rother District Council,30/11/2022,091HOUSING,Housing and Community Services,20145,Maintenance Services,C1104,Derv,88.33,Allstar Business Solutions,,2038301,202210
Rother District Council,30/11/2022,091HOUSING,Housing and Community Services,20145,Maintenance Services,C1104,Derv,95.43,Allstar Business Solutions,,2038301,202210
Rother District Council,30/11/2022,091HOUSING,Housing and Community Services,20145,Maintenance Services,C1104,Derv,88.46,Allstar Business Solutions,,2038301,202210
Rother District Council,30/11/2022,091HOUSING,Housing and Community Services,20145,Maintenance Services,C1104,Derv,102.03,Allstar Business Solutions,,2038301,202210
Rother District Council,30/11/2022,081ACQUISIT,"Acquisitions, Transformation and Regeneration",20308,Amherst Road,D1201,Equipment & Materials,138,J S Fire Protection Ltd,Equipment & Materials - Fire Equipment Maintenance,2037765,202210
Rother District Council,30/11/2022,091HOUSING,Housing and Community Services,20107,Camber Beach & Foreshore,D1201,Equipment & Materials,79,J S Fire Protection Ltd,Equipment & Materials - Fire Equipment Maintenance,2037767,202210
Rother District Council,30/11/2022,091HOUSING,Housing and Community Services,20114,Bexhill Parks & Open Spaces,D1201,Equipment & Materials,66,J S Fire Protection Ltd,Equipment & Materials - Fire Equipment Maintenance,2037768,202210
Rother District Council,30/11/2022,091HOUSING,Housing and Community Services,20114,Bexhill Parks & Open Spaces,D1201,Equipment & Materials,56.2,J S Fire Protection Ltd,Equipment & Materials - Fire Equipment Maintenance,2037769,202210
Rother District Council,30/11/2022,091HOUSING,Housing and Community Services,20123,Cemeteries,D1201,Equipment & Materials,56.2,J S Fire Protection Ltd,Equipment & Materials - Fire Equipment Maintenance,2037773,202210
Rother District Council,30/11/2022,091HOUSING,Housing and Community Services,20114,Bexhill Parks & Open Spaces,D1201,Equipment & Materials,59.8,J S Fire Protection Ltd,Equipment & Materials - Fire Equipment Maintenance,2037776,202210
Rother District Council,30/11/2022,081ACQUISIT,"Acquisitions, Transformation and Regeneration",20148,Misc Land & Buildings,D1201,Equipment & Materials,74.2,J S Fire Protection Ltd,Equipment & Materials - Fire Equipment Maintenance,2037770,202210
Rother District Council,30/11/2022,081ACQUISIT,"Acquisitions, Transformation and Regeneration",20148,Misc Land & Buildings,D1201,Equipment & Materials,59.8,J S Fire Protection Ltd,Equipment & Materials - Fire Equipment Maintenance,2037771,202210
